Body Name,Service Area,Expenses Type,Invoice Payment Date,Transaction Number,Net Amount,Supplier Name
Manchester City Council,Adult Social Care,Storage Costs,01.10.2018,5100997493,"1,833.06",Iron Mountain
Manchester City Council,Adult Social Care,Storage Costs,01.10.2018,5100997806,873.59,Iron Mountain
Manchester City Council,Adult Social Care,Third party payments relating to Voluntary Organisations,01.10.2018,5100997810,"13,095.00",The Shaw Centre
Manchester City Council,Adult Social Care,Personal needs of client,01.10.2018,1906212016,679.46,Willow Park Housing Trust
Manchester City Council,Manchester Leisure,Contract Cleaning External,01.10.2018,5100997507,"2,159.70",GTS Steam Cleaners
Manchester City Council,Regeneration Finance,Security,01.10.2018,5100997508,"12,754.56",Showsec International Ltd
Manchester City Council,Hospitality + Trading Services,Catering Provisions,01.10.2018,1906212867,"1,448.84",Brake Bros Foodservice Ltd
Manchester City Council,Hospitality + Trading Services,Catering Provisions,01.10.2018,1906212952,"1,135.89",Brake Bros Foodservice Ltd
Manchester City Council,Hospitality + Trading Services,Catering Provisions,01.10.2018,1906213030,"1,105.10",Brake Bros Foodservice Ltd
Manchester City Council,Hospitality + Trading Services,Catering Provisions,01.10.2018,1906212996,851.84,Brake Bros Foodservice Ltd
Manchester City Council,Hospitality + Trading Services,Catering Provisions,01.10.2018,1906212868,843.77,Brake Bros Foodservice Ltd
Manchester City Council,Hospitality + Trading Services,Catering Provisions,01.10.2018,1906212942,805.89,Brake Bros Foodservice Ltd
Manchester City Council,Hospitality + Trading Services,Catering Provisions,01.10.2018,1906212870,776.51,Brake Bros Foodservice Ltd
Manchester City Council,Hospitality + Trading Services,Catering Provisions,01.10.2018,1906213000,767.50,Brake Bros Foodservice Ltd
Manchester City Council,Hospitality + Trading Services,Catering Provisions,01.10.2018,1906212773,732.33,Brake Bros Foodservice Ltd
Manchester City Council,Hospitality + Trading Services,Catering Provisions,01.10.2018,1906212839,647.13,Brake Bros Foodservice Ltd
Manchester City Council,Hospitality + Trading Services,Catering Provisions,01.10.2018,1906212899,631.83,Brake Bros Foodservice Ltd
Manchester City Council,Hospitality + Trading Services,Catering Provisions,01.10.2018,1906212887,618.86,Brake Bros Foodservice Ltd
Manchester City Council,Hospitality + Trading Services,Catering Provisions,01.10.2018,1906212779,617.65,Brake Bros Foodservice Ltd
Manchester City Council,Hospitality + Trading Services,Catering Provisions,01.10.2018,1906212929,591.27,Brake Bros Foodservice Ltd
Manchester City Council,Hospitality + Trading Services,Catering Provisions,01.10.2018,1906212770,580.07,Brake Bros Foodservice Ltd
Manchester City Council,Hospitality + Trading Services,Catering Provisions,01.10.2018,1906213014,571.83,Brake Bros Foodservice Ltd
Manchester City Council,Hospitality + Trading Services,Catering Provisions,01.10.2018,1906212781,552.01,Brake Bros Foodservice Ltd
Manchester City Council,Hospitality + Trading Services,Catering Provisions,01.10.2018,1906212811,551.86,Brake Bros Foodservice Ltd
Manchester City Council,Hospitality + Trading Services,Catering Provisions,01.10.2018,1906212809,547.15,Brake Bros Foodservice Ltd
Manchester City Council,Hospitality + Trading Services,Catering Provisions,01.10.2018,1906212989,545.85,Brake Bros Foodservice Ltd
Manchester City Council,Hospitality + Trading Services,Catering Provisions,01.10.2018,1906212924,506.73,Brake Bros Foodservice Ltd
Manchester City Council,Hospitality + Trading Services,Catering Provisions,01.10.2018,1906212968,505.39,Brake Bros Foodservice Ltd
Manchester City Council,Hospitality + Trading Services,Catering Provisions,01.10.2018,1906212836,502.12,Brake Bros Foodservice Ltd
Manchester City Council,Hospitality + Trading Services,Catering Provisions,01.10.2018,1906212921,500.91,Brake Bros Foodservice Ltd
Manchester City Council,Housing General Fund,Building Works,01.10.2018,5100997461,"22,184.00",Manchester Care & Repair Ltd
Manchester City Council,Highways Services,Legal Fees,01.10.2018,5100997463,825.00,Redacted Personal Information
Manchester City Council,Adult Social Care,Bed and Breakfast Accommodation Expenditure,01.10.2018,5100997832,"10,932.00",Redacted Personal Information
Manchester City Council,Adult Social Care,Bed and Breakfast Accommodation Expenditure,01.10.2018,5100997829,"9,387.00",Redacted Personal Information
Manchester City Council,Adult Social Care,"Clothes, Uniform and Laundry",01.10.2018,5100997541,600.00,Alliance Disposables Ltd
Manchester City Council,Regeneration Finance,Grant Payments,01.10.2018,1906212752,"7,759.00",H M Revenues and Customs
Manchester City Council,Hospitality + Trading Services,Catering Provisions,01.10.2018,1906212813,884.26,Chicken Joes Limited
Manchester City Council,Chief Executives,Works and associated costs for Land and Buildings,01.10.2018,5100997812,"32,740.08",Galliford Try Infastructure Ltd
Manchester City Council,Adult Social Care,Payments for services,01.10.2018,5100997462,"-7,500.00",Alere Ltd
Manchester City Council,Chief Executives,Works and associated costs for Land and Buildings,01.10.2018,5100997833,"-2,000.00",Buro Happold Limited
Manchester City Council,Adult Social Care,Payments for services,01.10.2018,5100997801,"106,267.20",Pathways CIC
Manchester City Council,Housing Revenue Account,Private Finance and Public Private partnership initiatives,01.10.2018,5100997500,"644,399.08",S4B Limited
Manchester City Council,Manchester Leisure,Payments for services,01.10.2018,5100997481,"1,225.00",Dance and Fitness Agency Ltd
Manchester City Council,Adult Social Care,Bed and Breakfast Accommodation Expenditure,01.10.2018,5100997830,"17,553.00",Redacted Personal Information
Manchester City Council,Manchester Leisure,Grant and subscriptions awarded,01.10.2018,5100997487,"20,000.00",Boxyard Ltd
Manchester City Council,Chief Executives,Agency staff provision,01.10.2018,5100997828,"2,728.00",Redacted Personal Information
Manchester City Council,Chief Executives,Agency staff provision,01.10.2018,5100997827,"1,510.00",Redacted Personal Information
Manchester City Council,Chief Executives,Payments to Sub-Contractors,01.10.2018,5100997483,811.15,Redacted Personal Information
Manchester City Council,Manchester Leisure,Hire of Equipment,01.10.2018,5100997472,"3,553.50",Niche Event Hire
Manchester City Council,Manchester Leisure,Professional fees,01.10.2018,5100997465,800.00,Redacted Personal Information
Manchester City Council,Corporate Services,Works and associated costs for Land and Buildings,01.10.2018,5100997492,"1,948,141.00",FQ Developments
Manchester City Council,Manchester Leisure,Professional fees,01.10.2018,5100997466,"1,000.00",Redacted Personal Information
Manchester City Council,Corporate Services,Long Term Debtors,01.10.2018,5100997498,"1,469,108.00",Manchester New Square Partnership
Manchester City Council,Manchester Leisure,Grant and subscriptions awarded,01.10.2018,5100997510,"1,269.16",Friends Sporting Club
Manchester City Council,Manchester Leisure,Special Events,01.10.2018,1906212012,"1,005.00",Outdoor Catering Events
Manchester City Council,Adult Social Care,Training and Development,01.10.2018,1906205354,"12,438.20",PAMS Assessments
Manchester City Council,Adult Social Care,Grant and subscriptions awarded,01.10.2018,1906145619,"1,283.00",Peoplesafe
Manchester City Council,Chief Executives,Professional fees,01.10.2018,1906212751,"4,000.00",Jazz Maps
Manchester City Council,Chief Executives,Publications,02.10.2018,5100997943,510.00,John Smith & Son (Glasgow) Ltd T/A
Manchester City Council,Manchester Leisure,Vehicle Fuel Costs,02.10.2018,5100997959,"1,201.40",Carlton Fuels Ltd
Manchester City Council,Insurance Fund,Insurance,02.10.2018,5100997907,"24,127.58",Zurich Municipal
Manchester City Council,Insurance Fund,Insurance,02.10.2018,5100997927,"24,127.58",Zurich Municipal
Manchester City Council,Insurance Fund,Insurance,02.10.2018,5100997901,"17,285.42",Zurich Municipal
Manchester City Council,Insurance Fund,Insurance,02.10.2018,5100997905,"10,419.36",Zurich Municipal
Manchester City Council,Insurance Fund,Insurance,02.10.2018,5100997924,"10,419.36",Zurich Municipal
Manchester City Council,Insurance Fund,Insurance,02.10.2018,5100997909,"5,187.46",Zurich Municipal
Manchester City Council,Insurance Fund,Insurance,02.10.2018,5100997921,"5,187.46",Zurich Municipal
Manchester City Council,Insurance Fund,Insurance,02.10.2018,5100997932,"3,957.64",Zurich Municipal
Manchester City Council,Insurance Fund,Insurance,02.10.2018,5100997910,"2,695.49",Zurich Municipal
Manchester City Council,Insurance Fund,Insurance,02.10.2018,5100997919,"2,695.49",Zurich Municipal
Manchester City Council,Insurance Fund,Insurance,02.10.2018,5100997930,758.71,Zurich Municipal
Manchester City Council,Insurance Fund,Insurance,02.10.2018,5100997912,"-2,695.49",Zurich Municipal
Manchester City Council,Insurance Fund,Insurance,02.10.2018,5100997914,"-5,187.46",Zurich Municipal
Manchester City Council,Insurance Fund,Insurance,02.10.2018,5100997915,"-10,419.36",Zurich Municipal
Manchester City Council,Insurance Fund,Insurance,02.10.2018,5100997916,"-24,127.58",Zurich Municipal
Manchester City Council,Hospitality + Trading Services,Building Materials for direct delivery,02.10.2018,5100980404,916.67,Huperade Ltd
Manchester City Council,Manchester Leisure,Equipment,02.10.2018,5100997865,"5,544.00",Craemer Uk Ltd
Manchester City Council,Chief Executives,Data Links,02.10.2018,1906206151,"135,032.42",BT PLC
Manchester City Council,Chief Executives,Data Links,02.10.2018,1700083450,"-14,403.28",BT PLC
Manchester City Council,Highways Services,Furniture,02.10.2018,5100997968,-739.00,Back Care Solutions Ltd
Manchester City Council,Manchester Leisure,External repairs and maintenance for buildings,02.10.2018,5100997844,"1,357.90",Clearview Event Services Limited
Manchester City Council,Manchester Leisure,External repairs and maintenance for buildings,02.10.2018,5100997843,"-1,357.90",Clearview Event Services Limited
Manchester City Council,Hospitality + Trading Services,Funeral and coroner related services,02.10.2018,5100972794,886.15,Combined Masonry Supplies Ltd
Manchester City Council,Adult Social Care,Third party payments relating to Voluntary Organisations,02.10.2018,5100997880,"65,000.00",Riverside ECHG
Manchester City Council,Adult Social Care,Third party payments relating to Voluntary Organisations,02.10.2018,5100997876,"16,666.66",Riverside ECHG
Manchester City Council,Adult Social Care,Third party payments relating to Voluntary Organisations,02.10.2018,5100997878,"9,187.20",Riverside ECHG
Manchester City Council,Adult Social Care,Third party payments relating to Voluntary Organisations,02.10.2018,5100997878,"7,396.10",Riverside ECHG
Manchester City Council,Adult Social Care,Supporting People Payments,02.10.2018,5100998005,942.74,Riverside ECHG
Manchester City Council,Adult Social Care,Supporting People Payments,02.10.2018,5100998005,912.43,Riverside ECHG
Manchester City Council,Adult Social Care,Supporting People Payments,02.10.2018,5100998005,790.60,Riverside ECHG
Manchester City Council,Adult Social Care,Supporting People Payments,02.10.2018,5100998005,547.74,Riverside ECHG
Manchester City Council,Chief Executives,Landline Telephone Charges,02.10.2018,1906205785,653.25,Vodafone (Ex C&W)
Manchester City Council,Regeneration Finance,Compensation Payments,02.10.2018,5100997938,"15,050.00",Savills (UK) Ltd
Manchester City Council,Regeneration Finance,Compensation Payments,02.10.2018,5100997937,"5,000.00",Savills (UK) Ltd
Manchester City Council,Chief Executives,Examination Fees,02.10.2018,5100997918,"1,725.42",Central Mcr Uni Hospital t/a
Manchester City Council,Chief Executives,Data Links,02.10.2018,5100997458,"2,285.00",The Co-operative Business Telecoms
Manchester City Council,Chief Executives,Data Links,02.10.2018,5100997459,"2,285.00",The Co-operative Business Telecoms
Manchester City Council,Manchester Leisure,Professional fees,02.10.2018,5100997841,"1,000.00",Wythenshawe Forum Trust Ltd
Manchester City Council,Adult Social Care,Third party payments relating to Voluntary Organisations,02.10.2018,5100998024,"5,500.00",Talbot House Support Centre
Manchester City Council,Chief Executives,Grant Payments,02.10.2018,5100997842,"7,500.00",Contact Theatre Company
Manchester City Council,Adult Social Care,Professional fees,02.10.2018,1906202175,"2,392.60",Stockport Psychology Services
Manchester City Council,Manchester Leisure,Professional fees,02.10.2018,5100997962,"2,000.00",Barlow Moor Community Centre
Manchester City Council,Highways Services,Compensation Payments,02.10.2018,1906212747,866.00,Department For Work & Pensions
Manchester City Council,Corporate Services,I T Provision,02.10.2018,5100997935,"2,507.76",Insight Direct (Uk) Ltd
Manchester City Council,Chief Executives,I T Provision,02.10.2018,5100997961,"13,391.80",Insight Direct (Uk) Ltd
Manchester City Council,Chief Executives,Advertising,02.10.2018,5100997972,926.25,TES Global Ltd
Manchester City Council,Chief Executives,Advertising,02.10.2018,5100997973,926.25,TES Global Ltd
Manchester City Council,Chief Executives,Advertising,02.10.2018,5100997974,926.25,TES Global Ltd
Manchester City Council,Chief Executives,Advertising,02.10.2018,5100997975,926.25,TES Global Ltd
Manchester City Council,Adult Social Care,Professional fees,02.10.2018,5100997965,762.00,Cellmark
Manchester City Council,Adult Social Care,Third party payments to other Local Authorities,02.10.2018,5100998008,"1,644.00",St. Anne's CE Primary School
Manchester City Council,Regeneration Finance,Third party payments to other Local Authorities,02.10.2018,5100998007,"11,410.50",London Borough of Harrow
Manchester City Council,Chief Executives,Funeral and coroner related services,02.10.2018,5100997906,677.60,Redacted Personal Information
Manchester City Council,Regeneration Finance,Professional fees,02.10.2018,5100997480,"3,300.00",Argus Software UK Ltd
Manchester City Council,Adult Social Care,Rents,02.10.2018,5100997954,"75,631.00",Accommodation Links Ltd
Manchester City Council,Hospitality + Trading Services,Professional fees,02.10.2018,5100997871,"2,407.00",Jacobs UK Ltd
Manchester City Council,Housing General Fund,Surplus property Fees,02.10.2018,5100997871,800.00,Jacobs UK Ltd
Manchester City Council,Housing Revenue Account,Professional fees,02.10.2018,5100997871,"4,250.00",Jacobs UK Ltd
Manchester City Council,Regeneration Finance,Professional fees,02.10.2018,5100997871,"12,086.90",Jacobs UK Ltd
Manchester City Council,Regeneration Finance,Professional fees,02.10.2018,5100997871,"1,351.50",Jacobs UK Ltd
Manchester City Council,Regeneration Finance,Professional fees,02.10.2018,5100997871,"1,007.00",Jacobs UK Ltd
Manchester City Council,Regeneration Finance,Professional fees,02.10.2018,5100997871,954.00,Jacobs UK Ltd
Manchester City Council,Regeneration Finance,Professional fees,02.10.2018,5100997871,715.50,Jacobs UK Ltd
Manchester City Council,Chief Executives,I T Provision,02.10.2018,5100997894,"10,486.08",Advanced Legal Solutions Ltd
Manchester City Council,Chief Executives,Rents,02.10.2018,1906210762,"1,296.52",Regus Management (UK) Ltd
Manchester City Council,Chief Executives,Funeral and coroner related services,02.10.2018,5100997900,"4,749.00",Kane Funeral Services
Manchester City Council,Chief Executives,Funeral and coroner related services,02.10.2018,5100997896,"1,004.56",Kane Funeral Services
Manchester City Council,Adult Social Care,Professional fees,02.10.2018,1906205280,983.07,Redacted Personal Information
Manchester City Council,Chief Executives,Examination Fees,02.10.2018,5100997920,"3,550.00",ROAR Forensics Ltd
Manchester City Council,Chief Executives,Examination Fees,02.10.2018,5100997923,"3,482.50",ROAR Forensics Ltd
Manchester City Council,Chief Executives,Examination Fees,02.10.2018,5100997922,"1,375.00",ROAR Forensics Ltd
Manchester City Council,Corporate Services,Works and associated costs for Land and Buildings,02.10.2018,5100997884,"116,738.75",Conlon Construction Ltd
Manchester City Council,Adult Social Care,Professional fees,02.10.2018,1906202181,600.00,Kenworthy's Chambers
Manchester City Council,Adult Social Care,Contract Cleaning External,02.10.2018,5100997969,"1,515.25",Georgie Porgie's Network Nursey Ltd
Manchester City Council,Adult Social Care,Third party payments to other Local Authorities,02.10.2018,5100997873,"2,789.00",Poynton High School
Manchester City Council,Adult Social Care,Bed and Breakfast Accommodation Expenditure,02.10.2018,5100997966,"8,553.00",Redacted Personal Information
Manchester City Council,Environment and Operations,Professional fees,02.10.2018,5100997933,595.00,Solution Talk LLP
Manchester City Council,Chief Executives,ICT Support & Maintenance,02.10.2018,5100997989,"4,250.00",TNP Ltd
Manchester City Council,Chief Executives,ICT Support & Maintenance,02.10.2018,5100997990,"4,250.00",TNP Ltd
Manchester City Council,Chief Executives,ICT Support & Maintenance,02.10.2018,5100997988,"3,600.00",TNP Ltd
Manchester City Council,Corporate Services,Subsistence and Conference Expenses,02.10.2018,5100998025,"6,293.31",Redacted Personal Information
Manchester City Council,Chief Executives,Payments to Sub-Contractors,02.10.2018,5100997870,570.63,Redacted Personal Information
Manchester City Council,Adult Social Care,Supported Accommodation,02.10.2018,5100998034,900.00,White Lodge Hotel
Manchester City Council,Hospitality + Trading Services,Tyres and Tubes,02.10.2018,5100997976,"4,924.76",ATS Euromaster Limited
Manchester City Council,Corporate Services,Long Term Debtors,02.10.2018,5100997950,"1,922,282.00",Manchester New Square Partnership
Manchester City Council,Corporate Services,Legal Fees,02.10.2018,5100997864,"11,262.00",Mourant Ozannes
Manchester City Council,Manchester Leisure,Professional fees,02.10.2018,1906212759,"5,000.00",Policy Point Ltd
Manchester City Council,Manchester Leisure,Special Events,02.10.2018,1906212725,"3,600.00",Many Many Monkeys
Manchester City Council,Manchester Leisure,Special Events,02.10.2018,1906212722,"2,010.00",Amani Creatives
Manchester City Council,Manchester Leisure,Special Events,02.10.2018,1906212731,925.00,Gourmet and Continental Foods
Manchester City Council,Adult Social Care,Professional fees,02.10.2018,1906203023,650.00,Redacted Personal Information
Manchester City Council,Adult Social Care,Professional fees,02.10.2018,1906203016,600.00,KBW Barristers Chambers
Manchester City Council,Adult Social Care,Payments for services,02.10.2018,1906206354,"13,310.00",Wathen Grange School Ltd
Manchester City Council,Adult Social Care,Payments for services,02.10.2018,1906212736,"1,200.00",Carrington Riding Centre
Manchester City Council,Adult Social Care,Payments for services,02.10.2018,1906205359,800.00,Fisherfield Child Care
Manchester City Council,Chief Executives,Funeral and coroner related services,02.10.2018,1906214295,"1,968.75",Greenwood Medico Legal
Manchester City Council,Highways Services,Compensation Payments,02.10.2018,1906214261,"3,250.00",Stanley House Solicitors
Manchester City Council,Highways Services,Compensation Payments,02.10.2018,1906212742,"2,550.00",JF Law Limited
Manchester City Council,Highways Services,Compensation Payments,02.10.2018,1906212743,"2,161.50",JF Law Limited
Manchester City Council,Housing General Fund,Building Works,03.10.2018,1906217640,"13,145.00",Pollock Lifts Ltd
Manchester City Council,Adult Social Care,Payments for services,03.10.2018,5100998177,"19,090.51",Belmont School Ltd
Manchester City Council,Adult Social Care,Bed and Breakfast Accommodation Expenditure,03.10.2018,5100998144,"14,941.67",Park Crescent Hotel Ltd
Manchester City Council,Adult Social Care,Bed and Breakfast Accommodation Expenditure,03.10.2018,5100998143,"1,500.00",Park Crescent Hotel Ltd
Manchester City Council,Adult Social Care,Bed and Breakfast Accommodation Expenditure,03.10.2018,5100998149,"1,350.00",Park Crescent Hotel Ltd
Manchester City Council,Adult Social Care,Bed and Breakfast Accommodation Expenditure,03.10.2018,5100998142,"1,275.00",Park Crescent Hotel Ltd
Manchester City Council,Hospitality + Trading Services,I T Provision,03.10.2018,5100998159,762.50,Blackstone Computer Services Ltd
Manchester City Council,Regeneration Finance,Contract Cleaning External,03.10.2018,5100998164,"6,565.38",Mitie Cleaning & Environmental
Manchester City Council,Regeneration Finance,Contract Cleaning External,03.10.2018,5100998170,763.17,Mitie Cleaning & Environmental
Manchester City Council,Regeneration Finance,Contract Cleaning External,03.10.2018,5100998169,-763.17,Mitie Cleaning & Environmental
Manchester City Council,Regeneration Finance,Contract Cleaning External,03.10.2018,5100998163,"-6,565.38",Mitie Cleaning & Environmental
Manchester City Council,Adult Social Care,Landline Telephone Charges,03.10.2018,1906195030,655.52,Bt Featurenet Payment Centre
Manchester City Council,Adult Social Care,Third party payments to other Local Authorities,03.10.2018,5100998100,"4,473.00",Altrincham College Of Arts
Manchester City Council,Adult Social Care,Third party payments relating to Voluntary Organisations,03.10.2018,5100997845,"351,906.00",Barnardo's North West
Manchester City Council,Adult Social Care,Supporting People Payments,03.10.2018,5100998010,"19,091.41",Riverside ECHG
Manchester City Council,Adult Social Care,Supporting People Payments,03.10.2018,5100998010,"12,585.85",Riverside ECHG
Manchester City Council,Adult Social Care,Supporting People Payments,03.10.2018,5100998010,"12,500.00",Riverside ECHG
Manchester City Council,Adult Social Care,Supporting People Payments,03.10.2018,5100998010,"5,833.33",Riverside ECHG
Manchester City Council,Adult Social Care,Supporting People Payments,03.10.2018,5100998108,"4,158.48",ACORN Recovery Projects
Manchester City Council,Manchester Leisure,Professional fees,03.10.2018,5100997467,"3,325.00",Civica UK Ltd
Manchester City Council,Housing General Fund,Building Works,03.10.2018,1906217648,"4,787.00",Stannah Lift Services Ltd
Manchester City Council,Housing General Fund,Building Works,03.10.2018,1906217650,"3,151.00",Stannah Lift Services Ltd
Manchester City Council,Chief Executives,Funeral and coroner related services,03.10.2018,5100997491,"11,623.13",Central Mcr Uni Hospital t/a
Manchester City Council,Chief Executives,Funeral and coroner related services,03.10.2018,5100997491,657.63,Central Mcr Uni Hospital t/a
Manchester City Council,Chief Executives,Examination Fees,03.10.2018,5100997491,"3,314.10",Central Mcr Uni Hospital t/a
Manchester City Council,Chief Executives,Funeral and coroner related services,03.10.2018,5100997491,"25,643.88",Central Mcr Uni Hospital t/a
Manchester City Council,Manchester Leisure,Grant and subscriptions awarded,03.10.2018,5100998140,"5,000.00",Wythenshawe Community Farm
Manchester City Council,Housing General Fund,Building Works,03.10.2018,1906217649,"4,356.00",Thyssenkrupp Encasa
Manchester City Council,Corporate Services,Furniture,03.10.2018,5100998155,"1,178.00",Egan Reid Stationery Co Ltd
Manchester City Council,Chief Executives,Hire of Premises,03.10.2018,5100998243,"-7,700.00",HMCTS (Newport)
Manchester City Council,Regeneration Finance,Professional fees,03.10.2018,1906214579,"3,000.00",Companies House
Manchester City Council,Chief Executives,Professional fees,03.10.2018,5100998109,"22,726.00",GMCA
Manchester City Council,Regeneration Finance,Internal Repairs and Maintenance for buildings,03.10.2018,5100998035,"35,089.50",Manchester Working Ltd
Manchester City Council,Housing General Fund,Building Works,03.10.2018,1906217646,"2,568.00",Hoist & Shower Chair Company
Manchester City Council,Housing General Fund,Building Works,03.10.2018,1906217647,"2,443.00",Hoist & Shower Chair Company
Manchester City Council,Housing Revenue Account,Council Dwelling Adaptations,03.10.2018,5100998172,"2,078.00",Hoist & Shower Chair Company
Manchester City Council,Housing General Fund,Building Works,03.10.2018,5100998173,"113,788.59",Southway Housing Trust
Manchester City Council,Chief Executives,Professional fees,03.10.2018,5100998075,"3,732.30",Greengage Consulting Ltd
Manchester City Council,Chief Executives,Professional fees,03.10.2018,5100998072,"-3,732.30",Greengage Consulting Ltd
Manchester City Council,Hospitality + Trading Services,Professional fees,03.10.2018,5100997934,755.25,Jacobs UK Ltd
Manchester City Council,Regeneration Finance,Catering,03.10.2018,5100998190,597.00,Islington Council
Manchester City Council,Regeneration Finance,Legal Fees,03.10.2018,5100998176,"3,600.00",Landmark Chambers
Manchester City Council,Adult Social Care,Rents,03.10.2018,1906214290,550.00,Redacted Personal Information
Manchester City Council,Adult Social Care,Equipment,03.10.2018,5100998073,"3,475.00",Ultimate Healthcare
Manchester City Council,Chief Executives,Works and associated costs for Land and Buildings,03.10.2018,5100997836,"2,000.00",Buro Happold Limited
Manchester City Council,Chief Executives,Landline Telephone Charges,03.10.2018,5100996809,"1,750.00",The Loop t/a Gamma Telecom Ltd
Manchester City Council,Adult Social Care,Professional fees,03.10.2018,5100998187,"6,171.00",Career Connect
Manchester City Council,Manchester Leisure,Professional fees,03.10.2018,5100998157,500.00,Redacted Personal Information
Manchester City Council,Manchester Leisure,Professional fees,03.10.2018,5100998150,500.00,Interference Art
Manchester City Council,Adult Social Care,External repairs and maintenance for buildings,03.10.2018,5100998165,"14,439.65",UPS Building & Maintenance Ltd
Manchester City Council,Adult Social Care,External repairs and maintenance for buildings,03.10.2018,5100998156,"-14,439.65",UPS Building & Maintenance Ltd
Manchester City Council,Housing General Fund,Building Works,03.10.2018,1906217642,"12,195.42",UPS Building & Maintenance Ltd
Manchester City Council,Housing General Fund,Building Works,03.10.2018,1906217641,"8,479.81",UPS Building & Maintenance Ltd
Manchester City Council,Housing General Fund,Building Works,03.10.2018,1906217644,"5,376.88",UPS Building & Maintenance Ltd
Manchester City Council,Housing General Fund,Building Works,03.10.2018,1906217645,"4,661.89",UPS Building & Maintenance Ltd
Manchester City Council,Housing General Fund,Building Works,03.10.2018,1906217643,"3,377.81",UPS Building & Maintenance Ltd
Manchester City Council,Adult Social Care,Professional fees,03.10.2018,5100997410,"6,000.00",EC Safeguarding Consultancy Ltd
Manchester City Council,Chief Executives,Advertising,03.10.2018,5100998158,595.00,In Touch Local Media Ltd
Manchester City Council,Adult Social Care,Contract Cleaning External,03.10.2018,5100998037,"2,240.00",Kids Start Ltd
Manchester City Council,Chief Executives,Professional fees,03.10.2018,5100998145,"1,102.50",Redacted Personal Information
Manchester City Council,Adult Social Care,Bed and Breakfast Accommodation Expenditure,03.10.2018,5100997831,"1,960.00",Redacted Personal Information
Manchester City Council,Corporate Services,Works and associated costs for Land and Buildings,03.10.2018,5100998126,"1,072.00",Edgerton Management Services
Manchester City Council,Adult Social Care,Rents,03.10.2018,5100998089,"24,978.87",District Homes Cic
Manchester City Council,Corporate Services,Long Term Debtors,03.10.2018,5100998115,"48,760.50",Cert JDS Ltd
Manchester City Council,Adult Social Care,Rents,03.10.2018,1906214292,550.00,Ryan Baker Estate Agents
Manchester City Council,Adult Social Care,Professional fees,03.10.2018,1906210774,"30,000.00",UpRising
Manchester City Council,Adult Social Care,Professional fees,03.10.2018,1906218395,"1,450.00",Marcia Mediation Ltd
Manchester City Council,Adult Social Care,Subsistence and Conference Expenses,03.10.2018,1700083459,-944.00,HOLIDAY COTTAGES
Manchester City Council,Adult Social Care,Personal needs of client,03.10.2018,1906214577,"1,500.00",Redacted Personal Information
Manchester City Council,Adult Social Care,Compensation Payments,03.10.2018,1700083454,"-1,012.00",NATIONALITY DIRECTORAT
Manchester City Council,Chief Executives,Funeral and coroner related services,03.10.2018,1906214297,"2,880.00",Redacted Personal Information
Manchester City Council,Regeneration Finance,Planning Application Fees,03.10.2018,1906212728,"8,544.00",GMS Ltd
Manchester City Council,Insurance Fund,Insurance,03.10.2018,1906212740,700.00,Redacted Personal Information
Manchester City Council,Adult Social Care,Personal needs of client,04.10.2018,5100998061,"3,995.25",Lisclare
Manchester City Council,Adult Social Care,Registered Nursing Homes Permanent Payments,04.10.2018,5100998220,"-27,518.14",Ringway Mews Nursing Home
Manchester City Council,Corporate Services,Postage,04.10.2018,5100998045,"6,938.95",Royal Mail Group Plc
Manchester City Council,Hospitality + Trading Services,Vehicle Fuel Costs,04.10.2018,5100997956,"19,046.12",Carlton Fuels Ltd
Manchester City Council,Hospitality + Trading Services,Vehicle Fuel Costs,04.10.2018,5100997958,"8,472.00",Carlton Fuels Ltd
Manchester City Council,Adult Social Care,Bed and Breakfast Accommodation Expenditure,04.10.2018,5100998272,"1,505.00",Park Crescent Hotel Ltd
Manchester City Council,Highways Services,Payments to Sub-Contractors,04.10.2018,5100998396,"19,286.85",Bt Redcare
Manchester City Council,Corporate Services,Grounds Maintenance Costs,04.10.2018,5100998087,600.66,Back Care Solutions Ltd
Manchester City Council,Manchester Leisure,Contract Cleaning External,04.10.2018,5100997991,"1,577.55",GTS Steam Cleaners
Manchester City Council,Adult Social Care,Personal needs of client,04.10.2018,5100998003,"1,177.70",Connevans Ltd
Manchester City Council,Manchester Leisure,Equipment,04.10.2018,5100998265,"18,897.50",Egbert Taylor Group
Manchester City Council,Manchester Leisure,Equipment,04.10.2018,5100998265,"3,832.50",Egbert Taylor Group
Manchester City Council,Manchester Leisure,Equipment,04.10.2018,5100998258,"-22,730.00",Egbert Taylor Group
Manchester City Council,Hospitality + Trading Services,Vehicle Hire Costs,04.10.2018,5100998260,"1,012.50",R & M Developments Ltd
Manchester City Council,Regeneration Finance,Stationery,04.10.2018,5100998229,"-15,954.72",Showsec International Ltd
Manchester City Council,Adult Social Care,Supporting People Payments,04.10.2018,5100998154,"23,028.50",Sanctuary Housing Association
Manchester City Council,Adult Social Care,Training and Development,04.10.2018,5100998057,750.00,Manchester Metropolitan University
Manchester City Council,Adult Social Care,Training and Development,04.10.2018,5100998059,750.00,Manchester Metropolitan University
Manchester City Council,Adult Social Care,Training and Development,04.10.2018,5100998060,750.00,Manchester Metropolitan University
Manchester City Council,Adult Social Care,Training and Development,04.10.2018,5100998062,750.00,Manchester Metropolitan University
Manchester City Council,Adult Social Care,Training and Development,04.10.2018,5100998063,750.00,Manchester Metropolitan University
Manchester City Council,Manchester Leisure,Library Materials Acquisition,04.10.2018,1906214405,"2,524.50",Azhar Enterrprises
Manchester City Council,Manchester Leisure,Library Materials Acquisition,04.10.2018,1906214408,"1,014.70",Azhar Enterrprises
Manchester City Council,Manchester Leisure,Library Materials Acquisition,04.10.2018,1906214409,"1,010.70",Azhar Enterrprises
Manchester City Council,Manchester Leisure,Library Materials Acquisition,04.10.2018,1906214407,"1,000.70",Azhar Enterrprises
Manchester City Council,Manchester Leisure,Library Materials Acquisition,04.10.2018,1906214404,825.50,Azhar Enterrprises
Manchester City Council,Manchester Leisure,Library Materials Acquisition,04.10.2018,1906214406,691.50,Azhar Enterrprises
Manchester City Council,Manchester Leisure,External repairs and maintenance for buildings,04.10.2018,5100997861,"1,970.00",Groundwork Landscapes Ltd
Manchester City Council,Hospitality + Trading Services,Catering Provisions,04.10.2018,1906219954,"1,215.07",Brake Bros Foodservice Ltd
Manchester City Council,Hospitality + Trading Services,Catering Provisions,04.10.2018,1906219970,987.86,Brake Bros Foodservice Ltd
Manchester City Council,Hospitality + Trading Services,Catering Provisions,04.10.2018,1906219988,801.04,Brake Bros Foodservice Ltd
Manchester City Council,Hospitality + Trading Services,Catering Provisions,04.10.2018,1906220049,726.03,Brake Bros Foodservice Ltd
Manchester City Council,Hospitality + Trading Services,Catering Provisions,04.10.2018,1906220050,703.99,Brake Bros Foodservice Ltd
Manchester City Council,Hospitality + Trading Services,Catering Provisions,04.10.2018,1906219982,671.23,Brake Bros Foodservice Ltd
Manchester City Council,Hospitality + Trading Services,Catering Provisions,04.10.2018,1906219980,657.16,Brake Bros Foodservice Ltd
Manchester City Council,Hospitality + Trading Services,Catering Provisions,04.10.2018,1906219946,600.72,Brake Bros Foodservice Ltd
Manchester City Council,Hospitality + Trading Services,Catering Provisions,04.10.2018,1906219944,574.71,Brake Bros Foodservice Ltd
Manchester City Council,Hospitality + Trading Services,Catering Provisions,04.10.2018,1906220043,565.04,Brake Bros Foodservice Ltd
Manchester City Council,Hospitality + Trading Services,Catering Provisions,04.10.2018,1906220051,530.03,Brake Bros Foodservice Ltd
Manchester City Council,Hospitality + Trading Services,Catering Provisions,04.10.2018,1906220018,505.18,Brake Bros Foodservice Ltd
Manchester City Council,Chief Executives,Third party payments relating to Voluntary Organisations,04.10.2018,5100998268,"12,500.00",Manchester Rape Crisis Line.
Manchester City Council,Adult Social Care,Third party payments to Health Authority,04.10.2018,5100998218,"-16,146.00",The Pennine Acute Hospital Nhs Trus
Manchester City Council,Manchester Leisure,Grant and subscriptions awarded,04.10.2018,5100998285,"10,500.00",Cheshire West and Chester
Manchester City Council,Chief Executives,Professional fees,04.10.2018,5100997857,"32,250.00",Greater Manchester Police
Manchester City Council,Adult Social Care,Electricity,04.10.2018,1906220129,894.56,British Gas Plc
Manchester City Council,Chief Executives,Vehicle Hire Costs,04.10.2018,5100998286,750.75,Manchester Van Hire Ltd
Manchester City Council,Chief Executives,Agency staff provision,04.10.2018,5100998378,"3,439.94",Hays Personnel
Manchester City Council,Chief Executives,Agency staff provision,04.10.2018,5100998381,"3,098.36",Hays Personnel
Manchester City Council,Chief Executives,Agency staff provision,04.10.2018,5100998383,"2,651.38",Hays Personnel
Manchester City Council,Chief Executives,Agency staff provision,04.10.2018,5100998385,"2,113.09",Hays Personnel
Manchester City Council,Chief Executives,Agency staff provision,04.10.2018,5100998386,"1,720.00",Hays Personnel
Manchester City Council,Chief Executives,Agency staff provision,04.10.2018,5100998390,"-2,651.38",Hays Personnel
Manchester City Council,Chief Executives,Agency staff provision,04.10.2018,5100998391,"-3,098.36",Hays Personnel
Manchester City Council,Chief Executives,Agency staff provision,04.10.2018,5100998392,"-3,439.94",Hays Personnel
Manchester City Council,Chief Executives,Vehicle Plant Furniture and Equipment,04.10.2018,5100997980,"10,308.12",Esteem
Manchester City Council,Chief Executives,Vehicle Plant Furniture and Equipment,04.10.2018,5100998211,"-10,308.12",Esteem
Manchester City Council,Chief Executives,Infrastructure Fees,04.10.2018,5100998214,"10,308.12",Esteem
Manchester City Council,Regeneration Finance,Internal Repairs and Maintenance for buildings,04.10.2018,5100998249,"33,790.60",Manchester Working Ltd
Manchester City Council,Regeneration Finance,Preventative Maintenance Work,04.10.2018,5100998253,"7,161.52",Manchester Working Ltd
Manchester City Council,Regeneration Finance,Preventative Maintenance Work,04.10.2018,5100998250,"1,837.99",Manchester Working Ltd
Manchester City Council,Adult Social Care,Compensation Payments,04.10.2018,1700083881,"-6,101.63",The Divine Mercy Primary School
Manchester City Council,Hospitality + Trading Services,Catering Provisions,04.10.2018,1906220022,854.98,Chicken Joes Limited
Manchester City Council,Hospitality + Trading Services,Catering Provisions,04.10.2018,1906220044,561.89,Chicken Joes Limited
Manchester City Council,Highways Services,Building Materials for direct delivery,04.10.2018,1906220638,745.00,Ecomix Concrete Ltd
Manchester City Council,Highways Services,Building Materials for direct delivery,04.10.2018,1906220639,745.00,Ecomix Concrete Ltd
Manchester City Council,Adult Social Care,Subsistence and Conference Expenses,04.10.2018,5100998201,750.00,Inclusive Choice
Manchester City Council,Adult Social Care,Gas,04.10.2018,1906220122,"1,278.55",Gazprom Energy
Manchester City Council,Highways Services,Building Materials for direct delivery,04.10.2018,1906220653,"3,660.00",Benchmark Building Supplies Ltd
Manchester City Council,Highways Services,Building Materials for direct delivery,04.10.2018,1906220647,"2,686.40",Benchmark Building Supplies Ltd
Manchester City Council,Highways Services,Building Materials for direct delivery,04.10.2018,1906220651,"2,686.40",Benchmark Building Supplies Ltd
Manchester City Council,Highways Services,Building Materials for direct delivery,04.10.2018,1906220654,"1,532.80",Benchmark Building Supplies Ltd
Manchester City Council,Highways Services,Building Materials for direct delivery,04.10.2018,1906220648,"1,476.40",Benchmark Building Supplies Ltd
Manchester City Council,Highways Services,Building Materials for direct delivery,04.10.2018,1906220652,"1,286.00",Benchmark Building Supplies Ltd
Manchester City Council,Highways Services,Building Materials for direct delivery,04.10.2018,1906220649,831.92,Benchmark Building Supplies Ltd
Manchester City Council,Highways Services,Building Materials for direct delivery,04.10.2018,1906220650,552.01,Benchmark Building Supplies Ltd
Manchester City Council,Adult Social Care,Equipment,04.10.2018,5100998389,"1,160.00",Ultimate Healthcare
Manchester City Council,Adult Social Care,Third party payments to other Local Authorities,04.10.2018,5100998263,"3,132.00",Alt Payee Acorn Care & Education
Manchester City Council,Chief Executives,Landline Telephone Charges,04.10.2018,5100996813,"2,445.00",The Loop t/a Gamma Telecom Ltd
Manchester City Council,Chief Executives,Landline Telephone Charges,04.10.2018,5100998212,"2,445.00",The Loop t/a Gamma Telecom Ltd
Manchester City Council,Chief Executives,Landline Telephone Charges,04.10.2018,5100998210,"-2,445.00",The Loop t/a Gamma Telecom Ltd
Manchester City Council,Adult Social Care,Supported Accommodation,04.10.2018,5100998074,938.00,Redacted Personal Information
Manchester City Council,Housing Revenue Account,I T Provision,04.10.2018,5100997875,885.00,Aareon UK Ltd
Manchester City Council,Chief Executives,Printing,04.10.2018,5100998095,570.00,NB Colour Print Limited
Manchester City Council,Chief Executives,Printing,04.10.2018,5100998350,-570.00,NB Colour Print Limited
Manchester City Council,Housing General Fund,Building Works,04.10.2018,5100998227,"120,920.63",One Manchester Limited
Manchester City Council,Housing General Fund,Building Works,04.10.2018,5100998226,"-120,920.63",One Manchester Limited
Manchester City Council,Corporate Services,Works and associated costs for Land and Buildings,04.10.2018,5100998267,"117,679.28",Vinci Construction UK Ltd
Manchester City Council,Corporate Services,Works and associated costs for Land and Buildings,04.10.2018,5100998267,"74,612.57",Vinci Construction UK Ltd
Manchester City Council,Chief Executives,Vehicle Plant Furniture and Equipment,04.10.2018,5100997862,650.00,TNP Ltd
Manchester City Council,Chief Executives,Payments to Sub-Contractors,04.10.2018,5100998363,"1,398.22",Redacted Personal Information
Manchester City Council,Chief Executives,Agency staff provision,04.10.2018,5100998262,"1,160.00",Redacted Personal Information
Manchester City Council,Adult Social Care,Rents,04.10.2018,5100997503,"23,514.73",Housing Social Ltd
Manchester City Council,Chief Executives,Payments to Sub-Contractors,04.10.2018,5100998371,553.02,Redacted Personal Information
Manchester City Council,Adult Social Care,Rents,04.10.2018,5100998278,"5,865.76",Eeven Homes Ltd.
Manchester City Council,Adult Social Care,Professional fees,04.10.2018,5100997839,500.00,Autizma
Manchester City Council,Regeneration Finance,Water Service Charges - Metered,04.10.2018,1906220131,"1,435.46",Water Plus Limited
Manchester City Council,Housing General Fund,Building Works,04.10.2018,1906220631,"72,054.62",Abensons Solicitors
Manchester City Council,Adult Social Care,Professional fees,04.10.2018,1906214165,"1,131.11",Pickering Psychology Services Ltd
Manchester City Council,Environment and Operations,Construction Works,04.10.2018,5100997506,"454,174.48",Dawnus Construction
Manchester City Council,Chief Executives,ICT Support & Maintenance,04.10.2018,5100998130,"4,500.00",Modern Mindset Ltd
Manchester City Council,Chief Executives,Licences Purchase,04.10.2018,5100998284,"53,919.00",Spacecraft Creative Limited
Manchester City Council,Adult Social Care,Consultants Fees,04.10.2018,1906220632,"9,653.00",Caroline McKenna Consultancy Ltd
Manchester City Council,Adult Social Care,Consultants Fees,04.10.2018,1906220633,"1,445.00",Caroline McKenna Consultancy Ltd
Manchester City Council,Manchester Leisure,Special Events,04.10.2018,1906214573,600.00,Germanium Music
Manchester City Council,Manchester Leisure,Special Events,04.10.2018,1906214572,530.00,CDM UK Ltd
Manchester City Council,Adult Social Care,Legal Fees,04.10.2018,1906211654,"1,250.00",Redacted Personal Information
Manchester City Council,Chief Executives,Grant and subscriptions awarded,04.10.2018,1906214168,"1,200.00",East Manchester Academy
Manchester City Council,Adult Social Care,Third party payments relating to Voluntary Organisations,05.10.2018,5100998628,"12,500.00",Chorlton Good Neighbours
Manchester City Council,Chief Executives,Training and Development,05.10.2018,5100998616,"1,100.00",North West Employers Ltd
Manchester City Council,Chief Executives,Third party payments relating to Voluntary Organisations,05.10.2018,5100998627,"11,175.00",Benchill Community Centre
Manchester City Council,Manchester Leisure,Payments for services,05.10.2018,5100998091,900.00,W S Education
Manchester City Council,Highways Services,Payments to Sub-Contractors,05.10.2018,5100998395,"17,428.84",Clearway Drainage Systems Ltd
Manchester City Council,Highways Services,Payments to Sub-Contractors,05.10.2018,5100998394,"3,917.40",Clearway Drainage Systems Ltd
Manchester City Council,Highways Services,Payments to Sub-Contractors,05.10.2018,5100998393,"1,004.40",Clearway Drainage Systems Ltd
Manchester City Council,Highways Services,Payments to Sub-Contractors,05.10.2018,5100998406,"-1,004.40",Clearway Drainage Systems Ltd
Manchester City Council,Highways Services,Payments to Sub-Contractors,05.10.2018,5100998407,"-3,917.40",Clearway Drainage Systems Ltd
Manchester City Council,Highways Services,Payments to Sub-Contractors,05.10.2018,5100998397,"-17,428.84",Clearway Drainage Systems Ltd
Manchester City Council,Corporate Services,Professional fees,05.10.2018,5100997805,750.00,Edmond Shipway
Manchester City Council,Corporate Services,Professional fees,05.10.2018,5100997807,750.00,Edmond Shipway
Manchester City Council,Adult Social Care,Transport Coach Hire,05.10.2018,5100998495,"40,000.00",Mantax Radio Taxis Ltd
Manchester City Council,Adult Social Care,Transport Coach Hire,05.10.2018,5100998511,"33,333.33",Mantax Radio Taxis Ltd
Manchester City Council,Adult Social Care,Transport Coach Hire,05.10.2018,5100998516,"33,333.33",Mantax Radio Taxis Ltd
Manchester City Council,Adult Social Care,Transport Coach Hire,05.10.2018,5100998519,"28,698.17",Mantax Radio Taxis Ltd
Manchester City Council,Adult Social Care,Transport Coach Hire,05.10.2018,5100998497,"21,780.80",Mantax Radio Taxis Ltd
Manchester City Council,Adult Social Care,Transport Coach Hire,05.10.2018,5100998515,"-40,000.00",Mantax Radio Taxis Ltd
Manchester City Council,Corporate Services,Transport Taxis,05.10.2018,1906221972,"9,800.33",Mantax Radio Taxis Ltd
Manchester City Council,Chief Executives,Advertising,05.10.2018,5100998504,855.00,The Chartered Institute Of Environm
Manchester City Council,Chief Executives,Works and associated costs for Land and Buildings,05.10.2018,1906221958,"3,954.72",BT PLC
Manchester City Council,Chief Executives,Agency staff provision,05.10.2018,5100998399,"3,407.35",Venn Group Ltd
Manchester City Council,Adult Social Care,Rents,05.10.2018,5100998656,"3,536.56",Anchor Trust
Manchester City Council,Adult Social Care,Rents,05.10.2018,5100998622,"2,682.60",Anchor Trust
Manchester City Council,Adult Social Care,Rents,05.10.2018,5100998661,"2,075.40",Anchor Trust
Manchester City Council,Chief Executives,Third party payments relating to Voluntary Organisations,05.10.2018,5100998618,"10,000.00",Age Concern Manchester
Manchester City Council,Hospitality + Trading Services,Vehicle Hire Costs,05.10.2018,5100998479,"1,038.50",R & M Developments Ltd
Manchester City Council,Hospitality + Trading Services,Vehicle Hire Costs,05.10.2018,5100998502,"1,038.50",R & M Developments Ltd
Manchester City Council,Hospitality + Trading Services,Vehicle Hire Costs,05.10.2018,5100998501,"1,012.50",R & M Developments Ltd
Manchester City Council,Regeneration Finance,Stationery,05.10.2018,5100998230,"15,954.72",Showsec International Ltd
Manchester City Council,Adult Social Care,Rents,05.10.2018,5100998464,"2,868.88",Mosscare Housing Ltd
Manchester City Council,Adult Social Care,Rents,05.10.2018,5100998465,"2,868.88",Mosscare Housing Ltd
Manchester City Council,Adult Social Care,Rents,05.10.2018,5100998466,"2,868.88",Mosscare Housing Ltd
Manchester City Council,Adult Social Care,Rents,05.10.2018,5100998467,"2,868.88",Mosscare Housing Ltd
Manchester City Council,Adult Social Care,Rents,05.10.2018,5100998474,"2,868.88",Mosscare Housing Ltd
Manchester City Council,Adult Social Care,Rents,05.10.2018,5100998477,"2,868.88",Mosscare Housing Ltd
Manchester City Council,Adult Social Care,Rents,05.10.2018,5100998478,"2,868.88",Mosscare Housing Ltd
Manchester City Council,Adult Social Care,Rents,05.10.2018,5100998472,"2,758.52",Mosscare Housing Ltd
Manchester City Council,Adult Social Care,Rents,05.10.2018,5100998473,"2,758.52",Mosscare Housing Ltd
Manchester City Council,Hospitality + Trading Services,Equipment,05.10.2018,5100998641,"1,650.00",Shorrock Trichem
Manchester City Council,Adult Social Care,Equipment,05.10.2018,5100998137,500.00,NRS Healthcare
Manchester City Council,Chief Executives,Printing,05.10.2018,5100998028,"1,240.20",Allied Publicity Serv.(Manchester)
Manchester City Council,Adult Social Care,Professional fees,05.10.2018,1906194992,650.00,Redacted Personal Information
Manchester City Council,Adult Social Care,Extra Care Sheltered Housing Payments,05.10.2018,5100998669,"17,797.73",Creative Support Ltd
Manchester City Council,Adult Social Care,Extra Care Sheltered Housing Payments,05.10.2018,5100998433,"17,326.69",Creative Support Ltd
Manchester City Council,Adult Social Care,Extra Care Sheltered Housing Payments,05.10.2018,5100998436,"17,326.69",Creative Support Ltd
Manchester City Council,Adult Social Care,Extra Care Sheltered Housing Payments,05.10.2018,5100998437,"17,326.69",Creative Support Ltd
Manchester City Council,Adult Social Care,Extra Care Sheltered Housing Payments,05.10.2018,5100998444,"16,143.98",Creative Support Ltd
Manchester City Council,Adult Social Care,Extra Care Sheltered Housing Payments,05.10.2018,5100998445,"16,143.98",Creative Support Ltd
Manchester City Council,Environment and Operations,Construction Works,05.10.2018,5100998082,"3,020.22",Amey Highways Lighting (Manchester)
Manchester City Council,Highways Services,Private Finance and Public Private partnership initiatives,05.10.2018,5100998080,"636,480.16",Amey Highways Lighting (Manchester)
Manchester City Council,Housing Revenue Account,Council Dwelling Adaptations,05.10.2018,5100998447,"5,512.00",Stannah Lift Services Ltd
Manchester City Council,Hospitality + Trading Services,Vehicle Hire Costs,05.10.2018,5100998486,"2,875.00",Gullivers Truck Hire Ltd
Manchester City Council,Hospitality + Trading Services,Vehicle Hire Costs,05.10.2018,5100998257,"2,500.00",Gullivers Truck Hire Ltd
Manchester City Council,Hospitality + Trading Services,Vehicle Hire Costs,05.10.2018,5100998487,"-2,500.00",Gullivers Truck Hire Ltd
Manchester City Council,Chief Executives,Third party payments relating to Voluntary Organisations,05.10.2018,5100998606,"9,463.00",Northmoor Community Association
Manchester City Council,Manchester Leisure,Professional fees,05.10.2018,5100998531,"23,000.00",Ahmed Iqbal Ullah Education Trust
Manchester City Council,Regeneration Finance,External repairs and maintenance for buildings,05.10.2018,5100998042,"2,600.00",Victoria Baths Trust
Manchester City Council,Regeneration Finance,External repairs and maintenance for buildings,05.10.2018,5100998043,520.00,Victoria Baths Trust
Manchester City Council,Housing General Fund,Building Works,05.10.2018,5100998402,"24,794.80",Manchester Care & Repair Ltd
Manchester City Council,Adult Social Care,Third party payments relating to Voluntary Organisations,05.10.2018,5100998603,"13,656.80",Breakthrough Uk Ltd
Manchester City Council,Adult Social Care,Third party payments relating to Voluntary Organisations,05.10.2018,5100998603,"3,414.20",Breakthrough Uk Ltd
Manchester City Council,Chief Executives,Third party payments relating to Voluntary Organisations,05.10.2018,5100998601,"4,750.00",Albert Kennedy Trust
Manchester City Council,Regeneration Finance,Hire of Premises,05.10.2018,5100998513,894.00,The Mechanics Centre Ltd
Manchester City Council,Adult Social Care,Third party payments relating to Voluntary Organisations,05.10.2018,5100998619,"7,750.00",Talbot House Support Centre
Manchester City Council,Chief Executives,Special Events,05.10.2018,5100997856,"1,652.00",Event Technical Support
Manchester City Council,Adult Social Care,Compensation Payments,05.10.2018,1906214571,"5,000.00",Simpson Millar LLP
Manchester City Council,Adult Social Care,Professional fees,05.10.2018,5100998659,540.00,The Big Life Company
Manchester City Council,Adult Social Care,Third party payments relating to Voluntary Organisations,05.10.2018,5100998030,"6,349.50",The Big Life Company
Manchester City Council,Adult Social Care,Third party payments relating to Voluntary Organisations,05.10.2018,5100997971,"3,031.87",The Big Life Company
Manchester City Council,Adult Social Care,Third party payments relating to Voluntary Organisations,05.10.2018,5100997970,"2,598.75",The Big Life Company
Manchester City Council,Manchester Leisure,Legal Fees,05.10.2018,5100998597,710.00,Redacted Personal Information
Manchester City Council,Manchester Leisure,I T Provision,05.10.2018,5100998281,"1,094.40",Insight Direct (Uk) Ltd
Manchester City Council,Hospitality + Trading Services,Vehicle Hire Costs,05.10.2018,5100998167,"62,337.80",Winners Contract Hire Ltd
Manchester City Council,Chief Executives,Telecoms Maintenance,05.10.2018,5100998196,927.40,T.I.S. Limited
Manchester City Council,Regeneration Finance,External repairs and maintenance for buildings,05.10.2018,5100998409,-962.41,Manchester Working Ltd
Manchester City Council,Regeneration Finance,Training and Development,05.10.2018,5100998506,620.00,RICS
Manchester City Council,Manchester Leisure,Equipment,05.10.2018,5100992727,550.00,NU Fire & Security Ltd
Manchester City Council,Adult Social Care,Professional fees,05.10.2018,5100998593,"1,210.00",G-MAP Services Limited
Manchester City Council,Adult Social Care,Carer Support Payments ,05.10.2018,5100998583,"33,726.24",Homecare Support
Manchester City Council,Adult Social Care,Carer Support Payments ,05.10.2018,5100998585,"22,120.57",Homecare Support
Manchester City Council,Adult Social Care,Carer Support Payments ,05.10.2018,5100998587,"3,000.00",Homecare Support
Manchester City Council,Manchester Leisure,"Consumable items eg Toilet rolls, soap etc",05.10.2018,5100997955,"1,590.54",Wessex Pictures
Manchester City Council,Adult Social Care,Equipment,05.10.2018,5100998581,966.25,Beacon House
Manchester City Council,Adult Social Care,Equipment,05.10.2018,5100998549,576.00,Beacon House
Manchester City Council,Adult Social Care,Equipment,05.10.2018,5100998592,576.00,Beacon House
Manchester City Council,Manchester Leisure,Works and associated costs for Land and Buildings,05.10.2018,5100998359,"4,533.33",HAGS-SMP Limited
Manchester City Council,Highways Services,Payments to Sub-Contractors,05.10.2018,5100997457,"5,116.87",Northern Marking Limited
Manchester City Council,Highways Services,Payments to Sub-Contractors,05.10.2018,5100997482,"2,550.00",Northern Marking Limited
Manchester City Council,Hospitality + Trading Services,Consultants Fees,05.10.2018,5100998530,"16,291.00",AA Projects Ltd
Manchester City Council,Manchester Leisure,Equipment,05.10.2018,5100998500,"13,615.20",SSI - Schaefer Limited
Manchester City Council,Adult Social Care,Professional fees,05.10.2018,1906200574,"1,255.60",Advanced Child Care Assessments
Manchester City Council,Manchester Leisure,Grant and subscriptions awarded,05.10.2018,5100998441,800.00,050 Singers
Manchester City Council,Chief Executives,Third party payments relating to Voluntary Organisations,05.10.2018,5100998613,"4,500.00",GAYDIO Community Interest Company
Manchester City Council,Manchester Leisure,Grant and subscriptions awarded,05.10.2018,5100998446,"2,200.00",308th Manchester Scout Group
Manchester City Council,Chief Executives,Third party payments relating to Voluntary Organisations,05.10.2018,5100998631,"6,075.00",Levenshulme Inspire
Manchester City Council,Manchester Leisure,Works and associated costs for Land and Buildings,05.10.2018,5100997802,"679,186.06",ISG Construction Limited
Manchester City Council,Childrens Services,Works and associated costs for Land and Buildings,05.10.2018,5100997511,"141,226.10",ISG Construction Limited
Manchester City Council,Childrens Services,Works and associated costs for Land and Buildings,05.10.2018,5100997631,"43,706.22",ISG Construction Limited
Manchester City Council,Adult Social Care,Professional fees,05.10.2018,1906202186,770.00,Redacted Personal Information
Manchester City Council,Chief Executives,Third party payments relating to Voluntary Organisations,05.10.2018,5100998626,"5,000.00",Justlife Foundation Limited
Manchester City Council,Adult Social Care,Payments for services,05.10.2018,5100998589,"7,500.00",Alere Ltd
Manchester City Council,Adult Social Care,Equipment,05.10.2018,5100998518,"2,025.00",Ultimate Healthcare
Manchester City Council,Chief Executives,Hire of Equipment,05.10.2018,5100998423,"17,595.00",Universal Live
Manchester City Council,Chief Executives,Third party payments relating to Voluntary Organisations,05.10.2018,5100998634,"7,000.00",The Generation Project
Manchester City Council,Manchester Leisure,Refuse Collection,05.10.2018,5100997986,"28,520.17",Biffa Municipal Limited
Manchester City Council,Environment and Operations,Works and associated costs for Land and Buildings,05.10.2018,5100998665,"17,495.40",Biffa Municipal Limited
Manchester City Council,Environment and Operations,Works and associated costs for Land and Buildings,05.10.2018,5100998663,"14,997.84",Biffa Municipal Limited
Manchester City Council,Environment and Operations,Works and associated costs for Land and Buildings,05.10.2018,5100997987,"6,998.16",Biffa Municipal Limited
Manchester City Council,Environment and Operations,Works and associated costs for Land and Buildings,05.10.2018,5100997985,"3,499.08",Biffa Municipal Limited
Manchester City Council,Regeneration Finance,Grounds Maintenance Costs,05.10.2018,5100998139,"36,000.00",Biffa Municipal Limited
Manchester City Council,Chief Executives,Works and associated costs for Land and Buildings,05.10.2018,5100998790,"71,429.00",Office for Metropolitan Architectur
Manchester City Council,Adult Social Care,Bed and Breakfast Accommodation Expenditure,05.10.2018,5100997967,"8,970.00",Redacted Personal Information
Manchester City Council,Adult Social Care,Professional fees,05.10.2018,1906202179,512.10,Middleton Psycology Limited
Manchester City Council,Adult Social Care,Bed and Breakfast Accommodation Expenditure,05.10.2018,5100998509,"7,174.53",K L Properties
Manchester City Council,Chief Executives,ICT Support & Maintenance,05.10.2018,5100995343,"4,440.00",TNP Ltd
Manchester City Council,Chief Executives,ICT Support & Maintenance,05.10.2018,5100995344,"4,010.00",TNP Ltd
Manchester City Council,Chief Executives,ICT Support & Maintenance,05.10.2018,5100994867,"3,970.00",TNP Ltd
Manchester City Council,Chief Executives,ICT Support & Maintenance,05.10.2018,5100998414,"-3,970.00",TNP Ltd
Manchester City Council,Chief Executives,ICT Support & Maintenance,05.10.2018,5100998413,"-4,010.00",TNP Ltd
Manchester City Council,Chief Executives,ICT Support & Maintenance,05.10.2018,5100998412,"-4,440.00",TNP Ltd
Manchester City Council,Highways Services,Training and Development,05.10.2018,5100997892,"1,320.00",Ace Safety Academy
Manchester City Council,Manchester Leisure,Professional fees,05.10.2018,5100998553,833.00,2ZY Limited
Manchester City Council,Regeneration Finance,Professional fees,05.10.2018,5100998625,"21,697.87",City Football Group Limited
Manchester City Council,Corporate Services,Long Term Debtors,05.10.2018,5100998788,"350,846.00",First Step (Ancoats) Ltd
Manchester City Council,Corporate Services,Long Term Debtors,05.10.2018,5100998789,"339,807.71",Blue Dog Property 2 Ltd
Manchester City Council,Adult Social Care,Subsistence and Conference Expenses,05.10.2018,5100998416,"1,000.00",Redacted Personal Information
Manchester City Council,Adult Social Care,Professional fees,05.10.2018,1906205276,720.07,Pickering Psychology Services Ltd
Manchester City Council,Adult Social Care,Personal needs of client,05.10.2018,1906205287,674.66,Brighter Beginnings Newton Heath
Manchester City Council,Adult Social Care,Professional fees,05.10.2018,1906214170,"8,925.00",Redacted Personal Information
Manchester City Council,Adult Social Care,Professional fees,05.10.2018,1906203707,"4,200.00",Redacted Personal Information
Manchester City Council,Adult Social Care,Third party payments to other Local Authorities,05.10.2018,1906201989,"3,866.00",Wathen Grange
Manchester City Council,Corporate Services,Transport Taxis,05.10.2018,1906221323,"14,875.84",MANTAX
Manchester City Council,Corporate Services,Transport Taxis,05.10.2018,1906221954,"13,804.58",MANTAX
Manchester City Council,Corporate Services,Transport Taxis,05.10.2018,1906221185,"10,917.70",MANTAX
Manchester City Council,Chief Executives,Compensation Payments,05.10.2018,1906221182,"2,066.67",Redacted Personal Information
Manchester City Council,Chief Executives,Compensation Payments,05.10.2018,1906221191,"1,525.00",Redacted Personal Information
Manchester City Council,Chief Executives,Compensation Payments,05.10.2018,1906221190,600.00,KBW Barristers Chambers
Manchester City Council,Adult Social Care,Payments for services,08.10.2018,5100998796,"3,711.00",The Together Trust
Manchester City Council,Adult Social Care,Payments for services,08.10.2018,5100998807,"1,477.35",The Together Trust
Manchester City Council,Adult Social Care,Transport Coach Hire,08.10.2018,5100998224,"1,836.00",T/A Beresford Travel
Manchester City Council,Regeneration Finance,I T Provision,08.10.2018,5100997893,"88,956.88",Idox Software Ltd
Manchester City Council,Regeneration Finance,Professional fees,08.10.2018,5100998916,"1,840.00",Reed Business Information Ltd
Manchester City Council,Highways Services,Payments to Contractors,08.10.2018,5100998612,"7,326.99",NSL Ltd
Manchester City Council,Corporate Services,Professional fees,08.10.2018,5100998784,"12,000.00",GVA Grimley Ltd
Manchester City Council,Environment and Operations,Infrastructure - Adaptations,08.10.2018,5100999165,"31,311.76",Clearway Drainage Systems Ltd
Manchester City Council,Hospitality + Trading Services,Hire of Machinery,08.10.2018,5100998844,"21,173.08",F.R.Sharrock Ltd
Manchester City Council,Hospitality + Trading Services,Hire of Machinery,08.10.2018,5100998848,"15,079.62",F.R.Sharrock Ltd
Manchester City Council,Chief Executives,Professional fees,08.10.2018,5100998543,"4,922.26",Building Design Partnership Limited
Manchester City Council,Manchester Leisure,Payments to Sub-Contractors,08.10.2018,5100998714,"1,069.00",Osborne Richardson
Manchester City Council,Manchester Leisure,Payments to Sub-Contractors,08.10.2018,5100998731,810.00,Osborne Richardson
Manchester City Council,Manchester Leisure,Payments to Sub-Contractors,08.10.2018,5100998700,780.40,Osborne Richardson
Manchester City Council,Chief Executives,Agency staff provision,08.10.2018,5100998398,"2,070.00",Venn Group Ltd
Manchester City Council,Chief Executives,Agency staff provision,08.10.2018,5100998400,"1,302.96",Venn Group Ltd
Manchester City Council,Adult Social Care,Supporting People Payments,08.10.2018,5100998569,"23,028.50",Sanctuary Housing Association
Manchester City Council,Adult Social Care,Transport Coach Hire,08.10.2018,5100998353,"4,950.00",D.J. Minibus Travel
Manchester City Council,Adult Social Care,Grant and subscriptions awarded,08.10.2018,5100998668,"8,415.75",Shelter
Manchester City Council,Adult Social Care,Third party payments relating to Voluntary Organisations,08.10.2018,5100998503,"10,867.50",Salvation Army Housing Association
Manchester City Council,Adult Social Care,Third party payments relating to Voluntary Organisations,08.10.2018,5100998505,"3,333.33",Salvation Army Housing Association
Manchester City Council,Adult Social Care,Professional fees,08.10.2018,5100998658,"3,494.00",AECOM Limited
Manchester City Council,Adult Social Care,Professional fees,08.10.2018,5100998655,"2,261.00",AECOM Limited
Manchester City Council,Highways Services,Professional fees,08.10.2018,5100997926,"4,940.00",AECOM Limited
Manchester City Council,Highways Services,Professional fees,08.10.2018,5100998078,"4,819.00",AECOM Limited
Manchester City Council,Highways Services,Professional fees,08.10.2018,5100997964,"3,900.00",AECOM Limited
Manchester City Council,Adult Social Care,Transport Taxis,08.10.2018,1906214308,635.80,Cresta Car Hire
Manchester City Council,Adult Social Care,Third party payments relating to Voluntary Organisations,08.10.2018,5100998825,"12,000.00",Barnardo's North West
Manchester City Council,Adult Social Care,Training and Development,08.10.2018,5100998067,750.00,University Of Salford
Manchester City Council,Highways Services,Training and Development,08.10.2018,5100998064,"2,020.00",University Of Salford
Manchester City Council,Manchester Leisure,Payments to Sub-Contractors,08.10.2018,5100999030,"4,800.00",Clean-Up UK Limited
Manchester City Council,Adult Social Care,Equipment,08.10.2018,5100998482,"1,019.00",NRS Healthcare
Manchester City Council,Manchester Leisure,Payments for services,08.10.2018,5100998136,"2,067.20",Bancroft Amenities Ltd
Manchester City Council,Hospitality + Trading Services,Catering Provisions,08.10.2018,1906222261,"1,213.95",Brake Bros Foodservice Ltd
Manchester City Council,Hospitality + Trading Services,Catering Provisions,08.10.2018,1906222222,876.15,Brake Bros Foodservice Ltd
Manchester City Council,Hospitality + Trading Services,Catering Provisions,08.10.2018,1906222232,590.21,Brake Bros Foodservice Ltd
Manchester City Council,Hospitality + Trading Services,Catering Provisions,08.10.2018,1906222236,558.14,Brake Bros Foodservice Ltd
Manchester City Council,Hospitality + Trading Services,Catering Provisions,08.10.2018,1906222277,552.16,Brake Bros Foodservice Ltd
Manchester City Council,Hospitality + Trading Services,Catering Provisions,08.10.2018,1906222267,535.74,Brake Bros Foodservice Ltd
Manchester City Council,Hospitality + Trading Services,Catering Provisions,08.10.2018,1906222251,506.17,Brake Bros Foodservice Ltd
Manchester City Council,Chief Executives,Printing,08.10.2018,5100998090,945.00,Allied Publicity Serv.(Manchester)
Manchester City Council,Regeneration Finance,Professional fees,08.10.2018,5100998104,"39,746.00",Kpmg Llp
Manchester City Council,Adult Social Care,Payments for services,08.10.2018,5100998853,593.00,Manchester Young Lives
Manchester City Council,Chief Executives,Agency staff provision,08.10.2018,5100998182,"2,495.00",Deekay Technical Recruitment Ltd
Manchester City Council,Adult Social Care,Transport Coach Hire,08.10.2018,5100998435,"16,048.00",Redacted Personal Information
Manchester City Council,Manchester Leisure,I T Provision,08.10.2018,5100998657,"1,360.00",Civica UK Ltd
Manchester City Council,Chief Executives,Publications,08.10.2018,5100998875,679.56,Thompson Reuters
Manchester City Council,Adult Social Care,Third party payments to Health Authority,08.10.2018,5100998111,"14,512.12",Uni Hospital of South Mcr
Manchester City Council,Adult Social Care,Payments for services,08.10.2018,5100998955,"4,448.19",Rossendale School Priory
Manchester City Council,Environment and Operations,Construction Works,08.10.2018,5100998577,"1,247,570.50",Amey Highways Lighting (Manchester)
Manchester City Council,Hospitality + Trading Services,Vehicle Hire Costs,08.10.2018,5100998489,"2,500.00",Gullivers Truck Hire Ltd
Manchester City Council,Adult Social Care,Vehicle Plant Furniture and Equipment,08.10.2018,5100999056,"-7,630.59",The Pennine Acute Hospital Nhs Trus
Manchester City Council,Regeneration Finance,Third party payments relating to Voluntary Organisations,08.10.2018,5100998904,"15,676.25",Pure Innovations Ltd
Manchester City Council,Manchester Leisure,I T Provision,08.10.2018,5100998839,"1,080.00",Stockport Metropolitan Borough
Manchester City Council,Adult Social Care,Third party payments to other Local Authorities,08.10.2018,5100998751,892.80,Bolton Mbc
Manchester City Council,Adult Social Care,Third party payments relating to Voluntary Organisations,08.10.2018,5100998537,"8,158.00",Greater Manchester Immigration Aid
Manchester City Council,Adult Social Care,Third party payments relating to Voluntary Organisations,08.10.2018,5100998633,"73,750.00",Man. Citizens Advice Bureaux
Manchester City Council,Adult Social Care,Third party payments relating to Voluntary Organisations,08.10.2018,5100998637,"6,666.74",Man. Citizens Advice Bureaux
Manchester City Council,Adult Social Care,Third party payments relating to Voluntary Organisations,08.10.2018,5100998630,"4,301.85",Man. Citizens Advice Bureaux
Manchester City Council,Adult Social Care,Supported Accommodation,08.10.2018,5100998526,"25,625.00",Manchester Settlement
Manchester City Council,Adult Social Care,Supported Accommodation,08.10.2018,5100998952,"1,000.00",Manchester Settlement
Manchester City Council,Adult Social Care,Supporting People Payments,08.10.2018,5100998534,758.34,Albert Kennedy Trust
Manchester City Council,Adult Social Care,Training and Development,08.10.2018,5100997939,600.00,Disabled Living
Manchester City Council,Manchester Leisure,Payments for services,08.10.2018,5100998730,"25,100.00",Wright Robinson Sports College
Manchester City Council,Regeneration Finance,Professional fees,08.10.2018,5100998734,"4,644.50",Addleshaw Goddard Solicitors
Manchester City Council,Regeneration Finance,Professional fees,08.10.2018,5100998738,"1,229.40",Addleshaw Goddard Solicitors
Manchester City Council,Regeneration Finance,Professional fees,08.10.2018,5100998747,872.00,Addleshaw Goddard Solicitors
Manchester City Council,Hospitality + Trading Services,Funeral and coroner related services,08.10.2018,5100998890,"3,142.51",G E Robinson & Co Ltd
Manchester City Council,Highways Services,Hire of Machinery,08.10.2018,5100999159,"5,000.00",Cooper Clarke Group Ltd
Manchester City Council,Highways Services,Hire of Machinery,08.10.2018,5100999047,"3,000.00",Cooper Clarke Group Ltd
Manchester City Council,Highways Services,Purchase of stores for re-distribution,08.10.2018,5100999157,"1,660.60",Cooper Clarke Group Ltd
Manchester City Council,Chief Executives,Grant Payments,08.10.2018,5100998685,"3,687.50",Venture Arts Ltd
Manchester City Council,Manchester Leisure,Agency staff provision,08.10.2018,5100998560,"15,533.31",University Of Manchester
Manchester City Council,Highways Services,Payments to Sub-Contractors,08.10.2018,5100998161,"2,980.00",Rosgal Ltd
Manchester City Council,Highways Services,Payments to Sub-Contractors,08.10.2018,5100998076,768.76,Technology Solutions Ltd
Manchester City Council,Adult Social Care,Third party payments to other Local Authorities,08.10.2018,5100997846,"72,083.56",Bury M.B.C.
Manchester City Council,Adult Social Care,Professional fees,08.10.2018,1906214102,"5,310.80",Stockport Psychology Services
Manchester City Council,Adult Social Care,Third party payments relating to Voluntary Organisations,08.10.2018,5100998841,"4,244.75",The Big Life Company
Manchester City Council,Adult Social Care,Third party payments relating to Voluntary Organisations,08.10.2018,5100998905,"2,000.00",The Big Life Company
Manchester City Council,Adult Social Care,Third party payments relating to Voluntary Organisations,08.10.2018,5100998654,691.75,The Big Life Company
Manchester City Council,Highways Services,Legal Fees,08.10.2018,5100998762,650.00,Redacted Personal Information
Manchester City Council,Manchester Leisure,Goods purchased for resale in Council outlets,08.10.2018,5100998896,"1,344.00",Cornflower Ltd
Manchester City Council,Corporate Services,Training and Development,08.10.2018,5100998804,"1,175.00",The College Of Law
Manchester City Council,Highways Services,Compensation Payments,08.10.2018,1906221957,783.00,Department For Work & Pensions
Manchester City Council,Highways Services,Compensation Payments,08.10.2018,1906221324,678.00,Department For Work & Pensions
Manchester City Council,Highways Services,Compensation Payments,08.10.2018,1906221959,678.00,Department For Work & Pensions
Manchester City Council,Highways Services,Compensation Payments,08.10.2018,1906214100,"3,750.00",Platt Halpern
Manchester City Council,Corporate Services,Discounted Car Parking,08.10.2018,1906222202,"9,808.64",National Car Parks Ltd Season Ticke
Manchester City Council,Corporate Services,Discounted Car Parking,08.10.2018,1906222207,830.68,National Car Parks Ltd Season Ticke
Manchester City Council,Corporate Services,Discounted Car Parking,08.10.2018,1700083896,-800.00,National Car Parks Ltd Season Ticke
Manchester City Council,Corporate Services,Professional fees,08.10.2018,5100998748,"9,198.00",Price Waterhouse Coopers LLP
Manchester City Council,Chief Executives,I T Provision,08.10.2018,5100998450,"1,615.92",Insight Direct (Uk) Ltd
Manchester City Council,Chief Executives,I T Provision,08.10.2018,5100998493,"1,077.28",Insight Direct (Uk) Ltd
Manchester City Council,Hospitality + Trading Services,Vehicle Hire Costs,08.10.2018,5100998092,890.00,Winners Contract Hire Ltd
Manchester City Council,Corporate Services,Travel,08.10.2018,5100998012,990.00,Northern
Manchester City Council,Corporate Services,Travel Season Ticket Loan Scheme,08.10.2018,5100998012,990.00,Northern
Manchester City Council,Corporate Services,Travel Season Ticket Loan Scheme,08.10.2018,5100998012,990.00,Northern
Manchester City Council,Corporate Services,Travel Season Ticket Loan Scheme,08.10.2018,5100998012,990.00,Northern
Manchester City Council,Corporate Services,Travel Season Ticket Loan Scheme,08.10.2018,5100998012,990.00,Northern
Manchester City Council,Corporate Services,Travel Season Ticket Loan Scheme,08.10.2018,5100998012,990.00,Northern
Manchester City Council,Corporate Services,Travel Season Ticket Loan Scheme,08.10.2018,5100998012,990.00,Northern
Manchester City Council,Corporate Services,Travel Season Ticket Loan Scheme,08.10.2018,5100998012,990.00,Northern
Manchester City Council,Corporate Services,Travel Season Ticket Loan Scheme,08.10.2018,5100998012,990.00,Northern
Manchester City Council,Corporate Services,Travel Season Ticket Loan Scheme,08.10.2018,5100998012,990.00,Northern
Manchester City Council,Corporate Services,Travel Season Ticket Loan Scheme,08.10.2018,5100998012,896.00,Northern
Manchester City Council,Corporate Services,Travel Season Ticket Loan Scheme,08.10.2018,5100998012,892.00,Northern
Manchester City Council,Corporate Services,Travel Season Ticket Loan Scheme,08.10.2018,5100998012,716.00,Northern
Manchester City Council,Corporate Services,Travel Season Ticket Loan Scheme,08.10.2018,5100998019,"-1,252.80",Northern
Manchester City Council,Corporate Services,Travel Season Ticket Loan Scheme,08.10.2018,5100998019,"-3,144.20",Northern
Manchester City Council,Adult Social Care,Payments for services,08.10.2018,5100998914,"3,200.00",Keys Childcare Ltd
Manchester City Council,Adult Social Care,Payments for services,08.10.2018,5100998954,"3,200.00",Keys Childcare Ltd
Manchester City Council,Adult Social Care,Bed and Breakfast Accommodation Expenditure,08.10.2018,5100998674,"11,091.00",Redacted Personal Information
Manchester City Council,Adult Social Care,Bed and Breakfast Accommodation Expenditure,08.10.2018,5100998675,"8,826.00",Redacted Personal Information
Manchester City Council,Regeneration Finance,Cleaning Equipment and Materials,08.10.2018,5100998967,890.94,Alliance Disposables Ltd
Manchester City Council,Regeneration Finance,Cleaning Equipment,08.10.2018,5100998919,714.80,Alliance Disposables Ltd
Manchester City Council,Adult Social Care,Transport Coach Hire,08.10.2018,5100998861,"7,605.00",Galaxy Transport (Manchester) Ltd
Manchester City Council,Chief Executives,Funeral and coroner related services,08.10.2018,1906214299,844.20,Redacted Personal Information
Manchester City Council,Adult Social Care,Rents,08.10.2018,5100998902,"75,764.71",Accommodation Links Ltd
Manchester City Council,Adult Social Care,Equipment,08.10.2018,5100998688,"1,229.85",Aidapt Bathrooms Ltd
Manchester City Council,Corporate Services,Professional fees,08.10.2018,5100997882,800.00,Watts Group Limited
Manchester City Council,Corporate Services,Vehicle Costs,08.10.2018,1906222209,"7,237.88",Cyclescheme Ltd
Manchester City Council,Corporate Services,Works and associated costs for Land and Buildings,08.10.2018,1906222294,"202,000.00",H M Revenues and Customs
Manchester City Council,Adult Social Care,Grant and subscriptions awarded,08.10.2018,5100998621,"2,500.00",Barnabus
Manchester City Council,Regeneration Finance,Rents,08.10.2018,1906212717,"81,180.00",Regus Management (UK) Ltd
Manchester City Council,Regeneration Finance,Rents,08.10.2018,1906212718,"1,169.00",Regus Management (UK) Ltd
Manchester City Council,Adult Social Care,Public Transport,08.10.2018,5100998746,700.00,Fusion Care Ltd
Manchester City Council,Chief Executives,Agency staff provision,08.10.2018,5100998687,"2,629.90",Ashberry Recruitment Ltd
Manchester City Council,Chief Executives,Agency staff provision,08.10.2018,5100998693,"1,474.90",Ashberry Recruitment Ltd
Manchester City Council,Corporate Services,Works and associated costs for Land and Buildings,08.10.2018,5100998147,"79,173.57",Conlon Construction Ltd
Manchester City Council,Corporate Services,Works and associated costs for Land and Buildings,08.10.2018,5100998147,"29,032.78",Conlon Construction Ltd
Manchester City Council,Adult Social Care,Professional fees,08.10.2018,5100998893,"2,817.80",One Education Ltd
Manchester City Council,Adult Social Care,Legal Fees,08.10.2018,5100998799,"7,560.00",11KBW
Manchester City Council,Adult Social Care,Transport Coach Hire,08.10.2018,5100998280,"1,710.00",JKR Travel
Manchester City Council,Manchester Leisure,Payments for services,08.10.2018,5100998742,540.00,City in the Community
Manchester City Council,Chief Executives,ICT Support & Maintenance,08.10.2018,5100998550,"20,256.96",Bytes Security Partnership Ltd
Manchester City Council,Manchester Leisure,Grant and subscriptions awarded,08.10.2018,5100998826,"1,540.00",Community Minded Ltd
Manchester City Council,Hospitality + Trading Services,Hire of Machinery,08.10.2018,5100998203,912.00,Gibsons Garden Machinery Limited
Manchester City Council,Hospitality + Trading Services,Hire of Machinery,08.10.2018,5100998200,752.00,Gibsons Garden Machinery Limited
Manchester City Council,Hospitality + Trading Services,Hire of Machinery,08.10.2018,5100998216,660.00,Gibsons Garden Machinery Limited
Manchester City Council,Manchester Leisure,Grant and subscriptions awarded,08.10.2018,5100998802,679.00,Chorlton Book Festival
Manchester City Council,Adult Social Care,Transport Coach Hire,08.10.2018,5100998575,"2,400.00",DMC Travel
Manchester City Council,Adult Social Care,Transport Coach Hire,08.10.2018,5100998574,"1,980.00",DMC Travel
Manchester City Council,Adult Social Care,Transport Coach Hire,08.10.2018,5100998573,"1,260.00",DMC Travel
Manchester City Council,Adult Social Care,Bed and Breakfast Accommodation Expenditure,08.10.2018,5100998757,"28,929.00",Redacted Personal Information
Manchester City Council,Adult Social Care,Payments for services,08.10.2018,5100998901,"6,767.25",Cedar House School
Manchester City Council,Adult Social Care,Transport Coach Hire,08.10.2018,5100998355,"2,951.00",T/a K Travel
Manchester City Council,Corporate Services,Gym Membership Scheme,08.10.2018,1906222204,"1,244.63",Greenwich Leisure Limited
Manchester City Council,Manchester Leisure,Grant and subscriptions awarded,08.10.2018,5100998811,928.90,Fallowfield Library & Comm Centre
Manchester City Council,Manchester Leisure,Grant and subscriptions awarded,08.10.2018,5100998815,928.00,Fallowfield Library & Comm Centre
Manchester City Council,Manchester Leisure,Grant and subscriptions awarded,08.10.2018,5100998813,-928.90,Fallowfield Library & Comm Centre
Manchester City Council,Housing General Fund,Capital Receipts,08.10.2018,1906214561,"15,625.00",Redrow Homes Lancashire
Manchester City Council,Chief Executives,Hire of Equipment,08.10.2018,5100998947,525.00,Universal Live
Manchester City Council,Chief Executives,Training and Development,08.10.2018,5100998556,500.00,AuFait Training Consultancy
Manchester City Council,Manchester Leisure,Payments for services,08.10.2018,5100998118,"1,000.00",East M/cr Sport & Acitivity Forum
Manchester City Council,Highways Services,Legal Fees,08.10.2018,5100998672,"1,300.00",Lincoln House Chambers
Manchester City Council,Adult Social Care,Professional fees,08.10.2018,5100998960,"7,342.31",Resolutions Consultancy Pty Ltd
Manchester City Council,Chief Executives,Printing,08.10.2018,5100998178,576.00,NB Colour Print Limited
Manchester City Council,Chief Executives,Printing,08.10.2018,5100998352,570.00,NB Colour Print Limited
Manchester City Council,Adult Social Care,Supporting People Payments,08.10.2018,5100998702,"3,750.00",Safe Families for Children
Manchester City Council,Adult Social Care,Supporting People Payments,08.10.2018,5100998705,"3,750.00",Safe Families for Children
Manchester City Council,Chief Executives,Licences Purchase,08.10.2018,5100998166,"2,730.00",Cloud Technology Solutions Ltd
Manchester City Council,Chief Executives,Payments to Sub-Contractors,08.10.2018,5100998640,999.65,T/A Janus
Manchester City Council,Adult Social Care,Payments for services,08.10.2018,5100998756,"12,338.00",Mary Hare School
Manchester City Council,Adult Social Care,Payments for services,08.10.2018,5100998759,"11,545.00",Mary Hare School
Manchester City Council,Chief Executives,Training and Development,08.10.2018,5100998520,"1,280.00",ServiceNow UK Ltd
Manchester City Council,Regeneration Finance,Stationery,08.10.2018,5100998308,677.94,Banner Group Limited
Manchester City Council,Manchester Leisure,Goods purchased for resale in Council outlets,08.10.2018,5100998859,553.50,Victoria Moorhead Jewellery
Manchester City Council,Adult Social Care,Bed and Breakfast Accommodation Expenditure,08.10.2018,5100998632,"7,159.36",K L Properties
Manchester City Council,Regeneration Finance,Professional fees,08.10.2018,5100998694,"12,000.00",Sport Science Solutions Ltd
Manchester City Council,Chief Executives,Payments to Sub-Contractors,08.10.2018,5100998645,952.55,Redacted Personal Information
Manchester City Council,Chief Executives,Payments to Sub-Contractors,08.10.2018,5100998364,684.03,Redacted Personal Information
Manchester City Council,Chief Executives,Payments to Sub-Contractors,08.10.2018,5100998643,504.42,Redacted Personal Information
Manchester City Council,Chief Executives,Payments to Sub-Contractors,08.10.2018,5100998365,642.46,Redacted Personal Information
Manchester City Council,Chief Executives,Payments to Sub-Contractors,08.10.2018,5100998776,613.82,Redacted Personal Information
Manchester City Council,Adult Social Care,Funeral and coroner related services,08.10.2018,5100998199,"3,331.00",Greater Manchester Funeral Service
Manchester City Council,Adult Social Care,Funeral and coroner related services,08.10.2018,5100998068,"2,443.00",Greater Manchester Funeral Service
Manchester City Council,Regeneration Finance,Third party payments relating to Voluntary Organisations,08.10.2018,5100998572,"5,250.00",Autizma
Manchester City Council,Adult Social Care,Equipment,08.10.2018,5100998864,838.00,TherApp UK Ltd
Manchester City Council,Adult Social Care,Equipment,08.10.2018,5100998867,838.00,TherApp UK Ltd
Manchester City Council,Corporate Services,Works and associated costs for Land and Buildings,08.10.2018,5100998949,"2,432.50",Purcell Miller Tritton LLP
Manchester City Council,Adult Social Care,Grant and subscriptions awarded,08.10.2018,5100998540,"2,666.67",Street Support Network Ltd
Manchester City Council,Manchester Leisure,Professional fees,08.10.2018,5100998944,"12,000.00",Sport Collective Ltd
Manchester City Council,Chief Executives,Grant Payments,08.10.2018,5100998878,"2,900.00",Enei
Manchester City Council,Adult Social Care,Payments for services,08.10.2018,5100998912,"11,074.66",Chatsworth Futures Spec College
Manchester City Council,Manchester Leisure,Professional fees,08.10.2018,5100998809,750.00,Creative City England CIC
Manchester City Council,Regeneration Finance,Professional fees,08.10.2018,5100998499,"6,545.00",Mast LIFT Company Ltd
Manchester City Council,Adult Social Care,Payments for services,08.10.2018,5100998646,"2,475.00",FoodSync CIC
Manchester City Council,Manchester Leisure,Goods purchased for resale in Council outlets,08.10.2018,5100998874,"12,485.00",WWRD Uk Ltd
Manchester City Council,Manchester Leisure,Goods purchased for resale in Council outlets,08.10.2018,5100998854,"2,520.00",WWRD Uk Ltd
Manchester City Council,Manchester Leisure,Professional fees,08.10.2018,5100998777,"3,532.89",Eville and Jones (GB) Ltd
Manchester City Council,Adult Social Care,Contract Cleaning External,08.10.2018,5100997944,561.00,YD Healthcare Ltd
Manchester City Council,Chief Executives,Professional fees,08.10.2018,5100998684,"2,625.00",Pilio Group
Manchester City Council,Manchester Leisure,Grant and subscriptions awarded,08.10.2018,5100998828,625.00,Smithfield Residents Group
Manchester City Council,Corporate Services,Long Term Debtors,08.10.2018,5100999153,"443,389.00",Vesta Street Development Ltd
Manchester City Council,Manchester Leisure,Goods purchased for resale in Council outlets,08.10.2018,5100998870,"1,024.10",Marimekko
Manchester City Council,Chief Executives,Compensation Payments,08.10.2018,1906220854,500.00,Central Chambers
Manchester City Council,Manchester Leisure,Catering,08.10.2018,1906220883,"4,583.33",Northern Events Catering Ltd
Manchester City Council,Manchester Leisure,Professional fees,08.10.2018,1906217630,"22,500.00",Televideo Ltd
Manchester City Council,Adult Social Care,Rents,08.10.2018,1700083895,"-1,040.00",Casement Ventures (Belvoir)
Manchester City Council,Adult Social Care,Transport Taxis,08.10.2018,1906221950,"1,200.00",Cambian Group PLC
Manchester City Council,Adult Social Care,Professional fees,08.10.2018,1906222319,"1,300.00",Bangkok Lawyer Company Ltd
Manchester City Council,Adult Social Care,Compensation Payments,08.10.2018,1906217629,"1,200.00",Unionline Solicitors
Manchester City Council,Adult Social Care,Legal Fees,08.10.2018,1906210951,"1,076.00",Psychiatric Services-North East Ltd
Manchester City Council,Adult Social Care,Compensation Payments,08.10.2018,1906221966,"4,124.00",Trade Union Legal
Manchester City Council,Chief Executives,Compensation Payments,08.10.2018,1906221964,"1,325.00",Redacted Personal Information
Manchester City Council,Regeneration Finance,Non Housing Rent Receipts,08.10.2018,1906212720,625.00,Spirit Pub Company Ltd
Manchester City Council,Highways Services,Compensation Payments,08.10.2018,1906222144,"2,000.00",Nexus Solicitors
Manchester City Council,Highways Services,Compensation Payments,08.10.2018,1906220874,"2,169.00",Nexus Solicitors
Manchester City Council,Chief Executives,Publications,09.10.2018,5100999061,"1,265.00",John Smith & Son (Glasgow) Ltd T/A
Manchester City Council,Chief Executives,Publications,09.10.2018,5100999048,837.00,John Smith & Son (Glasgow) Ltd T/A
Manchester City Council,Chief Executives,Publications,09.10.2018,5100999041,803.00,John Smith & Son (Glasgow) Ltd T/A
Manchester City Council,Housing Revenue Account,Private Finance and Public Private partnership initiatives,09.10.2018,5100999237,"33,189.11",Manchester Energy Company Limited
Manchester City Council,Hospitality + Trading Services,Hire of Machinery,09.10.2018,5100998977,"43,756.47",F.R.Sharrock Ltd
Manchester City Council,Hospitality + Trading Services,Hire of Machinery,09.10.2018,5100998974,"4,800.00",F.R.Sharrock Ltd
Manchester City Council,Corporate Services,Works and associated costs for Land and Buildings,09.10.2018,5100999051,"164,156.04",Ove Arup & Partners Ltd
Manchester City Council,Corporate Services,Works and associated costs for Land and Buildings,09.10.2018,5100999053,"12,166.88",Ove Arup & Partners Ltd
Manchester City Council,Corporate Services,Works and associated costs for Land and Buildings,09.10.2018,5100998991,"7,425.00",Ove Arup & Partners Ltd
Manchester City Council,Corporate Services,Works and associated costs for Land and Buildings,09.10.2018,5100999046,"6,863.00",Ove Arup & Partners Ltd
Manchester City Council,Corporate Services,Works and associated costs for Land and Buildings,09.10.2018,5100999052,"4,893.00",Ove Arup & Partners Ltd
Manchester City Council,Corporate Services,Works and associated costs for Land and Buildings,09.10.2018,5100999044,"2,970.00",Ove Arup & Partners Ltd
Manchester City Council,Highways Services,Grant and subscriptions awarded,09.10.2018,5100998749,"1,137.00",British Parking Association
Manchester City Council,Chief Executives,Equipment Operating Lease,09.10.2018,5100999055,"3,535.98",Xerox Finance Ltd
Manchester City Council,Regeneration Finance,Subsistence and Conference Expenses,09.10.2018,5100998970,850.00,The British Computer Society
Manchester City Council,Manchester Leisure,External repairs and maintenance for buildings,09.10.2018,5100998781,"8,364.35",Clearview Event Services Limited
Manchester City Council,Highways Services,Cleaning Equipment,09.10.2018,5100998022,900.00,Ramora Ltd
Manchester City Council,Highways Services,Cleaning Equipment,09.10.2018,5100998055,900.00,Ramora Ltd
Manchester City Council,Highways Services,Cleaning Equipment,09.10.2018,5100998098,900.00,Ramora Ltd
Manchester City Council,Adult Social Care,Payments for services,09.10.2018,5100999156,"13,445.57",H.G. Care Services Ltd
Manchester City Council,Adult Social Care,Payments for services,09.10.2018,5100999154,"7,014.93",H.G. Care Services Ltd
Manchester City Council,Hospitality + Trading Services,Security,09.10.2018,5100998535,"1,467.81",Showsec International Ltd
Manchester City Council,Corporate Services,Works and associated costs for Land and Buildings,09.10.2018,5100998989,"38,797.82",Mace Ltd
Manchester City Council,Corporate Services,Works and associated costs for Land and Buildings,09.10.2018,5100998994,"21,434.00",Mace Ltd
Manchester City Council,Regeneration Finance,Professional fees,09.10.2018,5100998259,"2,500.00",AECOM Limited
Manchester City Council,Adult Social Care,Third party payments relating to Voluntary Organisations,09.10.2018,5100998829,"12,000.00",Barnardo's North West
Manchester City Council,Adult Social Care,Third party payments relating to Voluntary Organisations,09.10.2018,5100999273,"65,000.00",Riverside ECHG
Manchester City Council,Adult Social Care,Third party payments relating to Voluntary Organisations,09.10.2018,5100999272,"-65,000.00",Riverside ECHG
Manchester City Council,Highways Services,Tipping Charges - Tonnage,09.10.2018,5100998961,"1,441.28",J.Hopkins (Contractors) Ltd.
Manchester City Council,Chief Executives,Third party payments relating to Voluntary Organisations,09.10.2018,5100999002,"5,000.00",Rainbow Haven
Manchester City Council,Regeneration Finance,Grounds Maintenance Costs,09.10.2018,5100998976,"1,950.00",Arboricultural Services Treework
Manchester City Council,Regeneration Finance,Grounds Maintenance Costs,09.10.2018,5100998969,900.00,Arboricultural Services Treework
Manchester City Council,Chief Executives,Advertising,09.10.2018,5100999127,"4,176.48",Reach Publishing Services Ltd
Manchester City Council,Adult Social Care,Transport Coach Hire,09.10.2018,5100998279,"4,770.00",Redacted Personal Information
Manchester City Council,Adult Social Care,Payments for services,09.10.2018,5100999117,"26,665.43",Care Concepts Ltd
Manchester City Council,Adult Social Care,Third party payments relating to Voluntary Organisations,09.10.2018,5100999089,"6,737.00",Great Places Housing Association
Manchester City Council,Adult Social Care,Third party payments relating to Voluntary Organisations,09.10.2018,5100999093,"2,290.00",Great Places Housing Association
Manchester City Council,Adult Social Care,Equipment,09.10.2018,5100999026,816.00,Morris & Alexander Ltd
Manchester City Council,Adult Social Care,Third party payments to Health Authority,09.10.2018,5100977236,"2,975.00",Greater Manchester Mental Health
Manchester City Council,Adult Social Care,Third party payments to Health Authority,09.10.2018,5100998995,"2,975.00",Greater Manchester Mental Health
Manchester City Council,Adult Social Care,Third party payments to Health Authority,09.10.2018,5100998988,"-2,975.00",Greater Manchester Mental Health
Manchester City Council,Chief Executives,Third party payments relating to Voluntary Organisations,09.10.2018,5100999029,"20,111.50",Manchester Carers Centre
Manchester City Council,Adult Social Care,Professional fees,09.10.2018,5100998992,"3,135.00",Pure Innovations Ltd
Manchester City Council,Adult Social Care,Third party payments relating to Voluntary Organisations,09.10.2018,5100998963,"5,312.50",Pure Innovations Ltd
Manchester City Council,Manchester Leisure,Testing Fees,09.10.2018,5100998696,807.00,Lancashire County Council
Manchester City Council,Adult Social Care,Rents,09.10.2018,5100999083,"2,156.70",Adactus Housing Group Ltd
Manchester City Council,Adult Social Care,Supporting People Payments,09.10.2018,5100999079,"4,889.00",Adactus Housing Group Ltd
Manchester City Council,Adult Social Care,Supporting People Payments,09.10.2018,5100999079,"2,780.00",Adactus Housing Group Ltd
Manchester City Council,Highways Services,Hire of Machinery,09.10.2018,5100999034,"3,000.00",Cooper Clarke Group Ltd
Manchester City Council,Highways Services,Hire of Machinery,09.10.2018,5100999038,"-3,000.00",Cooper Clarke Group Ltd
Manchester City Council,Manchester Leisure,External repairs and maintenance for buildings,09.10.2018,5100998545,960.00,Fairway Landscapes Ltd
Manchester City Council,Adult Social Care,Third party payments to other Local Authorities,09.10.2018,5100999270,"72,083.56",Bury M.B.C.
Manchester City Council,Adult Social Care,Third party payments to other Local Authorities,09.10.2018,5100999269,"-72,083.56",Bury M.B.C.
Manchester City Council,Chief Executives,Third party payments relating to Voluntary Organisations,09.10.2018,5100999009,"7,000.00",Higher Blackley Comm.Assoc.
Manchester City Council,Chief Executives,ICT Support & Maintenance,09.10.2018,5100998834,"34,489.81",Insight Direct (Uk) Ltd
Manchester City Council,Housing Revenue Account,Council Dwelling Adaptations,09.10.2018,5100999223,"1,347.74",Pts Plumbing Trade Supplies
Manchester City Council,Housing Revenue Account,Council Dwelling Adaptations,09.10.2018,5100999225,"1,343.43",Pts Plumbing Trade Supplies
Manchester City Council,Housing Revenue Account,Council Dwelling Adaptations,09.10.2018,5100999229,831.50,Pts Plumbing Trade Supplies
Manchester City Council,Chief Executives,Advertising,09.10.2018,5100999174,926.25,TES Global Ltd
Manchester City Council,Chief Executives,Advertising,09.10.2018,5100999175,926.25,TES Global Ltd
Manchester City Council,Chief Executives,Advertising,09.10.2018,5100999176,926.25,TES Global Ltd
Manchester City Council,Chief Executives,Advertising,09.10.2018,5100999177,926.25,TES Global Ltd
Manchester City Council,Chief Executives,Advertising,09.10.2018,5100999178,926.25,TES Global Ltd
Manchester City Council,Manchester Leisure,Professional fees,09.10.2018,5100999003,"8,500.00",GMCA
Manchester City Council,Adult Social Care,Equipment,09.10.2018,5100999080,"4,500.00",Invacare Limited
Manchester City Council,Adult Social Care,Third party payments to other Local Authorities,09.10.2018,5100999129,"4,015.67",Broomwood Primary School
Manchester City Council,Adult Social Care,Third party payments to other Local Authorities,09.10.2018,5100999123,"1,861.26",Broomwood Primary School
Manchester City Council,Adult Social Care,Third party payments to other Local Authorities,09.10.2018,5100999132,755.37,Broomwood Primary School
Manchester City Council,Regeneration Finance,External repairs and maintenance for buildings,09.10.2018,5100999169,500.00,Manchester Working Ltd
Manchester City Council,Corporate Services,Fees,09.10.2018,1906218385,"6,215.40",Newlyn Plc
Manchester City Council,Corporate Services,Fees,09.10.2018,1906218385,"-6,215.40",Newlyn Plc
Manchester City Council,Adult Social Care,Rents,09.10.2018,5100998982,"33,086.13",M & Q Properties Management Ltd
Manchester City Council,Adult Social Care,Transport Coach Hire,09.10.2018,5100998354,"3,390.00",Redacted Personal Information
Manchester City Council,Housing General Fund,Building Works,09.10.2018,5100999257,"113,788.59",Southway Housing Trust
Manchester City Council,Housing General Fund,Building Works,09.10.2018,5100999255,"-113,788.59",Southway Housing Trust
Manchester City Council,Chief Executives,Professional fees,09.10.2018,5100998980,"3,708.20",Greengage Consulting Ltd
Manchester City Council,Chief Executives,Advertising,09.10.2018,5100999036,"2,536.17",Global Radio Services Ltd
Manchester City Council,Chief Executives,Advertising,09.10.2018,5100999043,758.93,Global Radio Services Ltd
Manchester City Council,Adult Social Care,Compensation Payments,09.10.2018,1906214303,"6,101.63",The Divine Mercy Primary School
Manchester City Council,Manchester Leisure,Furniture,09.10.2018,5100999033,"7,300.00",thedesignconcept
Manchester City Council,Chief Executives,Advertising,09.10.2018,5100999073,720.00,MediaCo Outdoor Limited
Manchester City Council,Chief Executives,Advertising,09.10.2018,5100999074,720.00,MediaCo Outdoor Limited
Manchester City Council,Chief Executives,Advertising,09.10.2018,5100999077,720.00,MediaCo Outdoor Limited
Manchester City Council,Chief Executives,Advertising,09.10.2018,5100999078,720.00,MediaCo Outdoor Limited
Manchester City Council,Chief Executives,Internal Repairs and Maintenance for buildings,09.10.2018,5100998623,"18,235.00",Data Centre Environments Ltd
Manchester City Council,Hospitality + Trading Services,External repairs and maintenance for buildings,09.10.2018,5100999202,"1,000.00",Morrison Facilities Services Ltd
Manchester City Council,Manchester Leisure,Works and associated costs for Land and Buildings,09.10.2018,5100999024,600.00,WYG Engineering Ltd
Manchester City Council,Adult Social Care,Equipment,09.10.2018,5100999183,"16,255.50",Independent Life Solutions
Manchester City Council,Adult Social Care,Equipment,09.10.2018,5100999184,"6,000.00",Independent Life Solutions
Manchester City Council,Adult Social Care,Equipment,09.10.2018,5100999185,"1,326.00",Independent Life Solutions
Manchester City Council,Adult Social Care,Equipment,09.10.2018,5100999187,"1,080.00",Independent Life Solutions
Manchester City Council,Adult Social Care,Equipment,09.10.2018,5100999186,662.16,Independent Life Solutions
Manchester City Council,Adult Social Care,Equipment,09.10.2018,5100999182,654.00,Independent Life Solutions
Manchester City Council,Chief Executives,Third party payments relating to Voluntary Organisations,09.10.2018,5100999016,"9,905.00",Women in Prison Limited
Manchester City Council,Chief Executives,Grant Payments,09.10.2018,5100998997,"4,500.00",Reform Radio CIC
Manchester City Council,Regeneration Finance,Third party payments relating to Voluntary Organisations,09.10.2018,5100998984,"13,932.00",Reform Radio CIC
Manchester City Council,Regeneration Finance,Third party payments relating to Voluntary Organisations,09.10.2018,5100999103,"5,985.00",Reform Radio CIC
Manchester City Council,Chief Executives,Grant Payments,09.10.2018,5100999088,"7,312.50",Company Chameleon Limited
Manchester City Council,Chief Executives,Grant Payments,09.10.2018,5100999085,"-7,312.50",Company Chameleon Limited
Manchester City Council,Corporate Services,Fees,09.10.2018,5100998846,"7,932.60",Pannone Corporate LLP
Manchester City Council,Corporate Services,Fees,09.10.2018,5100998810,"2,782.00",Pannone Corporate LLP
Manchester City Council,Manchester Leisure,Payments for services,09.10.2018,5100999021,"8,993.00",The Fitness Training Academy Ltd
Manchester City Council,Adult Social Care,Rents,09.10.2018,5100999119,"110,888.05",Mack Residential Letting Ltd
Manchester City Council,Adult Social Care,Professional fees,09.10.2018,5100999105,"4,887.50",Charles Bailey Associates Ltd
Manchester City Council,Chief Executives,Hire of Equipment,09.10.2018,5100999023,"1,090.00",Universal Live
Manchester City Council,Chief Executives,Hire of Equipment,09.10.2018,5100999025,680.00,Universal Live
Manchester City Council,Adult Social Care,Bed and Breakfast Accommodation Expenditure,09.10.2018,5100999068,"17,189.00",Redacted Personal Information
Manchester City Council,Regeneration Finance,Third party payments to other Local Authorities,09.10.2018,5100998945,"6,300.00",St Vincent's Support Centre
Manchester City Council,Chief Executives,Third party payments relating to Voluntary Organisations,09.10.2018,5100999020,"5,000.00",Together Dementia Support
Manchester City Council,Adult Social Care,Transport Coach Hire,09.10.2018,5100998141,"28,941.00",JCT Travel Ltd
Manchester City Council,Chief Executives,Works and associated costs for Land and Buildings,09.10.2018,1906223914,"71,429.00",Office for Metropolitan Architectur
Manchester City Council,Chief Executives,Works and associated costs for Land and Buildings,09.10.2018,1700083906,"-71,429.00",Office for Metropolitan Architectur
Manchester City Council,Adult Social Care,Third party payments relating to Voluntary Organisations,09.10.2018,5100997380,630.00,One Manchester Limited
Manchester City Council,Adult Social Care,Third party payments relating to Voluntary Organisations,09.10.2018,5100998910,-630.00,One Manchester Limited
Manchester City Council,Adult Social Care,Professional fees,09.10.2018,5100999216,"3,814.80",EC Safeguarding Consultancy Ltd
Manchester City Council,Adult Social Care,Professional fees,09.10.2018,5100999218,"3,814.80",EC Safeguarding Consultancy Ltd
Manchester City Council,Environment and Operations,Professional fees,09.10.2018,5100999017,595.00,Solution Talk LLP
Manchester City Council,Corporate Services,Works and associated costs for Land and Buildings,09.10.2018,5100999018,"19,502.28",Ramboll UK Limited
Manchester City Council,Corporate Services,Works and associated costs for Land and Buildings,09.10.2018,5100999022,"8,175.00",Ramboll UK Limited
Manchester City Council,Corporate Services,Works and associated costs for Land and Buildings,09.10.2018,5100998964,"1,912.50",Ramboll UK Limited
Manchester City Council,Chief Executives,Printing,09.10.2018,5100999161,"1,430.54",Ricoh UK Ltd.
Manchester City Council,Chief Executives,Printing,09.10.2018,5100999162,"-1,430.54",Ricoh UK Ltd.
Manchester City Council,Corporate Services,Works and associated costs for Land and Buildings,09.10.2018,5100999007,"160,000.00",Purcell Miller Tritton LLP
Manchester City Council,Corporate Services,Works and associated costs for Land and Buildings,09.10.2018,5100999012,"17,500.00",Purcell Miller Tritton LLP
Manchester City Council,Corporate Services,Works and associated costs for Land and Buildings,09.10.2018,5100999004,"7,500.00",Purcell Miller Tritton LLP
Manchester City Council,Corporate Services,Works and associated costs for Land and Buildings,09.10.2018,5100998965,"5,687.50",Purcell Miller Tritton LLP
Manchester City Council,Corporate Services,Works and associated costs for Land and Buildings,09.10.2018,5100999008,"4,000.00",Purcell Miller Tritton LLP
Manchester City Council,Regeneration Finance,General Office expenses,09.10.2018,5100999007,"1,233.48",Purcell Miller Tritton LLP
Manchester City Council,Adult Social Care,Payments for services,09.10.2018,5100997996,"2,120.00",North Staffordshire Combined
Manchester City Council,Adult Social Care,Payments for services,09.10.2018,5100999032,"-2,120.00",North Staffordshire Combined
Manchester City Council,Corporate Services,Works and associated costs for Land and Buildings,09.10.2018,5100999313,"1,948,141.00",FQ Developments
Manchester City Council,Corporate Services,Works and associated costs for Land and Buildings,09.10.2018,5100999309,"-1,948,141.00",FQ Developments
Manchester City Council,Corporate Services,Long Term Debtors,09.10.2018,5100999311,"174,506.02",Blue Dog Property 2 Ltd
Manchester City Council,Corporate Services,Long Term Debtors,09.10.2018,5100999307,"-174,506.02",Blue Dog Property 2 Ltd
Manchester City Council,Corporate Services,Long Term Debtors,09.10.2018,5100999312,"1,922,282.00",Manchester New Square Partnership
Manchester City Council,Corporate Services,Long Term Debtors,09.10.2018,5100999310,"-1,922,282.00",Manchester New Square Partnership
Manchester City Council,Chief Executives,Works and associated costs for Land and Buildings,09.10.2018,5100999197,"19,200.00",BLACC Ltd
Manchester City Council,Regeneration Finance,Professional fees,09.10.2018,1906218381,758.63,ARCH
Manchester City Council,Regeneration Finance,Compensation Payments,09.10.2018,1906221328,800.00,Redacted Personal Information
Manchester City Council,Chief Executives,Publications,10.10.2018,5100999427,"31,225.65",Lexis Nexis Uk
Manchester City Council,Manchester Leisure,Professional fees,10.10.2018,5100998857,"6,871.61",Clearview Event Services Limited
Manchester City Council,Corporate Services,Publications,10.10.2018,5100999238,765.44,Child Poverty Action Group
Manchester City Council,Manchester Leisure,Hire of Equipment,10.10.2018,5100998803,"7,740.50",Tube Uk Ltd
Manchester City Council,Manchester Leisure,Professional fees,10.10.2018,5100998892,"15,540.00",Utilities Design & Planning Ltd
Manchester City Council,Environment and Operations,Infrastructure - Adaptations,10.10.2018,5100999106,"50,000.00",Utilities Design & Planning Ltd
Manchester City Council,Highways Services,Hire of Machinery,10.10.2018,5100998797,"4,465.00",Utilities Design & Planning Ltd
Manchester City Council,Hospitality + Trading Services,Hire of Machinery,10.10.2018,5100999353,"1,038.50",R & M Developments Ltd
Manchester City Council,Hospitality + Trading Services,Hire of Machinery,10.10.2018,5100999354,"1,038.50",R & M Developments Ltd
Manchester City Council,Hospitality + Trading Services,Hire of Machinery,10.10.2018,5100999352,"1,012.50",R & M Developments Ltd
Manchester City Council,Hospitality + Trading Services,Hire of Machinery,10.10.2018,5100999355,"1,012.50",R & M Developments Ltd
Manchester City Council,Hospitality + Trading Services,Security,10.10.2018,5100998950,"5,892.06",Showsec International Ltd
Manchester City Council,Adult Social Care,Equipment,10.10.2018,1906227692,516.92,Argos Business Solutions
Manchester City Council,Regeneration Finance,Contract Cleaning External,10.10.2018,5100998879,926.44,M & M Cleaning Services Ltd
Manchester City Council,Housing Revenue Account,Council Dwelling Adaptations,10.10.2018,5100999436,"3,301.18",Rexel UK Ltd
Manchester City Council,Housing Revenue Account,Council Dwelling Adaptations,10.10.2018,5100999438,"1,198.48",Rexel UK Ltd
Manchester City Council,Corporate Services,Professional fees,10.10.2018,5100998548,"2,100.33",Experian Limited
Manchester City Council,Regeneration Finance,Security,10.10.2018,5100999193,"372,462.26",Group 4 Total Security Ltd T/A G4S
Manchester City Council,Manchester Leisure,Professional fees,10.10.2018,5100999593,"9,978.26",Daly Drains Ltd
Manchester City Council,Manchester Leisure,Professional fees,10.10.2018,5100999595,"3,054.30",Daly Drains Ltd
Manchester City Council,Manchester Leisure,Professional fees,10.10.2018,5100999587,"-3,054.30",Daly Drains Ltd
Manchester City Council,Manchester Leisure,Professional fees,10.10.2018,5100999589,"-9,978.26",Daly Drains Ltd
Manchester City Council,Hospitality + Trading Services,Catering Provisions,10.10.2018,1906227597,717.59,Brake Bros Foodservice Ltd
Manchester City Council,Corporate Services,Training and Development,10.10.2018,5100999081,"3,000.00",Stockport College
Manchester City Council,Chief Executives,Catering,10.10.2018,5100999264,567.50,Good Mood Food
Manchester City Council,Chief Executives,Advertising,10.10.2018,5100999124,"2,823.52",Reach Publishing Services Ltd
Manchester City Council,Chief Executives,Agency staff provision,10.10.2018,5100999190,"5,703.49",Deekay Technical Recruitment Ltd
Manchester City Council,Chief Executives,Third party payments relating to Voluntary Organisations,10.10.2018,5100998595,"114,000.00",HOME
Manchester City Council,Chief Executives,Funeral and coroner related services,10.10.2018,5100999361,"2,466.00",The Pennine Acute Hospital Nhs Trus
Manchester City Council,Regeneration Finance,Rodent and Pest Control,10.10.2018,5100998946,"7,647.97",Victoria Baths Trust
Manchester City Council,Regeneration Finance,Third party payments to other Local Authorities,10.10.2018,5100999281,"11,812.50",Rochdale MBC
Manchester City Council,Housing Revenue Account,Northwards Repairs Fee,10.10.2018,5100999398,"1,676,400.00",Northwards Housing Limited
Manchester City Council,Housing Revenue Account,Northwards Repairs Fee,10.10.2018,5100999407,"1,676,400.00",Northwards Housing Limited
Manchester City Council,Housing Revenue Account,Northwards Repairs Fee,10.10.2018,5100999412,"-1,676,400.00",Northwards Housing Limited
Manchester City Council,Housing Revenue Account,Northwards Management Fee,10.10.2018,5100999397,"27,198.11",Northwards Housing Limited
Manchester City Council,Housing General Fund,Building Works,10.10.2018,5100999348,"40,402.40",Manchester Care & Repair Ltd
Manchester City Council,Adult Social Care,Hire of Premises,10.10.2018,5100998847,775.00,Chancellors Hotel & Conf Centre
Manchester City Council,Regeneration Finance,Professional fees,10.10.2018,5100998891,"1,575.83",P Mcguinness & Co Ltd
Manchester City Council,Corporate Services,Compensation Payments,10.10.2018,1906227296,"1,066.50",HMCTS (Manchester)
Manchester City Council,Corporate Services,Compensation Payments,10.10.2018,1906227875,558.00,HMCTS (Manchester)
Manchester City Council,Corporate Services,Compensation Payments,10.10.2018,1906228012,521.50,HMCTS (Manchester)
Manchester City Council,Adult Social Care,Compensation Payments,10.10.2018,1906220869,"6,500.00",Platt Halpern
Manchester City Council,Highways Services,"Clothes, Uniform and Laundry",10.10.2018,5100999278,"2,232.36",Longworth Ltd
Manchester City Council,Hospitality + Trading Services,Vehicle Hire Costs,10.10.2018,5100999575,"24,846.80",Manchester Van Hire Ltd
Manchester City Council,Housing Revenue Account,Council Dwelling Adaptations,10.10.2018,5100999421,"15,567.09",Pts Plumbing Trade Supplies
Manchester City Council,Housing Revenue Account,Council Dwelling Adaptations,10.10.2018,5100999415,"3,270.00",Pts Plumbing Trade Supplies
Manchester City Council,Housing Revenue Account,Council Dwelling Adaptations,10.10.2018,5100999418,"2,169.51",Pts Plumbing Trade Supplies
Manchester City Council,Housing Revenue Account,Council Dwelling Adaptations,10.10.2018,5100999410,"1,984.71",Pts Plumbing Trade Supplies
Manchester City Council,Housing Revenue Account,Council Dwelling Adaptations,10.10.2018,5100999411,711.38,Pts Plumbing Trade Supplies
Manchester City Council,Housing Revenue Account,Council Dwelling Adaptations,10.10.2018,5100999446,601.39,Pts Plumbing Trade Supplies
Manchester City Council,Chief Executives,I T Provision,10.10.2018,1906227543,833.75,Amazon Co.Uk
Manchester City Council,Chief Executives,I T Provision,10.10.2018,1906227373,559.55,Amazon Co.Uk
Manchester City Council,Environment and Operations,Construction Works,10.10.2018,5100999317,"57,201.62",GMCA
Manchester City Council,Environment and Operations,Construction Works,10.10.2018,5100998718,"3,393.54",GMCA
Manchester City Council,Environment and Operations,Construction Works,10.10.2018,5100999316,"-57,201.62",GMCA
Manchester City Council,Adult Social Care,Security,10.10.2018,5100999591,"1,091.00",WADSWORTH SECURITY PRODUCTS
Manchester City Council,Adult Social Care,Security,10.10.2018,5100999586,"-1,091.00",WADSWORTH SECURITY PRODUCTS
Manchester City Council,Manchester Leisure,Professional fees,10.10.2018,5100999447,911.95,Running Imp Int. Sports Ltd
Manchester City Council,Housing Revenue Account,Council Dwelling Adaptations,10.10.2018,5100999422,"6,243.21",Manchester Working Ltd
Manchester City Council,Chief Executives,Funeral and coroner related services,10.10.2018,5100999362,580.80,Redacted Personal Information
Manchester City Council,Highways Services,Payments to Sub-Contractors,10.10.2018,5100996367,"5,948.03",Northern Marking Limited
Manchester City Council,Chief Executives,Advertising,10.10.2018,5100999256,"10,213.56",Global Radio Services Ltd
Manchester City Council,Chief Executives,Advertising,10.10.2018,5100999254,"3,491.07",Global Radio Services Ltd
Manchester City Council,Adult Social Care,Equipment,10.10.2018,5100999444,"2,224.90",Aidapt Bathrooms Ltd
Manchester City Council,Highways Services,Occupational Health services,10.10.2018,1906227186,720.00,Healthwork Ltd
Manchester City Council,Adult Social Care,Payments for services,10.10.2018,5100998907,"4,386.10",Enhance EHC Ltd
Manchester City Council,Adult Social Care,Rents,10.10.2018,5100999179,"32,796.22",United Property Management Ltd
Manchester City Council,Corporate Services,Training and Development,10.10.2018,5100999394,900.00,CIPFA NW & NW Audit Group
Manchester City Council,Adult Social Care,Personal needs of client,10.10.2018,5100984906,"4,088.23",Specialised Orthotic Services Ltd
Manchester City Council,Adult Social Care,Personal needs of client,10.10.2018,5100999262,-600.00,Specialised Orthotic Services Ltd
Manchester City Council,GMIST (Greater Mcr Integrated),Storage Costs,10.10.2018,5100997942,"2,931.94",DeepStore
Manchester City Council,GMIST (Greater Mcr Integrated),Storage Costs,10.10.2018,5100997941,585.21,DeepStore
Manchester City Council,Chief Executives,Agency staff provision,10.10.2018,5100999297,"1,474.90",Ashberry Recruitment Ltd
Manchester City Council,Chief Executives,Examination Fees,10.10.2018,5100999358,"2,450.00",ROAR Forensics Ltd
Manchester City Council,Chief Executives,Examination Fees,10.10.2018,5100999359,"1,605.00",ROAR Forensics Ltd
Manchester City Council,Hospitality + Trading Services,Vehicle Hire Costs,10.10.2018,5100999291,"1,700.00",Peter Douglass Platforms
Manchester City Council,Hospitality + Trading Services,Vehicle Hire Costs,10.10.2018,5100999292,"1,200.00",Peter Douglass Platforms
Manchester City Council,Manchester Leisure,Contract Cleaning External,10.10.2018,5100998763,"3,283.25",Scrutiny Cleaning Services
Manchester City Council,Manchester Leisure,Payments to Sub-Contractors,10.10.2018,5100998764,"4,813.20",Scrutiny Cleaning Services
Manchester City Council,Corporate Services,Works and associated costs for Land and Buildings,10.10.2018,5100999000,"8,240.00",Planit
Manchester City Council,Housing Revenue Account,Council Dwelling Adaptations,10.10.2018,5100999431,510.48,SIG Roofing Supplies
Manchester City Council,Manchester Leisure,Professional fees,10.10.2018,5100993620,946.90,Vetspeed Ltd t/a Novus Environmenta
Manchester City Council,Corporate Services,Professional fees,10.10.2018,5100999305,"1,696.35",Keelagher Okey Associates Ltd t/a
Manchester City Council,Corporate Services,Professional fees,10.10.2018,5100999303,"-1,696.35",Keelagher Okey Associates Ltd t/a
Manchester City Council,Adult Social Care,Third party payments relating to Voluntary Organisations,10.10.2018,5100999289,"498,000.00","CGL - Change, Grow, Live"
Manchester City Council,Adult Social Care,Third party payments relating to Voluntary Organisations,10.10.2018,5100999318,"44,308.08","CGL - Change, Grow, Live"
Manchester City Council,Adult Social Care,Professional fees,10.10.2018,5100999282,"2,650.00",Independent Life Solutions
Manchester City Council,Corporate Services,Heart of Manchester Bid,10.10.2018,5100999219,"400,000.00",Heart of Manchester BID Co Ltd
Manchester City Council,Housing Revenue Account,Council Dwelling Adaptations,10.10.2018,5100999405,896.76,Vista Panels Ltd
Manchester City Council,Housing Revenue Account,Council Dwelling Adaptations,10.10.2018,5100999373,686.26,Vista Panels Ltd
Manchester City Council,Housing Revenue Account,Council Dwelling Adaptations,10.10.2018,5100999443,684.41,Vista Panels Ltd
Manchester City Council,Chief Executives,Advertising,10.10.2018,1906228019,561.66,Facebook (CARD ONLY)
Manchester City Council,Chief Executives,Advertising,10.10.2018,1906227659,543.80,Facebook (CARD ONLY)
Manchester City Council,Chief Executives,Advertising,10.10.2018,1906227462,542.18,Facebook (CARD ONLY)
Manchester City Council,Chief Executives,Advertising,10.10.2018,1906227342,517.90,Facebook (CARD ONLY)
Manchester City Council,Housing Revenue Account,Council Dwelling Adaptations,10.10.2018,5100999385,926.64,IG Doors Ltd
Manchester City Council,Housing Revenue Account,Council Dwelling Adaptations,10.10.2018,5100999386,523.58,IG Doors Ltd
Manchester City Council,Manchester Leisure,Special Events,10.10.2018,5100999323,"1,170.00",The Circus House
Manchester City Council,Corporate Services,Professional fees,10.10.2018,5100999075,"2,020.00",Lucion Environmental Ltd
Manchester City Council,Adult Social Care,Transport Coach Hire,10.10.2018,5100999284,"2,221.00",Nelson Transport
Manchester City Council,Adult Social Care,Supporting People Payments,10.10.2018,5100998085,541.66,Wythenshawe Community Housing Group
Manchester City Council,Chief Executives,Agency staff provision,10.10.2018,5100998985,"14,157.16",Cadence Resourcing Ltd
Manchester City Council,Manchester Leisure,Professional fees,10.10.2018,5100999301,700.00,Redacted Personal Information
Manchester City Council,Manchester Leisure,Professional fees,10.10.2018,5100999388,"-1,500.00",Redacted Personal Information
Manchester City Council,Manchester Leisure,Professional fees,10.10.2018,5100999388,"-3,500.00",Redacted Personal Information
Manchester City Council,Adult Social Care,Rents,10.10.2018,5100999384,"5,865.76",Eeven Homes Ltd.
Manchester City Council,Adult Social Care,Bed and Breakfast Accommodation Expenditure,10.10.2018,5100999092,"2,080.00",Redacted Personal Information
Manchester City Council,Adult Social Care,Supported Accommodation,10.10.2018,5100999439,930.00,White Lodge Hotel
Manchester City Council,Adult Social Care,Rents,10.10.2018,5100999347,"2,346.22",AJD Property Limited
Manchester City Council,Regeneration Finance,External repairs and maintenance for buildings,10.10.2018,5100997460,780.00,Cheshire Scaffolds Ltd
Manchester City Council,Housing Revenue Account,Council Dwelling Adaptations,10.10.2018,5100999440,"5,162.92",Rixonway Kitchens Limited
Manchester City Council,Adult Social Care,Personal needs of client,10.10.2018,5100999268,"2,255.60",Direct Healthcare Group Ltd
Manchester City Council,Adult Social Care,Professional fees,10.10.2018,5100998570,"4,800.00",AJM Robertson Consulting Ltd
Manchester City Council,Chief Executives,Works and associated costs for Land and Buildings,10.10.2018,5100999345,"58,594.35",CMS Cameron McKenna
Manchester City Council,Manchester Leisure,Equipment,10.10.2018,1906223887,"5,930.00",Made.com Design Ltd
Manchester City Council,Manchester Leisure,Equipment,10.10.2018,1906227353,"4,680.00",HTTP://WWW.GALATENT.CO
Manchester City Council,Manchester Leisure,Professional fees,10.10.2018,1906227465,997.00,FRIENDS HOUSE
Manchester City Council,Manchester Leisure,Library Materials Acquisition,10.10.2018,1906228108,"2,793.30",RILEY DUNN & WILSO
Manchester City Council,Manchester Leisure,Special Events,10.10.2018,1906223192,"1,057.88",Platt Claremont Residents
Manchester City Council,Manchester Leisure,Special Events,10.10.2018,1906222143,600.00,Ri Ri's Dance Academy
Manchester City Council,Hospitality + Trading Services,Stationery,10.10.2018,1906227649,595.93,SUK RETAIL LTD
Manchester City Council,Adult Social Care,Vehicle Parts and Spares,10.10.2018,1906227393,"1,134.00",CAR AUDIO & ACCESSORIE
Manchester City Council,Adult Social Care,Travel,10.10.2018,1906227513,737.00,HOLIDAY PAYMENT VRUK
Manchester City Council,Adult Social Care,Building Materials for direct delivery,10.10.2018,1906227934,648.00,AO RETAIL LIMITED
Manchester City Council,Adult Social Care,Professional fees,10.10.2018,1906227418,"1,747.00",PROPERTY PLUS
Manchester City Council,Adult Social Care,Professional fees,10.10.2018,1906227392,"1,100.00",BRENTWOOD LETTINGS LTD
Manchester City Council,Adult Social Care,Professional fees,10.10.2018,1906228145,650.00,IZ *RENT SOLUTIONS
Manchester City Council,Adult Social Care,Subsistence and Conference Expenses,10.10.2018,1906227839,"1,449.00",STAY INN HOTEL MANCHES
Manchester City Council,Adult Social Care,Subsistence and Conference Expenses,10.10.2018,1906227627,"1,037.00",HOLIDAYINN E MANCAIRPO
Manchester City Council,Adult Social Care,Subsistence and Conference Expenses,10.10.2018,1906227359,944.00,HOLIDAY COTTAGES
Manchester City Council,Adult Social Care,Subsistence and Conference Expenses,10.10.2018,1906227384,698.45,STAY INN HOTEL MANCHES
Manchester City Council,Adult Social Care,Bed and Breakfast Accommodation Expenditure,10.10.2018,1906227401,547.00,PREMIER INN44020530
Manchester City Council,Adult Social Care,Payments for services,10.10.2018,1906227985,854.00,PREMIER INN44014985
Manchester City Council,Adult Social Care,Payments for services,10.10.2018,1906227321,830.00,PREMIER INN44521300
Manchester City Council,Adult Social Care,Payments for services,10.10.2018,1906228138,820.00,PREMIER INN44013615
Manchester City Council,Adult Social Care,Payments for services,10.10.2018,1906227317,767.00,PREMIER INN 44531690
Manchester City Council,Adult Social Care,Payments for services,10.10.2018,1906228135,750.00,PREMIER INN44521300
Manchester City Council,Adult Social Care,Payments for services,10.10.2018,1906227987,506.50,PREMIER INN44014985
Manchester City Council,Adult Social Care,Compensation Payments,10.10.2018,1906227295,"1,012.00",NATIONALITY DIRECTORAT
Manchester City Council,Chief Executives,Training and Development,10.10.2018,1906228011,800.00,CILEX LAW SCHOOL LIMIT
Manchester City Council,Chief Executives,Meeting Refreshments,10.10.2018,1700083907,-583.33,AAT Leisure
Manchester City Council,Chief Executives,Printing,10.10.2018,1906227919,"2,292.98",CONTROLACCOUNT
Manchester City Council,Chief Executives,Professional fees,10.10.2018,1906227435,900.00,WWW.PRCA.ORG.UK
Manchester City Council,Chief Executives,Professional fees,10.10.2018,1906227873,680.00,CHARTERED INST OF LEGA
Manchester City Council,Chief Executives,Professional fees,10.10.2018,1906228158,600.89,INDEED
Manchester City Council,Chief Executives,Professional fees,10.10.2018,1906227835,576.87,EB *THE WESTCO ACADEMY
Manchester City Council,Chief Executives,Hospitality,10.10.2018,1906227656,"1,030.00",THE CASTLEFIELD ROOMS
Manchester City Council,Regeneration Finance,Planning Application Fees,10.10.2018,1700083909,-580.00,InLink Limited
Manchester City Council,Adult Social Care,Payments for services,11.10.2018,5100999730,"37,081.20",The Together Trust
Manchester City Council,Adult Social Care,Payments for services,11.10.2018,5100999729,"33,481.60",The Together Trust
Manchester City Council,Adult Social Care,Payments for services,11.10.2018,5100999644,"28,774.20",The Together Trust
Manchester City Council,Adult Social Care,Payments for services,11.10.2018,5100999557,"23,093.33",The Together Trust
Manchester City Council,Adult Social Care,Payments for services,11.10.2018,5100999600,"3,975.00",The Together Trust
Manchester City Council,Adult Social Care,Payments for services,11.10.2018,5100999559,"1,068.00",The Together Trust
Manchester City Council,Adult Social Care,Payments for services,11.10.2018,5100999742,737.30,The Together Trust
Manchester City Council,Housing Revenue Account,Council Dwelling Adaptations,11.10.2018,5100999803,"15,259.00",Pollock Lifts Ltd
Manchester City Council,Adult Social Care,Furniture,11.10.2018,5100999631,"1,017.00",The Furnishing Service Ltd
Manchester City Council,Adult Social Care,Furniture,11.10.2018,5100999658,833.80,The Furnishing Service Ltd
Manchester City Council,Adult Social Care,Furniture,11.10.2018,5100999633,772.90,The Furnishing Service Ltd
Manchester City Council,Adult Social Care,Furniture,11.10.2018,5100999649,695.00,The Furnishing Service Ltd
Manchester City Council,Adult Social Care,Furniture,11.10.2018,5100999655,633.00,The Furnishing Service Ltd
Manchester City Council,Adult Social Care,Furniture,11.10.2018,5100999664,598.08,The Furnishing Service Ltd
Manchester City Council,Corporate Services,Printing,11.10.2018,5100998653,"2,010.00",Mail Solutions
Manchester City Council,Corporate Services,Postage,11.10.2018,5100999409,612.29,Royal Mail Group Plc
Manchester City Council,Adult Social Care,Furniture,11.10.2018,5100999932,695.90,Eps Supplies Ltd
Manchester City Council,Highways Services,Payments to Sub-Contractors,11.10.2018,5100999977,"1,296.25",Clearway Drainage Systems Ltd
Manchester City Council,Manchester Leisure,Library Materials Acquisition,11.10.2018,1906223381,"1,648.10",Martin-Lavell Limited
Manchester City Council,Highways Services,Building Materials for direct delivery,11.10.2018,5100999563,913.28,Aggregate Industries T/A Kennedy As
Manchester City Council,Adult Social Care,Training and Development,11.10.2018,5100999783,588.00,Luther King House Educational Trust
Manchester City Council,Adult Social Care,Rents,11.10.2018,5100999751,"60,195.26",B & A Properties
Manchester City Council,Adult Social Care,Transport Coach Hire,11.10.2018,5100999287,"2,242.00",Saltax Ltd
Manchester City Council,Manchester Leisure,Professional fees,11.10.2018,5100999582,"9,624.69",The Manchester College
Manchester City Council,Manchester Leisure,Professional fees,11.10.2018,5100999582,"8,820.94",The Manchester College
Manchester City Council,Adult Social Care,Supported Accommodation,11.10.2018,5100999138,"2,769.20",Northgate Public Services (UK) Ltd
Manchester City Council,Hospitality + Trading Services,Hire of Machinery,11.10.2018,5100999735,829.38,R & M Developments Ltd
Manchester City Council,Hospitality + Trading Services,Hire of Machinery,11.10.2018,5100999736,829.38,R & M Developments Ltd
Manchester City Council,Hospitality + Trading Services,Hire of Machinery,11.10.2018,5100999739,790.49,R & M Developments Ltd
Manchester City Council,Hospitality + Trading Services,Hire of Machinery,11.10.2018,5100999743,790.49,R & M Developments Ltd
Manchester City Council,Adult Social Care,Third party payments relating to Voluntary Organisations,11.10.2018,5100999507,"10,867.50",Salvation Army Housing Association
Manchester City Council,Adult Social Care,Third party payments relating to Voluntary Organisations,11.10.2018,5100999511,"10,867.50",Salvation Army Housing Association
Manchester City Council,Adult Social Care,Third party payments relating to Voluntary Organisations,11.10.2018,5100999514,"10,867.50",Salvation Army Housing Association
Manchester City Council,Adult Social Care,Third party payments relating to Voluntary Organisations,11.10.2018,5100999496,"3,333.33",Salvation Army Housing Association
Manchester City Council,Adult Social Care,Third party payments relating to Voluntary Organisations,11.10.2018,5100999499,"3,333.33",Salvation Army Housing Association
Manchester City Council,Adult Social Care,Third party payments relating to Voluntary Organisations,11.10.2018,5100999503,"3,333.33",Salvation Army Housing Association
Manchester City Council,Manchester Leisure,Library Materials Acquisition,11.10.2018,1906223429,510.10,Azhar Enterrprises
Manchester City Council,Manchester Leisure,Library Materials Acquisition,11.10.2018,1906223428,500.10,Azhar Enterrprises
Manchester City Council,Regeneration Finance,Hire of Machinery,11.10.2018,5100997993,"1,083.35",Portakabin Ltd
Manchester City Council,Highways Services,Tipping Charges - Tonnage,11.10.2018,5100999467,"1,337.76",J.Hopkins (Contractors) Ltd.
Manchester City Council,Hospitality + Trading Services,Catering Provisions,11.10.2018,1906228838,"1,079.23",Brake Bros Foodservice Ltd
Manchester City Council,Hospitality + Trading Services,Catering Provisions,11.10.2018,1906228879,"1,053.64",Brake Bros Foodservice Ltd
Manchester City Council,Hospitality + Trading Services,Catering Provisions,11.10.2018,1906228901,993.68,Brake Bros Foodservice Ltd
Manchester City Council,Hospitality + Trading Services,Catering Provisions,11.10.2018,1906228780,706.28,Brake Bros Foodservice Ltd
Manchester City Council,Hospitality + Trading Services,Catering Provisions,11.10.2018,1906228833,660.07,Brake Bros Foodservice Ltd
Manchester City Council,Hospitality + Trading Services,Catering Provisions,11.10.2018,1906228928,593.16,Brake Bros Foodservice Ltd
Manchester City Council,Hospitality + Trading Services,Catering Provisions,11.10.2018,1906228811,589.69,Brake Bros Foodservice Ltd
Manchester City Council,Hospitality + Trading Services,Catering Provisions,11.10.2018,1906228899,525.50,Brake Bros Foodservice Ltd
Manchester City Council,Hospitality + Trading Services,Catering Provisions,11.10.2018,1906228897,513.67,Brake Bros Foodservice Ltd
Manchester City Council,Hospitality + Trading Services,Catering Provisions,11.10.2018,1906228893,500.57,Brake Bros Foodservice Ltd
Manchester City Council,Highways Services,Building Materials for direct delivery,11.10.2018,5100999857,"2,087.46",TARMAC
Manchester City Council,Highways Services,Building Materials for direct delivery,11.10.2018,5100999861,510.45,TARMAC
Manchester City Council,Libraries and Theatres,Training and Development,11.10.2018,5100998719,"2,190.00",Seta Ltd
Manchester City Council,Chief Executives,Advertising,11.10.2018,5100999468,"23,162.82",Reach Publishing Services Ltd
Manchester City Council,Chief Executives,Advertising,11.10.2018,5100999468,"8,257.18",Reach Publishing Services Ltd
Manchester City Council,Adult Social Care,Rents,11.10.2018,1906226988,"1,040.00",Happy Homes Uk Ltd
Manchester City Council,Adult Social Care,Personal needs of client,11.10.2018,5100998820,"2,250.90",Jenx Ltd
Manchester City Council,Adult Social Care,Signers/Interpreters Fees,11.10.2018,5100999332,851.20,Language Line Ltd
Manchester City Council,Adult Social Care,Vehicle Plant Furniture and Equipment,11.10.2018,5100999520,"153,479.38",Central Mcr Uni Hospital t/a
Manchester City Council,Hospitality + Trading Services,Refuse Collection,11.10.2018,5100998584,"62,500.00",Fairfield Environmental Serv Ltd
Manchester City Council,Adult Social Care,Third party payments to other Local Authorities,11.10.2018,5100999796,"6,820.80",Rochdale MBC
Manchester City Council,Adult Social Care,Equipment,11.10.2018,5100999804,"1,550.00",Telecare Services Association
Manchester City Council,Highways Services,Hire of Machinery,11.10.2018,5100998558,750.00,Transport for Greater Manchester
Manchester City Council,Adult Social Care,Third party payments relating to Voluntary Organisations,11.10.2018,5100999567,"7,003.00",Redacted Personal Information
Manchester City Council,Corporate Services,Professional fees,11.10.2018,5100997489,"6,160.00",Turner & Townsend Cost
Manchester City Council,Corporate Services,Professional fees,11.10.2018,5100997488,"1,311.50",Turner & Townsend Cost
Manchester City Council,Adult Social Care,Transport Coach Hire,11.10.2018,5100999757,"3,436.40",Lancashire County Council
Manchester City Council,Adult Social Care,Rents,11.10.2018,5100999568,837.60,Greater Manchester Police Sports &
Manchester City Council,Chief Executives,Printing,11.10.2018,5100999349,"3,229.00",Chapel Press Ltd
Manchester City Council,Chief Executives,Works and associated costs for Land and Buildings,11.10.2018,5100999603,"1,219.54",Egan Reid Stationery Co Ltd
Manchester City Council,Libraries and Theatres,Training and Development,11.10.2018,5100999448,780.00,Skyreach Access Solutions Ltd
Manchester City Council,Manchester Leisure,Electricity,11.10.2018,1906229020,701.04,Npower
Manchester City Council,Hospitality + Trading Services,Electricity,11.10.2018,1906229036,"30,540.64",Npower
Manchester City Council,Hospitality + Trading Services,Electricity,11.10.2018,1906228988,"15,711.68",Npower
Manchester City Council,Hospitality + Trading Services,Electricity,11.10.2018,1906229010,"6,069.74",Npower
Manchester City Council,Hospitality + Trading Services,Electricity,11.10.2018,1906229059,"2,902.80",Npower
Manchester City Council,Hospitality + Trading Services,Electricity,11.10.2018,1906229033,"1,765.03",Npower
Manchester City Council,Hospitality + Trading Services,Electricity,11.10.2018,1906228982,"1,285.27",Npower
Manchester City Council,Adult Social Care,Electricity,11.10.2018,1906229030,967.43,Npower
Manchester City Council,Adult Social Care,Electricity,11.10.2018,1906229056,902.10,Npower
Manchester City Council,Adult Social Care,Electricity,11.10.2018,1906229043,772.74,Npower
Manchester City Council,Adult Social Care,Electricity,11.10.2018,1906229041,710.71,Npower
Manchester City Council,Adult Social Care,Electricity,11.10.2018,1906229058,683.30,Npower
Manchester City Council,Adult Social Care,Electricity,11.10.2018,1906228997,666.81,Npower
Manchester City Council,Adult Social Care,Electricity,11.10.2018,1906229057,614.81,Npower
Manchester City Council,Corporate Services,Electricity,11.10.2018,1906229055,"3,253.85",Npower
Manchester City Council,Corporate Services,Electricity,11.10.2018,1906229026,727.42,Npower
Manchester City Council,Corporate Services,Electricity,11.10.2018,1906229028,630.20,Npower
Manchester City Council,Corporate Services,Electricity,11.10.2018,1906229045,618.33,Npower
Manchester City Council,Corporate Services,Electricity,11.10.2018,1906229002,615.41,Npower
Manchester City Council,Corporate Services,Electricity,11.10.2018,1906229054,607.81,Npower
Manchester City Council,Corporate Services,Electricity,11.10.2018,1906229046,568.22,Npower
Manchester City Council,Corporate Services,Electricity,11.10.2018,1906229004,509.45,Npower
Manchester City Council,Regeneration Finance,Electricity,11.10.2018,1906229044,"30,221.96",Npower
Manchester City Council,Regeneration Finance,Electricity,11.10.2018,1906229047,"23,465.06",Npower
Manchester City Council,Regeneration Finance,Electricity,11.10.2018,1906229034,"19,030.10",Npower
Manchester City Council,Regeneration Finance,Electricity,11.10.2018,1906228983,"15,794.25",Npower
Manchester City Council,Regeneration Finance,Electricity,11.10.2018,1906229052,"9,266.10",Npower
Manchester City Council,Regeneration Finance,Electricity,11.10.2018,1906229038,"7,382.28",Npower
Manchester City Council,Regeneration Finance,Electricity,11.10.2018,1906229005,"5,724.79",Npower
Manchester City Council,Regeneration Finance,Electricity,11.10.2018,1906229051,"5,632.58",Npower
Manchester City Council,Regeneration Finance,Electricity,11.10.2018,1906229022,"5,362.73",Npower
Manchester City Council,Regeneration Finance,Electricity,11.10.2018,1906229048,"4,547.31",Npower
Manchester City Council,Regeneration Finance,Electricity,11.10.2018,1906229012,"4,366.73",Npower
Manchester City Council,Regeneration Finance,Electricity,11.10.2018,1906228985,"3,619.92",Npower
Manchester City Council,Regeneration Finance,Electricity,11.10.2018,1906229023,"2,318.29",Npower
Manchester City Council,Regeneration Finance,Electricity,11.10.2018,1906229011,"2,001.95",Npower
Manchester City Council,Regeneration Finance,Electricity,11.10.2018,1906229021,"1,925.48",Npower
Manchester City Council,Regeneration Finance,Electricity,11.10.2018,1906229061,"1,794.73",Npower
Manchester City Council,Regeneration Finance,Electricity,11.10.2018,1906228990,"1,783.77",Npower
Manchester City Council,Regeneration Finance,Electricity,11.10.2018,1906229018,"1,741.28",Npower
Manchester City Council,Regeneration Finance,Electricity,11.10.2018,1906229024,"1,675.20",Npower
Manchester City Council,Regeneration Finance,Electricity,11.10.2018,1906229031,"1,557.16",Npower
Manchester City Council,Regeneration Finance,Electricity,11.10.2018,1906229017,"1,341.40",Npower
Manchester City Council,Regeneration Finance,Electricity,11.10.2018,1906229032,"1,336.44",Npower
Manchester City Council,Regeneration Finance,Electricity,11.10.2018,1906229013,"1,163.72",Npower
Manchester City Council,Regeneration Finance,Electricity,11.10.2018,1906229014,"1,151.10",Npower
Manchester City Council,Regeneration Finance,Electricity,11.10.2018,1906229015,"1,134.95",Npower
Manchester City Council,Regeneration Finance,Electricity,11.10.2018,1906228986,970.99,Npower
Manchester City Council,Regeneration Finance,Electricity,11.10.2018,1906228989,930.98,Npower
Manchester City Council,Regeneration Finance,Electricity,11.10.2018,1906229019,709.80,Npower
Manchester City Council,Regeneration Finance,Electricity,11.10.2018,1906229000,674.21,Npower
Manchester City Council,Regeneration Finance,Electricity,11.10.2018,1906229016,607.31,Npower
Manchester City Council,Highways Services,Electricity,11.10.2018,1906229039,"3,443.02",Npower
Manchester City Council,Highways Services,Electricity,11.10.2018,1906229040,"1,074.55",Npower
Manchester City Council,Highways Services,Electricity,11.10.2018,1906228992,613.44,Npower
Manchester City Council,Highways Services,Electricity,11.10.2018,1906228995,570.83,Npower
Manchester City Council,Highways Services,Electricity,11.10.2018,1906228994,553.82,Npower
Manchester City Council,Highways Services,Electricity,11.10.2018,1906228993,507.44,Npower
Manchester City Council,Chief Executives,Compensation Payments,11.10.2018,5100999487,"5,525.00",Redacted Personal Information
Manchester City Council,Regeneration Finance,Professional fees,11.10.2018,5100999841,"2,200.00",P Mcguinness & Co Ltd
Manchester City Council,Regeneration Finance,Professional fees,11.10.2018,5100999819,"2,194.50",P Mcguinness & Co Ltd
Manchester City Council,Regeneration Finance,Professional fees,11.10.2018,5100999836,"1,732.50",P Mcguinness & Co Ltd
Manchester City Council,Chief Executives,Compensation Payments,11.10.2018,1906217688,"2,400.00",Platt Halpern
Manchester City Council,Chief Executives,I T Provision,11.10.2018,5100999731,"13,391.80",Insight Direct (Uk) Ltd
Manchester City Council,Chief Executives,I T Provision,11.10.2018,5100999598,"-13,391.80",Insight Direct (Uk) Ltd
Manchester City Council,Housing Revenue Account,Council Dwelling Adaptations,11.10.2018,5100999460,939.62,Pts Plumbing Trade Supplies
Manchester City Council,Regeneration Finance,Furniture,11.10.2018,5100998565,"1,430.20",Yorkshire Purchasing
Manchester City Council,Regeneration Finance,Furniture,11.10.2018,5100998564,906.45,Yorkshire Purchasing
Manchester City Council,General Fund,Levies,11.10.2018,1906017250,"5,456,188.00",GMCA
Manchester City Council,Adult Social Care,Bed and Breakfast Accommodation Expenditure,11.10.2018,5100999748,"11,373.00",Redacted Personal Information
Manchester City Council,Adult Social Care,"Clothes, Uniform and Laundry",11.10.2018,5100999891,600.00,Alliance Disposables Ltd
Manchester City Council,Adult Social Care,"Clothes, Uniform and Laundry",11.10.2018,5100999884,-600.00,Alliance Disposables Ltd
Manchester City Council,Regeneration Finance,Cleaning Equipment and Materials,11.10.2018,5100999611,"1,087.55",Alliance Disposables Ltd
Manchester City Council,Manchester Leisure,Library Materials Acquisition,11.10.2018,1906223465,"1,362.91",Peters Bookselling Services
Manchester City Council,Manchester Leisure,Library Materials Acquisition,11.10.2018,1906223464,"1,189.74",Peters Bookselling Services
Manchester City Council,Manchester Leisure,Library Materials Acquisition,11.10.2018,1906223471,941.53,Peters Bookselling Services
Manchester City Council,Manchester Leisure,Library Materials Acquisition,11.10.2018,1906223470,721.59,Peters Bookselling Services
Manchester City Council,Hospitality + Trading Services,Vehicle Hire Costs,11.10.2018,5100999601,"4,481.00",Specialist Vehicle rental
Manchester City Council,Hospitality + Trading Services,Legal Fees,11.10.2018,5100998851,750.00,Redacted Personal Information
Manchester City Council,Adult Social Care,Transport Coach Hire,11.10.2018,5100998351,"3,240.00",Ricks Travel
Manchester City Council,Adult Social Care,Professional fees,11.10.2018,5100999471,"1,100.00",Childrens and Families Across Borde
Manchester City Council,Chief Executives,Works and associated costs for Land and Buildings,11.10.2018,5100999770,"4,000.00",Turner & Townsend Project
Manchester City Council,Corporate Services,Storage Costs,11.10.2018,5100999101,"6,689.35",Oasis UK formerly Box-It (NW)
Manchester City Council,Adult Social Care,Third party payments relating to Voluntary Organisations,11.10.2018,5100999466,"18,099.50",DISC Ltd
Manchester City Council,Adult Social Care,Supporting People Payments,11.10.2018,5100999463,"11,407.94",DISC Ltd
Manchester City Council,Adult Social Care,Supporting People Payments,11.10.2018,5100999465,"3,200.33",DISC Ltd
Manchester City Council,Adult Social Care,Payments for services,11.10.2018,5100999558,"7,343.33",Works 4U (Support Services) Ltd
Manchester City Council,Hospitality + Trading Services,Catering Provisions,11.10.2018,1906228755,711.62,Ralph Livesey Ltd
Manchester City Council,Hospitality + Trading Services,Catering Provisions,11.10.2018,1906228765,635.42,Ralph Livesey Ltd
Manchester City Council,Hospitality + Trading Services,Catering Provisions,11.10.2018,1906228600,630.50,Ralph Livesey Ltd
Manchester City Council,Hospitality + Trading Services,Catering Provisions,11.10.2018,1906228671,506.96,Ralph Livesey Ltd
Manchester City Council,Chief Executives,Compensation Payments,11.10.2018,1906227173,"1,380.60",Acumension Ltd
Manchester City Council,Highways Services,Building Materials for direct delivery,11.10.2018,1906229487,751.44,Ecomix Concrete Ltd
Manchester City Council,Highways Services,Building Materials for direct delivery,11.10.2018,1906229485,745.00,Ecomix Concrete Ltd
Manchester City Council,Highways Services,Building Materials for direct delivery,11.10.2018,1906229484,521.50,Ecomix Concrete Ltd
Manchester City Council,Adult Social Care,Bed and Breakfast Accommodation Expenditure,11.10.2018,5100999599,"60,885.92",Cromwood Ltd
Manchester City Council,Adult Social Care,Transport Coach Hire,11.10.2018,5100998559,"4,150.00",Royton Minibuses Ltd
Manchester City Council,Adult Social Care,Transport Coach Hire,11.10.2018,5100999351,"68,067.94",Westfield Minibuses
Manchester City Council,Hospitality + Trading Services,Catering Provisions,11.10.2018,1906228770,609.88,TC Meats Ltd
Manchester City Council,Housing Revenue Account,Council Dwelling Adaptations,11.10.2018,5100999495,"3,144.96",Canopies UK
Manchester City Council,Adult Social Care,Rents,11.10.2018,1906223772,800.00,Redacted Personal Information
Manchester City Council,Manchester Leisure,Grant and subscriptions awarded,11.10.2018,5100999596,"1,020.00",Healthy Me Healthy Communities
Manchester City Council,Highways Services,Building Materials for direct delivery,11.10.2018,1906229474,"2,686.40",Benchmark Building Supplies Ltd
Manchester City Council,Highways Services,Building Materials for direct delivery,11.10.2018,1906229472,"1,649.28",Benchmark Building Supplies Ltd
Manchester City Council,Highways Services,Building Materials for direct delivery,11.10.2018,1906229471,"1,532.80",Benchmark Building Supplies Ltd
Manchester City Council,Highways Services,Building Materials for direct delivery,11.10.2018,1906229473,"1,532.80",Benchmark Building Supplies Ltd
Manchester City Council,Adult Social Care,Payments for services,11.10.2018,5100998514,"62,784.83",ABL Health Ltd
Manchester City Council,Adult Social Care,Payments for services,11.10.2018,5100998512,"27,500.00",ABL Health Ltd
Manchester City Council,Adult Social Care,Third party payments to other Local Authorities,11.10.2018,5100999801,"3,306.00",Alt Payee Acorn Care & Education
Manchester City Council,Corporate Services,Equipment,11.10.2018,5100999513,"1,050.00",digitalenergy Ltd
Manchester City Council,Adult Social Care,Bed and Breakfast Accommodation Expenditure,11.10.2018,5100999767,"27,768.00",Redacted Personal Information
Manchester City Council,Manchester Leisure,Special Events,11.10.2018,5100999812,"1,250.00",The Circus House
Manchester City Council,Corporate Services,Signers/Interpreters Fees,11.10.2018,5100999782,"1,207.50",Interpreting Solutions Ltd
Manchester City Council,Regeneration Finance,Professional fees,11.10.2018,5100999527,"10,000.00",Five Plus Architects Limited
Manchester City Council,Regeneration Finance,Professional fees,11.10.2018,5100999529,"10,000.00",Five Plus Architects Limited
Manchester City Council,Environment and Operations,Long Term Debtors,11.10.2018,1906228974,"79,030.70",Biffa Municipal Limited
Manchester City Council,Manchester Leisure,Library Materials Acquisition,11.10.2018,1906223475,862.50,JCS Online Resources Limited
Manchester City Council,Adult Social Care,Payments for services,11.10.2018,5100999451,"1,484.00",Preventx Limited
Manchester City Council,Adult Social Care,Payments for services,11.10.2018,5100999741,"1,484.00",Preventx Limited
Manchester City Council,Adult Social Care,Payments for services,11.10.2018,5100999737,"-1,484.00",Preventx Limited
Manchester City Council,Adult Social Care,Third party payments relating to Voluntary Organisations,11.10.2018,5100999399,630.00,One Manchester Limited
Manchester City Council,Regeneration Finance,Stationery,11.10.2018,5100999703,719.40,Banner Group Limited
Manchester City Council,Chief Executives,Rents,11.10.2018,5100999220,"1,177.83",Manchester Creative Digital Assets
Manchester City Council,Environment and Operations,Professional fees,11.10.2018,5100999525,"8,170.00",Smile Mediation
Manchester City Council,Adult Social Care,Payments for services,11.10.2018,5100999805,"22,000.00",Diagrama Foundation
Manchester City Council,Adult Social Care,Rents,11.10.2018,5100999065,"22,622.92",Housing Social Ltd
Manchester City Council,Corporate Services,Fees,11.10.2018,1906220865,"3,472.75",Rundles
Manchester City Council,Corporate Services,Fees,11.10.2018,1906220865,"-3,472.75",Rundles
Manchester City Council,Chief Executives,Printing,11.10.2018,5100999163,"1,430.54",Ricoh UK Ltd.
Manchester City Council,Chief Executives,Printing,11.10.2018,5100999160,716.43,Ricoh UK Ltd.
Manchester City Council,Adult Social Care,Payments for services,11.10.2018,5100999040,"2,120.00",North Staffordshire Combined
Manchester City Council,Adult Social Care,Rents,11.10.2018,5100999552,"6,235.99",AJD Property Limited
Manchester City Council,Adult Social Care,Rents,11.10.2018,5100999753,"4,098.53",AJD Property Limited
Manchester City Council,Adult Social Care,Legal Fees,11.10.2018,5100999482,800.00,Redacted Personal Information
Manchester City Council,Chief Executives,Professional fees,11.10.2018,5100999831,"24,250.00",Havas People Ltd
Manchester City Council,Chief Executives,Professional fees,11.10.2018,5100999820,"-24,750.00",Havas People Ltd
Manchester City Council,Adult Social Care,Professional fees,11.10.2018,5100999457,"3,522.82",CM2000 Care Management
Manchester City Council,Manchester Leisure,Special Events,11.10.2018,5100998614,"2,000.00",Beat Bazaar Projects Ltd
Manchester City Council,Corporate Services,Long Term Debtors,11.10.2018,5101000003,"778,149.00",BLG (Burlington House) Ltd
Manchester City Council,Manchester Leisure,Travel,11.10.2018,1906229582,545.40,Diversity Travel Ltd
Manchester City Council,Adult Social Care,Equipment,11.10.2018,5100999528,"1,035.00",Accora
Manchester City Council,Corporate Services,Long Term Debtors,11.10.2018,5101000002,"194,657.80",Breckside Estates LLP
Manchester City Council,Manchester Leisure,Goods purchased for resale in Council outlets,11.10.2018,1906223876,669.50,Chattyfeet
Manchester City Council,Adult Social Care,Rents,11.10.2018,1906227178,"1,500.00",TCW Manchester Ltd
Manchester City Council,Adult Social Care,Rents,11.10.2018,1906228939,850.00,Redacted Personal Information
Manchester City Council,Adult Social Care,Rents,11.10.2018,1906228929,550.00,Ryan Baker Estate Agents
Manchester City Council,Adult Social Care,Payments for services,11.10.2018,1906214167,580.00,Soft Touch Arts Ltd
Manchester City Council,Chief Executives,Postage,12.10.2018,5100999754,"49,095.79",Royal Mail Group Plc
Manchester City Council,Chief Executives,Agency staff provision,12.10.2018,5100998973,"2,300.00",HCL Social Care
Manchester City Council,Adult Social Care,Removal and Storage of Furniture,12.10.2018,5100999464,840.00,BCL
Manchester City Council,Adult Social Care,Removal and Storage of Furniture,12.10.2018,5101000097,723.46,BCL
Manchester City Council,Corporate Services,Works and associated costs for Land and Buildings,12.10.2018,5100999579,698.70,BCL
Manchester City Council,Highways Services,Building Materials for direct delivery,12.10.2018,5101000031,"1,609.97",Aggregate Industries T/A Kennedy As
Manchester City Council,Highways Services,Building Materials for direct delivery,12.10.2018,5100999983,913.28,Aggregate Industries T/A Kennedy As
Manchester City Council,Highways Services,Building Materials for direct delivery,12.10.2018,5100999971,733.25,Aggregate Industries T/A Kennedy As
Manchester City Council,Chief Executives,Agency staff provision,12.10.2018,5100999102,"8,738.46",Michael Page International
Manchester City Council,Chief Executives,I T Provision,12.10.2018,5100999266,862.00,Jigsaw Systems Limited
Manchester City Council,Hospitality + Trading Services,Security,12.10.2018,5101000025,"6,193.95",Showsec International Ltd
Manchester City Council,Hospitality + Trading Services,Security,12.10.2018,5100999995,"4,455.48",Showsec International Ltd
Manchester City Council,Hospitality + Trading Services,Security,12.10.2018,5100999997,"4,059.22",Showsec International Ltd
Manchester City Council,Regeneration Finance,Stationery,12.10.2018,5100999787,"14,348.88",Showsec International Ltd
Manchester City Council,Chief Executives,Agency staff provision,12.10.2018,5100999900,"11,288.10",Reed Employment Plc
Manchester City Council,Corporate Services,Training and Development,12.10.2018,5101000007,"4,730.00",Manchester Metropolitan University
Manchester City Council,Adult Social Care,Rents,12.10.2018,5100999928,"4,649.15",Riverside ECHG
Manchester City Council,Adult Social Care,Rents,12.10.2018,5100999947,"2,452.53",Riverside ECHG
Manchester City Council,Highways Services,Building Materials for direct delivery,12.10.2018,5100999975,"3,141.56",TARMAC
Manchester City Council,Highways Services,Building Materials for direct delivery,12.10.2018,5100999915,"1,946.23",TARMAC
Manchester City Council,Highways Services,Building Materials for direct delivery,12.10.2018,5101000039,"1,248.39",TARMAC
Manchester City Council,Highways Services,Building Materials for direct delivery,12.10.2018,5100999904,"1,240.83",TARMAC
Manchester City Council,Highways Services,Building Materials for direct delivery,12.10.2018,5100999921,"1,236.24",TARMAC
Manchester City Council,Highways Services,Building Materials for direct delivery,12.10.2018,5100999966,"1,234.71",TARMAC
Manchester City Council,Highways Services,Building Materials for direct delivery,12.10.2018,5100999965,"1,230.12",TARMAC
Manchester City Council,Highways Services,Building Materials for direct delivery,12.10.2018,5100999917,"1,123.98",TARMAC
Manchester City Council,Highways Services,Building Materials for direct delivery,12.10.2018,5100999924,918.00,TARMAC
Manchester City Council,Highways Services,Building Materials for direct delivery,12.10.2018,5101000040,687.83,TARMAC
Manchester City Council,Highways Services,Building Materials for direct delivery,12.10.2018,5100999973,524.98,TARMAC
Manchester City Council,Chief Executives,Advertising,12.10.2018,5100999958,"2,392.24",Reach Publishing Services Ltd
Manchester City Council,Adult Social Care,Rents,12.10.2018,1906228978,609.33,Happy Homes Uk Ltd
Manchester City Council,Manchester Leisure,I T Provision,12.10.2018,5100999779,"1,995.50",Civica UK Ltd
Manchester City Council,Adult Social Care,Travel,12.10.2018,1906212765,"2,021.65",R.S.P. Ltd Br Business Systems Ltd
Manchester City Council,Adult Social Care,Third party payments to Health Authority,12.10.2018,5100999375,"166,045.90",Greater Manchester Mental Health
Manchester City Council,Adult Social Care,Third party payments to Health Authority,12.10.2018,5100999371,"158,435.08",Greater Manchester Mental Health
Manchester City Council,Adult Social Care,Third party payments to Health Authority,12.10.2018,5100999371,"32,916.65",Greater Manchester Mental Health
Manchester City Council,Adult Social Care,Third party payments to Health Authority,12.10.2018,5100999375,"32,916.65",Greater Manchester Mental Health
Manchester City Council,Adult Social Care,Third party payments to Health Authority,12.10.2018,5100999371,"14,538.42",Greater Manchester Mental Health
Manchester City Council,Adult Social Care,Third party payments to Health Authority,12.10.2018,5100999375,"14,538.42",Greater Manchester Mental Health
Manchester City Council,Adult Social Care,Third party payments to Health Authority,12.10.2018,5100999371,"11,763.25",Greater Manchester Mental Health
Manchester City Council,Adult Social Care,Third party payments to Health Authority,12.10.2018,5100999375,"11,763.25",Greater Manchester Mental Health
Manchester City Council,Adult Social Care,Third party payments to Health Authority,12.10.2018,5100999974,"-7,610.78",Greater Manchester Mental Health
Manchester City Council,Chief Executives,Compensation Payments,12.10.2018,1906228971,710.61,Avr Transcription Ltd
Manchester City Council,Hospitality + Trading Services,Refuse Collection,12.10.2018,5100999420,"2,964.00",Fairfield Environmental Serv Ltd
Manchester City Council,Regeneration Finance,Third party payments to other Local Authorities,12.10.2018,5100999793,"8,651.00",Rochdale MBC
Manchester City Council,Adult Social Care,Payments for services,12.10.2018,5100999927,"3,410.00",Social Care Services (Clayton) Ltd
Manchester City Council,Adult Social Care,Payments for services,12.10.2018,5100999934,"2,530.00",Social Care Services (Clayton) Ltd
Manchester City Council,Housing Revenue Account,Council Dwelling Fees,12.10.2018,5100999992,"183,597.00",Northwards Housing Limited
Manchester City Council,Housing Revenue Account,Council Dwelling Fees,12.10.2018,5100999991,"181,178.00",Northwards Housing Limited
Manchester City Council,Housing Revenue Account,Council Dwelling Adaptations,12.10.2018,5100999993,"13,067.46",Northwards Housing Limited
Manchester City Council,Adult Social Care,Professional fees,12.10.2018,5101000069,"4,000.00",4CT Limited
Manchester City Council,Corporate Services,Professional fees,12.10.2018,5100997490,"5,460.00",Turner & Townsend Cost
Manchester City Council,Highways Services,Grounds Maintenance Costs,12.10.2018,5100998442,"1,973.33",A T G Access Ltd
Manchester City Council,Highways Services,Grounds Maintenance Costs,12.10.2018,5100998588,"1,973.33",A T G Access Ltd
Manchester City Council,Adult Social Care,Supporting People Payments,12.10.2018,5101000051,"1,829.77",Child Action Northwest
Manchester City Council,Adult Social Care,Supporting People Payments,12.10.2018,5101000051,"1,610.36",Child Action Northwest
Manchester City Council,Adult Social Care,Electricity,12.10.2018,1906229759,"1,605.63",Npower
Manchester City Council,Adult Social Care,Electricity,12.10.2018,1906229761,"1,486.60",Npower
Manchester City Council,Adult Social Care,Electricity,12.10.2018,1906229758,"1,111.85",Npower
Manchester City Council,Adult Social Care,Electricity,12.10.2018,1906229760,"1,062.38",Npower
Manchester City Council,Adult Social Care,Third party payments relating to Voluntary Organisations,12.10.2018,5101000013,"7,250.00",The Depaul Trust
Manchester City Council,Adult Social Care,Third party payments relating to Voluntary Organisations,12.10.2018,5101000011,"1,583.33",The Depaul Trust
Manchester City Council,Adult Social Care,Supporting People Payments,12.10.2018,5101000010,"11,666.74",The Depaul Trust
Manchester City Council,Adult Social Care,Supporting People Payments,12.10.2018,5101000010,"5,000.00",The Depaul Trust
Manchester City Council,Hospitality + Trading Services,Compensation Payments,12.10.2018,1906223773,866.00,Department For Work & Pensions
Manchester City Council,Manchester Leisure,Payments to Sub-Contractors,12.10.2018,5101000099,"1,164.84",Manchester Dogs Home
Manchester City Council,Manchester Leisure,Payments to Sub-Contractors,12.10.2018,5101000102,"-1,164.84",Manchester Dogs Home
Manchester City Council,Adult Social Care,Transport Coach Hire,12.10.2018,5100999774,"1,620.00",Exec-Coach Services
Manchester City Council,Hospitality + Trading Services,Vehicle Hire Costs,12.10.2018,5100999167,"1,112.71",Winners Contract Hire Ltd
Manchester City Council,Regeneration Finance,Internal Repairs and Maintenance for buildings,12.10.2018,5101000036,"66,709.13",Manchester Working Ltd
Manchester City Council,Regeneration Finance,External repairs and maintenance for buildings,12.10.2018,5101000037,"11,596.62",Manchester Working Ltd
Manchester City Council,Regeneration Finance,Preventative Maintenance Work,12.10.2018,5101000109,"8,390.45",Manchester Working Ltd
Manchester City Council,Regeneration Finance,Preventative Maintenance Work,12.10.2018,5101000035,"4,848.76",Manchester Working Ltd
Manchester City Council,Adult Social Care,"Consumable items eg Toilet rolls, soap etc",12.10.2018,5101000052,617.00,Cellmark
Manchester City Council,Adult Social Care,Equipment,12.10.2018,5100999964,797.60,Drive Devilbiss Healthcare Ltd
Manchester City Council,Chief Executives,Training and Development,12.10.2018,5100998817,900.00,QA Ltd
Manchester City Council,Hospitality + Trading Services,Hire of Machinery,12.10.2018,5101000075,514.35,GHL Liftrucks Ltd
Manchester City Council,Hospitality + Trading Services,Hire of Machinery,12.10.2018,5101000077,514.35,GHL Liftrucks Ltd
Manchester City Council,Adult Social Care,Third party payments relating to Voluntary Organisations,12.10.2018,5100999941,660.00,Tiddlywinks Day Nursery
Manchester City Council,Adult Social Care,Rates,12.10.2018,5101000030,538.57,Brighter Beginnings Day Nursery
Manchester City Council,Adult Social Care,Transport Taxis,12.10.2018,5101000028,"1,000.00",Wrixon Care
Manchester City Council,Corporate Services,Professional fees,12.10.2018,5100998610,"7,654.50",Turner & Townsend Project
Manchester City Council,Corporate Services,Professional fees,12.10.2018,5100998576,"2,475.00",Turner & Townsend Project
Manchester City Council,Chief Executives,Agency staff provision,12.10.2018,5101000093,"48,641.21",Triad Resourcing
Manchester City Council,Childrens Services,Building Works,12.10.2018,5101000108,"323,099.42",The Co-op Academy of Manchester
Manchester City Council,Adult Social Care,Transport Coach Hire,12.10.2018,5100998827,"1,615.00",APL Coachhire
Manchester City Council,Adult Social Care,Third party payments relating to Voluntary Organisations,12.10.2018,5100999096,"498,000.00","CGL - Change, Grow, Live"
Manchester City Council,Adult Social Care,Third party payments relating to Voluntary Organisations,12.10.2018,5100999099,"44,308.08","CGL - Change, Grow, Live"
Manchester City Council,Housing Revenue Account,Council Dwelling Fees,12.10.2018,5101000064,"1,350.00",Avro Hallows TMO Ltd
Manchester City Council,Adult Social Care,Equipment,12.10.2018,5100999969,675.00,Ultimate Healthcare
Manchester City Council,Manchester Leisure,Payments to Sub-Contractors,12.10.2018,5100999907,"6,500.00",Continental Landscapes Limited
Manchester City Council,Manchester Leisure,Equipment,12.10.2018,5100998053,"1,000.00",Willfab Ltd
Manchester City Council,Adult Social Care,Professional fees,12.10.2018,5100999327,"2,200.00",JBS-R Associates
Manchester City Council,Adult Social Care,Professional fees,12.10.2018,5101000055,"3,792.64",Resolutions Consultancy Pty Ltd
Manchester City Council,Highways Services,Compensation Payments,12.10.2018,1906227160,"4,000.00",The Rose Partnership Solicitors LLP
Manchester City Council,Highways Services,Compensation Payments,12.10.2018,1906227160,"3,415.00",The Rose Partnership Solicitors LLP
Manchester City Council,Manchester Leisure,Professional fees,12.10.2018,5100999919,"1,725.30",BHE Services (Bolton) Ltd
Manchester City Council,Manchester Leisure,Professional fees,12.10.2018,5100999952,780.79,Interference Art
Manchester City Council,Adult Social Care,Bed and Breakfast Accommodation Expenditure,12.10.2018,5100999808,"9,406.00",Redacted Personal Information
Manchester City Council,Manchester Leisure,Equipment,12.10.2018,5100998821,"21,900.00",Cromwell polythene limited
Manchester City Council,Chief Executives,Rents,12.10.2018,5100998882,"3,252.75",Manchester Creative Digital Assets
Manchester City Council,Chief Executives,Payments to Sub-Contractors,12.10.2018,5100999920,729.60,Redacted Personal Information
Manchester City Council,Adult Social Care,Payments for services,12.10.2018,5100998508,"5,145.00",Delphi Medical
Manchester City Council,Chief Executives,Catering,12.10.2018,5100999785,"1,190.00",Manchester City Galleries Dev Co
Manchester City Council,Chief Executives,Payments to Sub-Contractors,12.10.2018,5101000001,645.41,Redacted Personal Information
Manchester City Council,Adult Social Care,Professional fees,12.10.2018,5101000014,"3,400.00",Dr N P Alwin Ltd
Manchester City Council,Adult Social Care,Professional fees,12.10.2018,5101000015,"1,360.00",Dr N P Alwin Ltd
Manchester City Council,Chief Executives,Advertising,12.10.2018,5101000072,"1,395.00",2A Publishing Ltd
Manchester City Council,Adult Social Care,Third party payments to other Local Authorities,12.10.2018,5100999990,"8,499.12",Delamere School
Manchester City Council,Adult Social Care,Third party payments to other Local Authorities,12.10.2018,5100999988,"6,205.00",Delamere School
Manchester City Council,Manchester Leisure,General Office expenses,12.10.2018,1906228937,700.00,Will Marshall
Manchester City Council,Manchester Leisure,Special Events,12.10.2018,1906227175,500.00,Redacted Personal Information
Manchester City Council,Hospitality + Trading Services,Equipment,12.10.2018,1906227176,"1,673.00",Read Roper Read
Manchester City Council,Hospitality + Trading Services,Compensation Payments,12.10.2018,1906223760,"3,540.00",Thompsons Solicitors
Manchester City Council,Chief Executives,Compensation Payments,12.10.2018,1906228970,"1,500.00",The Chambers of Charles Garside QC
Manchester City Council,Highways Services,Compensation Payments,12.10.2018,1906228960,850.00,WE Solicitors LLP
Manchester City Council,Adult Social Care,Payments for services,15.10.2018,5101000428,"3,798.76",The Together Trust
Manchester City Council,Adult Social Care,Payments for services,15.10.2018,5101000416,"3,239.74",The Together Trust
Manchester City Council,Adult Social Care,Payments for services,15.10.2018,5101000414,"2,939.30",The Together Trust
Manchester City Council,Adult Social Care,Payments for services,15.10.2018,5101000136,"2,505.78",The Together Trust
Manchester City Council,Adult Social Care,Payments for services,15.10.2018,5101000421,"2,037.66",The Together Trust
Manchester City Council,Adult Social Care,Payments for services,15.10.2018,5101000422,"1,787.00",The Together Trust
Manchester City Council,Adult Social Care,Payments for services,15.10.2018,5101000425,"1,170.03",The Together Trust
Manchester City Council,Adult Social Care,Payments for services,15.10.2018,5101000426,"1,170.03",The Together Trust
Manchester City Council,Adult Social Care,Payments for services,15.10.2018,5101000417,"1,049.26",The Together Trust
Manchester City Council,Adult Social Care,Payments for services,15.10.2018,5101000423,913.18,The Together Trust
Manchester City Council,Adult Social Care,Furniture,15.10.2018,5101000338,561.00,The Furnishing Service Ltd
Manchester City Council,Corporate Services,Welfare Provision Service Awards,15.10.2018,5101000314,"1,216.21",The Furnishing Service Ltd
Manchester City Council,Corporate Services,Welfare Provision Service Awards,15.10.2018,5101000328,"1,165.11",The Furnishing Service Ltd
Manchester City Council,Corporate Services,Welfare Provision Service Awards,15.10.2018,5101000324,"1,104.20",The Furnishing Service Ltd
Manchester City Council,Corporate Services,Welfare Provision Service Awards,15.10.2018,5101000313,977.18,The Furnishing Service Ltd
Manchester City Council,Corporate Services,Welfare Provision Service Awards,15.10.2018,5101000300,965.23,The Furnishing Service Ltd
Manchester City Council,Corporate Services,Welfare Provision Service Awards,15.10.2018,5101000283,933.23,The Furnishing Service Ltd
Manchester City Council,Corporate Services,Welfare Provision Service Awards,15.10.2018,5101000308,885.36,The Furnishing Service Ltd
Manchester City Council,Corporate Services,Welfare Provision Service Awards,15.10.2018,5101000333,884.34,The Furnishing Service Ltd
Manchester City Council,Corporate Services,Welfare Provision Service Awards,15.10.2018,5101000320,882.48,The Furnishing Service Ltd
Manchester City Council,Corporate Services,Welfare Provision Service Awards,15.10.2018,5101000276,882.23,The Furnishing Service Ltd
Manchester City Council,Corporate Services,Welfare Provision Service Awards,15.10.2018,5101000284,800.07,The Furnishing Service Ltd
Manchester City Council,Corporate Services,Welfare Provision Service Awards,15.10.2018,5101000316,785.00,The Furnishing Service Ltd
Manchester City Council,Corporate Services,Welfare Provision Service Awards,15.10.2018,5101000299,759.36,The Furnishing Service Ltd
Manchester City Council,Corporate Services,Welfare Provision Service Awards,15.10.2018,5101000304,759.36,The Furnishing Service Ltd
Manchester City Council,Corporate Services,Welfare Provision Service Awards,15.10.2018,5101000278,678.00,The Furnishing Service Ltd
Manchester City Council,Corporate Services,Welfare Provision Service Awards,15.10.2018,5101000329,671.36,The Furnishing Service Ltd
Manchester City Council,Corporate Services,Welfare Provision Service Awards,15.10.2018,5101000297,633.36,The Furnishing Service Ltd
Manchester City Council,Corporate Services,Welfare Provision Service Awards,15.10.2018,5101000280,601.36,The Furnishing Service Ltd
Manchester City Council,Corporate Services,Welfare Provision Service Awards,15.10.2018,5101000292,539.75,The Furnishing Service Ltd
Manchester City Council,Corporate Services,Welfare Provision Service Awards,15.10.2018,5101000275,516.36,The Furnishing Service Ltd
Manchester City Council,Corporate Services,Welfare Provision Service Awards,15.10.2018,5101000294,507.36,The Furnishing Service Ltd
Manchester City Council,Corporate Services,Postage,15.10.2018,5101000255,"1,582.99",Royal Mail Group Plc
Manchester City Council,Manchester Leisure,Training and Development,15.10.2018,5100999959,"4,590.00",Common Purpose UK
Manchester City Council,Environment and Operations,Construction Works,15.10.2018,5100999459,"1,760.16",Atkins Limited
Manchester City Council,Manchester Leisure,Training and Development,15.10.2018,5101000081,740.00,Salford GIS Ltd
Manchester City Council,Libraries and Theatres,Training and Development,15.10.2018,5101000082,"1,850.00",Salford GIS Ltd
Manchester City Council,Libraries and Theatres,Training and Development,15.10.2018,5101000084,740.00,Salford GIS Ltd
Manchester City Council,Adult Social Care,Payments for services,15.10.2018,5101000235,"6,020.00",Cais Ltd
Manchester City Council,Adult Social Care,Payments for services,15.10.2018,5101000385,"2,150.00",Cais Ltd
Manchester City Council,Manchester Leisure,Grant and subscriptions awarded,15.10.2018,5101000029,"18,250.00",Keep Britain Tidy
Manchester City Council,Adult Social Care,Payments for services,15.10.2018,5101000433,"42,525.52",Belmont School Ltd
Manchester City Council,Adult Social Care,Payments for services,15.10.2018,5101000466,"11,482.94",Belmont School Ltd
Manchester City Council,Adult Social Care,Payments for services,15.10.2018,5101000473,"5,853.33",Belmont School Ltd
Manchester City Council,Adult Social Care,Payments for services,15.10.2018,5101000461,"5,688.33",Belmont School Ltd
Manchester City Council,Adult Social Care,Bed and Breakfast Accommodation Expenditure,15.10.2018,5101000379,"3,900.00",Park Crescent Hotel Ltd
Manchester City Council,Manchester Leisure,Grant and subscriptions awarded,15.10.2018,5101000330,"1,110.00",Christ Church Harpurhey PCC
Manchester City Council,Manchester Leisure,Equipment,15.10.2018,5101000133,"1,040.00",William G.Search Ltd
Manchester City Council,Manchester Leisure,Payments to Sub-Contractors,15.10.2018,5100999814,720.00,Osborne Richardson
Manchester City Council,Manchester Leisure,Payments to Sub-Contractors,15.10.2018,5100999821,591.00,Osborne Richardson
Manchester City Council,Housing Revenue Account,Landline Telephone Charges,15.10.2018,1906229886,607.00,Bt Payphones
Manchester City Council,Chief Executives,Agency staff provision,15.10.2018,5100999953,"1,344.99",Venn Group Ltd
Manchester City Council,Manchester Leisure,External repairs and maintenance for buildings,15.10.2018,5101000032,"6,691.48",Clearview Event Services Limited
Manchester City Council,Manchester Leisure,External repairs and maintenance for buildings,15.10.2018,5101000038,"2,288.10",Clearview Event Services Limited
Manchester City Council,Manchester Leisure,External repairs and maintenance for buildings,15.10.2018,5101000152,"2,036.85",Clearview Event Services Limited
Manchester City Council,Corporate Services,Fees,15.10.2018,1906223201,"4,452.65",Marston Group Limited
Manchester City Council,Corporate Services,Fees,15.10.2018,1906223205,"2,543.05",Marston Group Limited
Manchester City Council,Corporate Services,Fees,15.10.2018,1906223202,"1,326.60",Marston Group Limited
Manchester City Council,Corporate Services,Fees,15.10.2018,1906223202,"-1,326.60",Marston Group Limited
Manchester City Council,Corporate Services,Fees,15.10.2018,1906223205,"-2,543.05",Marston Group Limited
Manchester City Council,Corporate Services,Fees,15.10.2018,1906223201,"-4,452.65",Marston Group Limited
Manchester City Council,Adult Social Care,Payments for services,15.10.2018,5100999235,"8,955.90",Age Concern Manchester
Manchester City Council,Adult Social Care,Payments for services,15.10.2018,5100999235,"4,806.00",Age Concern Manchester
Manchester City Council,Corporate Services,I T Provision,15.10.2018,5100999113,"3,471.48",Northgate Public Services (UK) Ltd
Manchester City Council,Corporate Services,Off Street car parking,15.10.2018,1906223208,"-4,194.45",Equita Ltd
Manchester City Council,Corporate Services,Fees,15.10.2018,1906223208,"4,194.45",Equita Ltd
Manchester City Council,Chief Executives,Works and associated costs for Land and Buildings,15.10.2018,5101000375,"312,515.00",Laing O'Rourke Construction Ltd
Manchester City Council,Adult Social Care,Transport Taxis,15.10.2018,1906227009,"1,087.90",Cresta Car Hire
Manchester City Council,Adult Social Care,Transport Coach Hire,15.10.2018,5100999198,"1,283.40",Cresta Car Hire
Manchester City Council,Adult Social Care,Transport Coach Hire,15.10.2018,5100999206,848.30,Cresta Car Hire
Manchester City Council,Adult Social Care,Transport Coach Hire,15.10.2018,5100999196,836.00,Cresta Car Hire
Manchester City Council,Adult Social Care,Transport Coach Hire,15.10.2018,5100999192,715.30,Cresta Car Hire
Manchester City Council,Adult Social Care,Transport Coach Hire,15.10.2018,5100999195,642.20,Cresta Car Hire
Manchester City Council,Adult Social Care,Transport Coach Hire,15.10.2018,5100998908,565.80,Cresta Car Hire
Manchester City Council,Adult Social Care,Payments for services,15.10.2018,5101000435,"4,375.00",Barnardo Services Ltd (Essex)
Manchester City Council,Chief Executives,Training and Development,15.10.2018,5100999772,"3,357.61",Manchester Metropolitan University
Manchester City Council,Corporate Services,I T Provision,15.10.2018,5101000114,630.00,Ncc Services Limited
Manchester City Council,Chief Executives,Compensation Payments,15.10.2018,1906223759,599.00,Alere Toxicology Plc
Manchester City Council,Hospitality + Trading Services,Vehicle Hire Costs,15.10.2018,5101000199,"2,000.00",John Martin Devine Ltd
Manchester City Council,Regeneration Finance,Rents,15.10.2018,1906229847,"18,421.72",Moss Side Millennium Powerhouse Ltd
Manchester City Council,Regeneration Finance,Rents,15.10.2018,1906229846,"9,210.86",Moss Side Millennium Powerhouse Ltd
Manchester City Council,Adult Social Care,Payments for services,15.10.2018,5101000183,"254,908.03",Standwalk Ltd
Manchester City Council,Adult Social Care,Payments for services,15.10.2018,5101000188,"254,908.03",Standwalk Ltd
Manchester City Council,Adult Social Care,Home Care ,15.10.2018,5101000349,"5,250.78",Standwalk Ltd
Manchester City Council,Adult Social Care,Home Care ,15.10.2018,5101000262,"2,578.34",Standwalk Ltd
Manchester City Council,Adult Social Care,Home Care ,15.10.2018,5101000270,"2,534.60",Standwalk Ltd
Manchester City Council,Adult Social Care,Home Care ,15.10.2018,5101000264,"1,923.95",Standwalk Ltd
Manchester City Council,Adult Social Care,Home Care ,15.10.2018,5101000360,627.60,Standwalk Ltd
Manchester City Council,Manchester Leisure,Payments to Sub-Contractors,15.10.2018,5100999470,708.00,Groundwork Landscapes Ltd
Manchester City Council,Adult Social Care,Equipment,15.10.2018,5100999304,"1,010.50",NRS Healthcare
Manchester City Council,Adult Social Care,Equipment,15.10.2018,5100999302,720.00,NRS Healthcare
Manchester City Council,Hospitality + Trading Services,Hire of Machinery,15.10.2018,5101000538,"7,066.10",H & C Plant Hire Ltd
Manchester City Council,Adult Social Care,Payments for services,15.10.2018,5101000164,"1,753.00",Redacted Personal Information
Manchester City Council,Adult Social Care,Payments for services,15.10.2018,5101000462,"12,443.80",Ramillies Hall School Ltd
Manchester City Council,Adult Social Care,Payments for services,15.10.2018,5101000396,"6,524.00",Turning Point
Manchester City Council,Adult Social Care,Payments for services,15.10.2018,5101000389,"2,330.00",Turning Point
Manchester City Council,Chief Executives,Printing,15.10.2018,5101000445,565.00,Astra Signs
Manchester City Council,Chief Executives,Printing,15.10.2018,5101000447,565.00,Astra Signs
Manchester City Council,Adult Social Care,Extra Care Sheltered Housing Payments,15.10.2018,5100998695,"16,582.87",Creative Support Ltd
Manchester City Council,Manchester Leisure,Equipment,15.10.2018,5100999109,600.00,Stadia Sports International Ltd
Manchester City Council,Adult Social Care,Private Finance and Public Private partnership initiatives,15.10.2018,5101000115,"74,971.26",NU3PS
Manchester City Council,Adult Social Care,Private Finance and Public Private partnership initiatives,15.10.2018,5101000119,"-2,708.31",NU3PS
Manchester City Council,Adult Social Care,Private Finance and Public Private partnership initiatives,15.10.2018,5101000122,"-2,708.31",NU3PS
Manchester City Council,Adult Social Care,Private Finance and Public Private partnership initiatives,15.10.2018,5100998084,"-24,917.09",NU3PS
Manchester City Council,Hospitality + Trading Services,Refuse Collection,15.10.2018,5101000045,"41,449.32",Fairfield Environmental Serv Ltd
Manchester City Council,Hospitality + Trading Services,Refuse Collection,15.10.2018,5100998664,"3,375.00",Fairfield Environmental Serv Ltd
Manchester City Council,Regeneration Finance,External repairs and maintenance for buildings,15.10.2018,5101000000,"2,049.00",Victoria Baths Trust
Manchester City Council,Regeneration Finance,External repairs and maintenance for buildings,15.10.2018,5101000006,"1,200.00",Victoria Baths Trust
Manchester City Council,Adult Social Care,Third party payments to other Local Authorities,15.10.2018,5100999521,"50,000.00",Tameside Metropolitan Bouough
Manchester City Council,Adult Social Care,Payments for services,15.10.2018,5101000476,"2,195.91",Chaigeley Education Foundation
Manchester City Council,Regeneration Finance,Third party payments to other Local Authorities,15.10.2018,5100999343,"3,937.50",Wolverhampton City Council
Manchester City Council,Housing Revenue Account,Council Dwelling Fees,15.10.2018,5101000124,"3,834.94",Northwards Housing Limited
Manchester City Council,Housing Revenue Account,Council Dwelling Fees,15.10.2018,5101000126,-680.00,Northwards Housing Limited
Manchester City Council,Adult Social Care,Supported Accommodation,15.10.2018,5101000376,"1,200.00",Manchester Settlement
Manchester City Council,Adult Social Care,Supported Accommodation,15.10.2018,5101000377,"1,200.00",Manchester Settlement
Manchester City Council,Adult Social Care,Third party payments relating to Voluntary Organisations,15.10.2018,5100999379,"4,390.00",Independent Choices Gtr Manchester
Manchester City Council,Adult Social Care,Third party payments relating to Voluntary Organisations,15.10.2018,5100999276,"4,050.33",Independent Choices Gtr Manchester
Manchester City Council,Adult Social Care,Payments for services,15.10.2018,5100999076,"41,715.33",Brook
Manchester City Council,Adult Social Care,Training and Development,15.10.2018,5100999286,600.00,Disabled Living
Manchester City Council,Adult Social Care,Training and Development,15.10.2018,5100999288,600.00,Disabled Living
Manchester City Council,Adult Social Care,Grant and subscriptions awarded,15.10.2018,5101000243,"15,932.30",Manchester People First
Manchester City Council,Adult Social Care,Grant and subscriptions awarded,15.10.2018,5101000245,874.90,Manchester People First
Manchester City Council,Adult Social Care,Grant and subscriptions awarded,15.10.2018,5101000247,874.90,Manchester People First
Manchester City Council,Adult Social Care,Grant and subscriptions awarded,15.10.2018,5101000244,624.76,Manchester People First
Manchester City Council,Housing Revenue Account,Private Finance and Public Private partnership initiatives,15.10.2018,5101000175,"450,688.76",Grove Village Ltd
Manchester City Council,Insurance Fund,Insurance,15.10.2018,1906221955,"3,942.00",CFG Law
Manchester City Council,Regeneration Finance,Equipment,15.10.2018,5100999449,590.00,Skyreach Access Solutions Ltd
Manchester City Council,Manchester Leisure,Grant and subscriptions awarded,15.10.2018,5100999752,570.50,University Of Manchester
Manchester City Council,Manchester Leisure,Professional fees,15.10.2018,5101000424,"7,902.00",Association For Public
Manchester City Council,Chief Executives,Compensation Payments,15.10.2018,5100999485,"1,000.00",Redacted Personal Information
Manchester City Council,Adult Social Care,Compensation Payments,15.10.2018,1906223194,"4,250.00",Platt Halpern
Manchester City Council,Regeneration Finance,Rents,15.10.2018,1906229712,"44,891.97",Network Rail Property
Manchester City Council,Adult Social Care,I T Provision,15.10.2018,5100999091,"4,579.26",Insight Direct (Uk) Ltd
Manchester City Council,Hospitality + Trading Services,Vehicle Hire Costs,15.10.2018,5101000539,"3,232.66",Manchester Van Hire Ltd
Manchester City Council,Chief Executives,Telecoms Maintenance,15.10.2018,5100999325,974.00,T.I.S. Limited
Manchester City Council,Corporate Services,Travel Season Ticket Loan Scheme,15.10.2018,5101000228,570.00,Stagecoach Manchester
Manchester City Council,Regeneration Finance,Equipment,15.10.2018,5100999771,"3,595.00",Proton (Southern) Ltd
Manchester City Council,Hospitality + Trading Services,Hire of Equipment,15.10.2018,5101000536,"7,015.51",Fast Hire UK
Manchester City Council,Hospitality + Trading Services,Machinery and equipment repairs,15.10.2018,5101000537,643.99,Fast Hire UK
Manchester City Council,Regeneration Finance,Internal Repairs and Maintenance for buildings,15.10.2018,5101000165,"19,679.43",Manchester Working Ltd
Manchester City Council,Manchester Leisure,Equipment,15.10.2018,5100998909,"2,204.96",Axminster power Tool Centre
Manchester City Council,Corporate Services,Professional fees,15.10.2018,5101000118,"11,896.50",Faithful & Gould Ltd
Manchester City Council,Corporate Services,Professional fees,15.10.2018,5101000116,"9,933.00",Faithful & Gould Ltd
Manchester City Council,Corporate Services,Professional fees,15.10.2018,5101000146,647.96,Faithful & Gould Ltd
Manchester City Council,Adult Social Care,Professional fees,15.10.2018,1906222149,"1,006.66",Redacted Personal Information
Manchester City Council,Manchester Leisure,Professional fees,15.10.2018,5101000134,"15,000.00",Manchester County FA Ltd
Manchester City Council,Adult Social Care,Rents,15.10.2018,5101000153,"75,740.71",Accommodation Links Ltd
Manchester City Council,Chief Executives,Catering,15.10.2018,5101000442,821.26,Manchester Central
Manchester City Council,Hospitality + Trading Services,Professional fees,15.10.2018,5100999980,"2,093.28",Jacobs UK Ltd
Manchester City Council,Housing General Fund,Works and associated costs for Land and Buildings,15.10.2018,5100999980,"1,597.50",Jacobs UK Ltd
Manchester City Council,Housing General Fund,Infrastructure Fees,15.10.2018,5100999980,605.00,Jacobs UK Ltd
Manchester City Council,Regeneration Finance,Professional fees,15.10.2018,5100999980,"3,176.70",Jacobs UK Ltd
Manchester City Council,Regeneration Finance,Professional fees,15.10.2018,5100999980,"2,835.00",Jacobs UK Ltd
Manchester City Council,Regeneration Finance,Professional fees,15.10.2018,5100999980,"1,572.20",Jacobs UK Ltd
Manchester City Council,Regeneration Finance,Professional fees,15.10.2018,5100999980,"1,064.00",Jacobs UK Ltd
Manchester City Council,Regeneration Finance,Professional fees,15.10.2018,5100999980,"1,050.00",Jacobs UK Ltd
Manchester City Council,Regeneration Finance,Professional fees,15.10.2018,5100999980,"1,026.90",Jacobs UK Ltd
Manchester City Council,Regeneration Finance,Professional fees,15.10.2018,5100999980,"1,000.00",Jacobs UK Ltd
Manchester City Council,Regeneration Finance,Professional fees,15.10.2018,5100999980,500.20,Jacobs UK Ltd
Manchester City Council,Highways Services,Compensation Payments,15.10.2018,1906223209,"3,500.00",Thompsons Solicitors
Manchester City Council,Highways Services,Professional fees,15.10.2018,5100999173,"7,548.00",Wilde Consultants Ltd
Manchester City Council,Highways Services,Professional fees,15.10.2018,5100999172,"5,454.98",Wilde Consultants Ltd
Manchester City Council,Highways Services,Professional fees,15.10.2018,5100999171,"4,685.28",Wilde Consultants Ltd
Manchester City Council,Highways Services,Professional fees,15.10.2018,5100999170,"4,656.48",Wilde Consultants Ltd
Manchester City Council,Chief Executives,Hire of Equipment,15.10.2018,5100999798,"5,258.08",Mercury AV Ltd
Manchester City Council,Libraries and Theatres,Professional fees,15.10.2018,5101000406,"2,000.00",Me Learning Limited
Manchester City Council,Adult Social Care,Licences Purchase,15.10.2018,5101000104,"3,750.00",Me Learning Limited
Manchester City Council,Adult Social Care,Professional fees,15.10.2018,1906220853,"2,033.39",Advanced Child Care Assessments
Manchester City Council,Corporate Services,Rents,15.10.2018,1906221195,"14,504.66",Regus Management (UK) Ltd
Manchester City Council,Regeneration Finance,Expenditure re Internal Trading Ordered Externally,15.10.2018,5100999490,"1,280.00",First Asian Support Trust
Manchester City Council,Adult Social Care,Occupational Health services,15.10.2018,1906231546,620.00,Healthwork Ltd
Manchester City Council,Adult Social Care,Payments for services,15.10.2018,5101000218,"13,728.00",Time Specialist Support Ltd
Manchester City Council,Adult Social Care,Payments for services,15.10.2018,5101000219,"7,840.00",Time Specialist Support Ltd
Manchester City Council,Adult Social Care,Carer Support Payments ,15.10.2018,5100999250,"17,951.80",DH Homecare Ltd (Direct Health)
Manchester City Council,Adult Social Care,Bed and Breakfast Accommodation Expenditure,15.10.2018,5100999788,"2,080.00",Redacted Personal Information
Manchester City Council,Adult Social Care,Bed and Breakfast Accommodation Expenditure,15.10.2018,5100999786,"1,950.00",Redacted Personal Information
Manchester City Council,Adult Social Care,Bed and Breakfast Accommodation Expenditure,15.10.2018,5100999792,900.00,Redacted Personal Information
Manchester City Council,Adult Social Care,Carer Support Payments ,15.10.2018,5100999530,"30,007.22",Carewatch Care Service
Manchester City Council,Highways Services,Contribution to PATROL,15.10.2018,5101000206,"82,327.35",Patrol Bus Lanes
Manchester City Council,Regeneration Finance,Payments to Sub-Contractors,15.10.2018,5101000186,"4,656.43",Custodian Monitoring
Manchester City Council,Adult Social Care,Subsistence and Conference Expenses,15.10.2018,5101000438,"1,007.50",Cresta World Travel Ltd
Manchester City Council,Adult Social Care,Rents,15.10.2018,1906220872,950.00,Jade Residential
Manchester City Council,Adult Social Care,Rents,15.10.2018,1906226985,550.00,Manchester Letting
Manchester City Council,Adult Social Care,Carer Support Payments ,15.10.2018,5100999524,"27,610.74",Carewest Limited
Manchester City Council,Adult Social Care,Stationery,15.10.2018,5101000370,"1,724.00",Right 2 Write Ltd
Manchester City Council,Adult Social Care,Stationery,15.10.2018,5101000371,"-1,724.00",Right 2 Write Ltd
Manchester City Council,Adult Social Care,Third party payments relating to Voluntary Organisations,15.10.2018,5101000160,"126,624.28","CGL - Change, Grow, Live"
Manchester City Council,Manchester Leisure,Grant and subscriptions awarded,15.10.2018,5101000266,770.00,Cracking Good Food
Manchester City Council,Chief Executives,Landline Telephone Charges,15.10.2018,5101000120,"1,040.00",The Loop t/a Gamma Telecom Ltd
Manchester City Council,Chief Executives,Grant Payments,15.10.2018,5100999441,"5,557.50",Manchester Histories
Manchester City Council,Hospitality + Trading Services,Equipment,15.10.2018,5101000060,"34,633.67",Ascot Wholesale Ltd
Manchester City Council,Adult Social Care,Professional fees,15.10.2018,1906228965,550.00,Kenworthy's Chambers
Manchester City Council,Chief Executives,Grant Payments,15.10.2018,5100999094,"3,250.00",Quarantine
Manchester City Council,Corporate Services,Grant Payments,15.10.2018,5100999555,800.00,Drumbeat Creative Ltd
Manchester City Council,Chief Executives,Agency staff provision,15.10.2018,5100999462,"36,943.92",Access Computer Consulting plc
Manchester City Council,Adult Social Care,Refuse Collection,15.10.2018,5100999571,577.25,Restore Datashred Limited
Manchester City Council,Adult Social Care,Refuse Collection,15.10.2018,5101000480,523.75,Restore Datashred Limited
Manchester City Council,Adult Social Care,Professional fees,15.10.2018,5100999946,"1,015.00",Alpha Biolaboratories Limited
Manchester City Council,Housing General Fund,Capital Receipts,15.10.2018,1906222351,"14,520.00",Redrow Homes Lancashire
Manchester City Council,Adult Social Care,Professional fees,15.10.2018,5100999912,"79,237.46",Career Connect
Manchester City Council,Adult Social Care,Bed and Breakfast Accommodation Expenditure,15.10.2018,5100999758,"17,228.00",Redacted Personal Information
Manchester City Council,Regeneration Finance,Licences Purchase,15.10.2018,5100999889,"3,625.00",Softcat
Manchester City Council,Manchester Leisure,Refuse Collection,15.10.2018,5101000054,"1,133,976.39",Biffa Municipal Limited
Manchester City Council,Manchester Leisure,Refuse Collection,15.10.2018,5100999122,"87,994.56",Biffa Municipal Limited
Manchester City Council,Adult Social Care,Transport Coach Hire,15.10.2018,5100999338,"1,926.00",Redacted Personal Information
Manchester City Council,Adult Social Care,Transport Coach Hire,15.10.2018,5101000348,"7,712.00",Taxi Team Limited
Manchester City Council,Chief Executives,Works and associated costs for Land and Buildings,15.10.2018,5101000142,"3,363.75",Vectos (North) Limited
Manchester City Council,Chief Executives,Works and associated costs for Land and Buildings,15.10.2018,5101000144,"2,692.50",Vectos (North) Limited
Manchester City Council,Adult Social Care,Professional fees,15.10.2018,5101000170,"7,443.20",Resolutions Consultancy Pty Ltd
Manchester City Council,Housing Revenue Account,I T Provision,15.10.2018,5101000380,750.00,Aareon UK Ltd
Manchester City Council,Chief Executives,Works and associated costs for Land and Buildings,15.10.2018,5100999469,"32,000.00",Gardiner & Theobald LLP
Manchester City Council,Chief Executives,Agency staff provision,15.10.2018,5100999290,"2,111.81",NonStop Recruitment Ltd
Manchester City Council,Adult Social Care,Professional fees,15.10.2018,1906223827,"1,597.00",Carter Brown The Expert Service
Manchester City Council,Environment and Operations,Construction Works,15.10.2018,5100999248,"9,441.21",Excalon Limited
Manchester City Council,Hospitality + Trading Services,Floral Decorations,15.10.2018,5101000411,"4,043.40",E Smith & Son (Nurserymen)
Manchester City Council,Hospitality + Trading Services,Floral Decorations,15.10.2018,5101000409,"3,409.00",E Smith & Son (Nurserymen)
Manchester City Council,Adult Social Care,Payments for services,15.10.2018,5101000378,"12,323.07",Carlton House Care Ltd
Manchester City Council,Corporate Services,Professional fees,15.10.2018,5101000148,650.00,Naismiths Ltd
Manchester City Council,Environment and Operations,Professional fees,15.10.2018,5101000179,595.00,Solution Talk LLP
Manchester City Council,Adult Social Care,Bed and Breakfast Accommodation Expenditure,15.10.2018,5101000113,"7,085.44",K L Properties
Manchester City Council,Adult Social Care,Training and Development,15.10.2018,5101000357,"1,100.00",Redacted Personal Information
Manchester City Council,Chief Executives,Payments to Sub-Contractors,15.10.2018,5100999550,"5,206.39",Redacted Personal Information
Manchester City Council,Chief Executives,Agency staff provision,15.10.2018,5101000430,"1,510.80",Redacted Personal Information
Manchester City Council,Adult Social Care,Payments for services,15.10.2018,5101000168,"3,250.00",Broadstones Independent Special Sch
Manchester City Council,Adult Social Care,Payments for services,15.10.2018,5101000163,"3,090.90",Broadstones Independent Special Sch
Manchester City Council,Chief Executives,Occupational Health services,15.10.2018,5101000405,"22,260.00",Health Assured Ltd
Manchester City Council,Adult Social Care,Payments for services,15.10.2018,5100999258,"2,450.00",Delphi Medical
Manchester City Council,Manchester Leisure,Subsistence and Conference Expenses,15.10.2018,5100999452,843.07,Diversity Travel Ltd
Manchester City Council,Adult Social Care,Travel,15.10.2018,1906231552,780.48,Diversity Travel Ltd
Manchester City Council,Adult Social Care,Travel,15.10.2018,5100999473,549.12,Diversity Travel Ltd
Manchester City Council,Corporate Services,Travel,15.10.2018,1906231483,705.40,Diversity Travel Ltd
Manchester City Council,Chief Executives,Travel,15.10.2018,1906231475,534.20,Diversity Travel Ltd
Manchester City Council,Chief Executives,Travel,15.10.2018,5100999501,504.98,Diversity Travel Ltd
Manchester City Council,Regeneration Finance,Public Transport,15.10.2018,5101000139,"3,420.00",Greater Manchester Travelcards Ltd
Manchester City Council,Regeneration Finance,Public Transport,15.10.2018,5101000205,"-3,420.00",Greater Manchester Travelcards Ltd
Manchester City Council,Chief Executives,Training and Development,15.10.2018,5100999551,"1,570.00",Assistive Technology & Training Ltd
Manchester City Council,Hospitality + Trading Services,Compensation Payments,15.10.2018,1906229907,"3,400.00",Graysons Solicitors
Manchester City Council,Hospitality + Trading Services,Compensation Payments,15.10.2018,1906229910,"4,829.00",Graysons Solicitors
Manchester City Council,Adult Social Care,Professional fees,15.10.2018,1906227016,"7,790.80",RWA Child protection Ltd
Manchester City Council,Adult Social Care,Professional fees,15.10.2018,1906228961,"1,000.00",Redacted Personal Information
Manchester City Council,Adult Social Care,Professional fees,15.10.2018,1906223214,850.00,Redacted Personal Information
Manchester City Council,Adult Social Care,Professional fees,15.10.2018,1906228966,650.00,Redacted Personal Information
Manchester City Council,Adult Social Care,Professional fees,15.10.2018,1906221194,650.00,Redacted Personal Information
Manchester City Council,Adult Social Care,Professional fees,15.10.2018,1906227146,550.00,Redacted Personal Information
Manchester City Council,Chief Executives,Payments to Sub-Contractors,15.10.2018,1906214287,"1,750.00",The Chess Films Ltd
Manchester City Council,Adult Social Care,Supporting People Payments,16.10.2018,5100997953,"4,900.25",Praxis Care Group
Manchester City Council,Adult Social Care,Supporting People Payments,16.10.2018,5100997850,"11,771.00",People First Housing Association
Manchester City Council,Corporate Services,Professional fees,16.10.2018,5100997960,750.00,Edmond Shipway
Manchester City Council,Manchester Leisure,Special Events,16.10.2018,5101000418,"4,470.00",Fools Paradise
Manchester City Council,Adult Social Care,Professional fees,16.10.2018,5101000622,700.00,Action First iPeople Ltd
Manchester City Council,Adult Social Care,Transport Coach Hire,16.10.2018,5100998660,"1,728.00",Connect Cars Ltd
Manchester City Council,Hospitality + Trading Services,Hire of Machinery,16.10.2018,5101000587,"1,038.50",R & M Developments Ltd
Manchester City Council,Hospitality + Trading Services,Hire of Machinery,16.10.2018,5101000577,"1,012.50",R & M Developments Ltd
